Workbook

Sheet Temp distribution
A1: Time-dependent Temperature Distribution in a plastic vial
AW3: Coefficients for polyethelene | AZ3: Coefficients for H2O
C4: heat capacity of polyethelene, cal/g/deg | AW4: 12 | AX4: (hcap) | AZ4: 150
C5: thermal conductivity of Polyethelene, cal/sec/cm/deg | AW5: 0.5 | AX5: (k) | AZ5: 0.9
C6: density of polyethelene, g/cm3 | AW6: 0.5 | AX6: (rho) | AZ6: 1
C7: Coefficient e in general PDE, =k/(hcap*rho) | AW7: =k/(hcap*rho) -> 0.08333333333 | AX7: (e) | AZ7: =AZ5/(AZ4*AZ6) -> 0.006
C8: Dx | AW8: =0.05 -> 0.05 | AX8: (Dx) | AZ8: 0.25
C9: Dt | AW9: =B14-B13 -> 0.015 | AX9: (Dt) | AZ9: 0.015
C10: f=e*Dt/(Dx^2) | AW10: =e*Dt/(Dx^2) -> 0.5 | AX10: (f) | AZ10: =AZ7*Dt/(Dx^2) -> 0.036
C12: aluminum block edge | D12: 0 | E12: 0 | F12: 0 | G12: 0 | H12: 0 | I12: 0 | J12: 0 | K12: 0 | L12: 0 | M12: 0 | N12: 0 | O12: 0 | P12: 0 | Q12: 0 | R12: 0 | S12: 0 | T12: 0 | U12: 0 | V12: 0 | W12: 0 | X12: 0 | Y12: 0 | Z12: 0 | AA12: 0 | AB12: 0 | AC12: 0 | AD12: 0 | AE12: 0 | AF12: 0 | AG12: 0 | AH12: 0 | AI12: 0 | AJ12: 0 | AK12: 0 | AL12: 0 | AM12: 0 | AN12: 0 | AO12: 0 | AP12: 0 | AQ12: 0 | AR12: aluminum block edge
A13: time t (sec) | B13: 0.064 | C13: 57 | D13: 52.3873 | E13: 52.3873 | F13: 52.3873 | G13: 52.3873 | H13: 52.3873 | I13: 52.3873 | J13: 52.3873 | K13: 52.3873 | L13: 52.3873 | M13: 52.3873 | N13: 52.3873 | O13: 52.3873 | P13: 52.3873 | Q13: 52.3873 | R13: 52.3873 | S13: 52.3873 | T13: 52.3873 | U13: 52.3873 | V13: 52.3873 | W13: 52.3873 | X13: 52.3873 | Y13: 52.3873 | Z13: 52.3873 | AA13: 52.3873 | AB13: 52.3873 | AC13: 52.3873 | AD13: 52.3873 | AE13: 52.3873 | AF13: 52.3873 | AG13: 52.3873 | AH13: 52.3873 | AI13: 52.3873 | AJ13: 52.3873 | AK13: 52.3873 | AL13: 52.3873 | AM13: 52.3873 | AN13: 52.3873 | AO13: 52.3873 | AP13: 52.3873 | AQ13: 52.3873 | AR13: 57
B14: 0.079 | C14: 57 | D14: =f*(C13+E13)+(1-2*f)*D13 -> 54.69365 | E14: =f*(D13+F13)+(1-2*f)*E13 -> 52.3873 | F14: 52.3873 | G14: 52.3873 | H14: 52.3873 | I14: 52.3873 | J14: 52.3873 | K14: 52.3873 | L14: 52.3873 | M14: 52.3873 | N14: 52.3873 | O14: 52.3873 | P14: 52.3873 | Q14: 52.3873 | R14: 52.3873 | S14: 52.3873 | T14: 52.3873 | U14: 52.3873 | V14: 52.3873 | W14: 52.3873 | X14: 52.3873 | Y14: 52.3873 | Z14: 52.3873 | AA14: 52.3873 | AB14: 52.3873 | AC14: 52.3873 | AD14: 52.3873 | AE14: 52.3873 | AF14: 52.3873 | AG14: 52.3873 | AH14: 52.3873 | AI14: 52.3873 | AJ14: 52.3873 | AK14: 52.3873 | AL14: 52.3873 | AM14: 52.3873 | AN14: 52.3873 | AO14: 52.3873 | AP14: 52.3873 | AQ14: 54.69365 | AR14: 57
B15: 0.094 | C15: 57 | D15: 54.69365 | E15: 53.540475 | F15: 52.3873 | G15: 52.3873 | H15: 52.3873 | I15: 52.3873 | J15: 52.3873 | K15: 52.3873 | L15: 52.3873 | M15: 52.3873 | N15: 52.3873 | O15: 52.3873 | P15: 52.3873 | Q15: 52.3873 | R15: 52.3873 | S15: 52.3873 | T15: 52.3873 | U15: 52.3873 | V15: 52.3873 | W15: 52.3873 | X15: 52.3873 | Y15: 52.3873 | Z15: 52.3873 | AA15: 52.3873 | AB15: 52.3873 | AC15: 52.3873 | AD15: 52.3873 | AE15: 52.3873 | AF15: 52.3873 | AG15: 52.3873 | AH15: 52.3873 | AI15: 52.3873 | AJ15: 52.3873 | AK15: 52.3873 | AL15: 52.3873 | AM15: 52.3873 | AN15: 52.3873 | AO15: 52.3873 | AP15: 53.540475 | AQ15: 54.69365 | AR15: 57
B16: 0.109 | C16: 57 | D16: 55.2702375 | E16: 53.540475 | F16: 52.9638875 | G16: 52.3873 | H16: 52.3873 | I16: 52.3873 | J16: 52.3873 | K16: 52.3873 | L16: 52.3873 | M16: 52.3873 | N16: 52.3873 | O16: 52.3873 | P16: 52.3873 | Q16: 52.3873 | R16: 52.3873 | S16: 52.3873 | T16: 52.3873 | U16: 52.3873 | V16: 52.3873 | W16: 52.3873 | X16: 52.3873 | Y16: 52.3873 | Z16: 52.3873 | AA16: 52.3873 | AB16: 52.3873 | AC16: 52.3873 | AD16: 52.3873 | AE16: 52.3873 | AF16: 52.3873 | AG16: 52.3873 | AH16: 52.3873 | AI16: 52.3873 | AJ16: 52.3873 | AK16: 52.3873 | AL16: 52.3873 | AM16: 52.3873 | AN16: 52.3873 | AO16: 52.9638875 | AP16: 53.540475 | AQ16: 55.2702375 | AR16: 57
B17: 0.124 | C17: 57 | D17: 55.2702375 | E17: 54.1170625 | F17: 52.9638875 | G17: 52.67559375 | H17: 52.3873 | I17: 52.3873 | J17: 52.3873 | K17: 52.3873 | L17: 52.3873 | M17: 52.3873 | N17: 52.3873 | O17: 52.3873 | P17: 52.3873 | Q17: 52.3873 | R17: 52.3873 | S17: 52.3873 | T17: 52.3873 | U17: 52.3873 | V17: 52.3873 | W17: 52.3873 | X17: 52.3873 | Y17: 52.3873 | Z17: 52.3873 | AA17: 52.3873 | AB17: 52.3873 | AC17: 52.3873 | AD17: 52.3873 | AE17: 52.3873 | AF17: 52.3873 | AG17: 52.3873 | AH17: 52.3873 | AI17: 52.3873 | AJ17: 52.3873 | AK17: 52.3873 | AL17: 52.3873 | AM17: 52.3873 | AN17: 52.67559375 | AO17: 52.9638875 | AP17: 54.1170625 | AQ17: 55.2702375 | AR17: 57
B18: 0.139 | C18: 57 | D18: 55.55853125 | E18: 54.1170625 | F18: 53.39632812 | G18: 52.67559375 | H18: 52.53144688 | I18: 52.3873 | J18: 52.3873 | K18: 52.3873 | L18: 52.3873 | M18: 52.3873 | N18: 52.3873 | O18: 52.3873 | P18: 52.3873 | Q18: 52.3873 | R18: 52.3873 | S18: 52.3873 | T18: 52.3873 | U18: 52.3873 | V18: 52.3873 | W18: 52.3873 | X18: 52.3873 | Y18: 52.3873 | Z18: 52.3873 | AA18: 52.3873 | AB18: 52.3873 | AC18: 52.3873 | AD18: 52.3873 | AE18: 52.3873 | AF18: 52.3873 | AG18: 52.3873 | AH18: 52.3873 | AI18: 52.3873 | AJ18: 52.3873 | AK18: 52.3873 | AL18: 52.3873 | AM18: 52.53144688 | AN18: 52.67559375 | AO18: 53.39632812 | AP18: 54.1170625 | AQ18: 55.55853125 | AR18: 57
B19: 0.154 | C19: 57 | D19: 55.55853125 | E19: 54.47742969 | F19: 53.39632813 | G19: 52.9638875 | H19: 52.53144688 | I19: 52.45937344 | J19: 52.3873 | K19: 52.3873 | L19: 52.3873 | M19: 52.3873 | N19: 52.3873 | O19: 52.3873 | P19: 52.3873 | Q19: 52.3873 | R19: 52.3873 | S19: 52.3873 | T19: 52.3873 | U19: 52.3873 | V19: 52.3873 | W19: 52.3873 | X19: 52.3873 | Y19: 52.3873 | Z19: 52.3873 | AA19: 52.3873 | AB19: 52.3873 | AC19: 52.3873 | AD19: 52.3873 | AE19: 52.3873 | AF19: 52.3873 | AG19: 52.3873 | AH19: 52.3873 | AI19: 52.3873 | AJ19: 52.3873 | AK19: 52.3873 | AL19: 52.45937344 | AM19: 52.53144688 | AN19: 52.9638875 | AO19: 53.39632813 | AP19: 54.47742969 | AQ19: 55.55853125 | AR19: 57
B20: 0.169 | C20: 57 | D20: 55.73871484 | E20: 54.47742969 | F20: 53.72065859 | G20: 52.9638875 | H20: 52.71163047 | I20: 52.45937344 | J20: 52.42333672 | K20: 52.3873 | L20: 52.3873 | M20: 52.3873 | N20: 52.3873 | O20: 52.3873 | P20: 52.3873 | Q20: 52.3873 | R20: 52.3873 | S20: 52.3873 | T20: 52.3873 | U20: 52.3873 | V20: 52.3873 | W20: 52.3873 | X20: 52.3873 | Y20: 52.3873 | Z20: =f*(Y19+AA19)+(1-2*f)*Z19 -> 52.3873 | AA20: 52.3873 | AB20: 52.3873 | AC20: 52.3873 | AD20: 52.3873 | AE20: 52.3873 | AF20: 52.3873 | AG20: 52.3873 | AH20: 52.3873 | AI20: 52.3873 | AJ20: 52.3873 | AK20: 52.42333672 | AL20: 52.45937344 | AM20: 52.71163047 | AN20: 52.9638875 | AO20: 53.72065859 | AP20: 54.47742969 | AQ20: 55.73871484 | AR20: 57
B21: 0.184 | C21: 57 | D21: 55.73871484 | E21: 54.72968672 | F21: 53.72065859 | G21: 53.21614453 | H21: 52.71163047 | I21: 52.56748359 | J21: 52.42333672 | K21: 52.40531836 | L21: 52.3873 | M21: 52.3873 | N21: 52.3873 | O21: 52.3873 | P21: 52.3873 | Q21: 52.3873 | R21: 52.3873 | S21: 52.3873 | T21: 52.3873 | U21: 52.3873 | V21: 52.3873 | W21: 52.3873 | X21: 52.3873 | Y21: 52.3873 | Z21: 52.3873 | AA21: 52.3873 | AB21: 52.3873 | AC21: 52.3873 | AD21: 52.3873 | AE21: 52.3873 | AF21: 52.3873 | AG21: 52.3873 | AH21: 52.3873 | AI21: 52.3873 | AJ21: 52.40531836 | AK21: 52.42333672 | AL21: 52.56748359 | AM21: 52.71163047 | AN21: 53.21614453 | AO21: 53.72065859 | AP21: 54.72968672 | AQ21: 55.73871484 | AR21: 57
B22: 0.199 | C22: 57 | D22: 55.86484336 | E22: 54.72968672 | F22: 53.97291562 | G22: 53.21614453 | H22: 52.89181406 | I22: 52.56748359 | J22: 52.48640098 | K22: 52.40531836 | L22: 52.39630918 | M22: 52.3873 | N22: 52.3873 | O22: 52.3873 | P22: 52.3873 | Q22: 52.3873 | R22: 52.3873 | S22: 52.3873 | T22: 52.3873 | U22: 52.3873 | V22: 52.3873 | W22: 52.3873 | X22: 52.3873 | Y22: 52.3873 | Z22: 52.3873 | AA22: 52.3873 | AB22: 52.3873 | AC22: 52.3873 | AD22: 52.3873 | AE22: 52.3873 | AF22: 52.3873 | AG22: 52.3873 | AH22: 52.3873 | AI22: 52.39630918 | AJ22: 52.40531836 | AK22: 52.48640098 | AL22: 52.56748359 | AM22: 52.89181406 | AN22: 53.21614453 | AO22: 53.97291562 | AP22: 54.72968672 | AQ22: 55.86484336 | AR22: 57
B23: 0.214 | C23: 57 | D23: 55.86484336 | E23: 54.91887949 | F23: 53.97291562 | G23: 53.43236484 | H23: 52.89181406 | I23: 52.68910752 | J23: 52.48640098 | K23: 52.44135508 | L23: 52.39630918 | M23: 52.39180459 | N23: 52.3873 | O23: 52.3873 | P23: 52.3873 | Q23: 52.3873 | R23: 52.3873 | S23: 52.3873 | T23: 52.3873 | U23: 52.3873 | V23: 52.3873 | W23: 52.3873 | X23: 52.3873 | Y23: 52.3873 | Z23: 52.3873 | AA23: 52.3873 | AB23: 52.3873 | AC23: 52.3873 | AD23: 52.3873 | AE23: 52.3873 | AF23: 52.3873 | AG23: 52.3873 | AH23: 52.39180459 | AI23: 52.39630918 | AJ23: 52.44135508 | AK23: 52.48640098 | AL23: 52.68910752 | AM23: 52.89181406 | AN23: 53.43236484 | AO23: 53.97291562 | AP23: 54.91887949 | AQ23: 55.86484336 | AR23: 57
B24: 0.229 | C24: 57 | D24: 55.95943975 | E24: 54.91887949 | F24: 54.17562217 | G24: 53.43236484 | H24: 53.06073618 | I24: 52.68910752 | J24: 52.5652313 | K24: 52.44135508 | L24: 52.41657983 | M24: 52.39180459 | N24: 52.38955229 | O24: 52.3873 | P24: 52.3873 | Q24: 52.3873 | R24: 52.3873 | S24: 52.3873 | T24: 52.3873 | U24: 52.3873 | V24: 52.3873 | W24: 52.3873 | X24: 52.3873 | Y24: 52.3873 | Z24: 52.3873 | AA24: 52.3873 | AB24: 52.3873 | AC24: 52.3873 | AD24: 52.3873 | AE24: 52.3873 | AF24: 52.3873 | AG24: 52.38955229 | AH24: 52.39180459 | AI24: 52.41657983 | AJ24: 52.44135508 | AK24: 52.5652313 | AL24: 52.68910752 | AM24: 53.06073618 | AN24: 53.43236484 | AO24: 54.17562217 | AP24: 54.91887949 | AQ24: 55.95943975 | AR24: 57
B25: 0.244 | C25: 57 | D25: 55.95943975 | E25: 55.06753096 | F25: 54.17562217 | G25: 53.61817917 | H25: 53.06073618 | I25: 52.81298374 | J25: 52.5652313 | K25: 52.49090557 | L25: 52.41657983 | M25: 52.40306606 | N25: 52.38955229 | O25: 52.38842615 | P25: 52.3873 | Q25: 52.3873 | R25: 52.3873 | S25: 52.3873 | T25: 52.3873 | U25: 52.3873 | V25: 52.3873 | W25: 52.3873 | X25: 52.3873 | Y25: 52.3873 | Z25: 52.3873 | AA25: 52.3873 | AB25: 52.3873 | AC25: 52.3873 | AD25: 52.3873 | AE25: 52.3873 | AF25: 52.38842615 | AG25: 52.38955229 | AH25: 52.40306606 | AI25: 52.41657983 | AJ25: 52.49090557 | AK25: 52.5652313 | AL25: 52.81298374 | AM25: 53.06073618 | AN25: 53.61817917 | AO25: 54.17562217 | AP25: 55.06753096 | AQ25: 55.95943975 | AR25: 57
B26: 0.259 | C26: 57 | D26: 56.03376548 | E26: 55.06753096 | F26: 54.34285507 | G26: 53.61817917 | H26: 53.21558146 | I26: 52.81298374 | J26: 52.65194465 | K26: 52.49090557 | L26: 52.44698582 | M26: 52.40306606 | N26: 52.39574611 | O26: 52.38842615 | P26: 52.38786307 | Q26: 52.3873 | R26: 52.3873 | S26: 52.3873 | T26: 52.3873 | U26: 52.3873 | V26: 52.3873 | W26: 52.3873 | X26: 52.3873 | Y26: 52.3873 | Z26: 52.3873 | AA26: 52.3873 | AB26: 52.3873 | AC26: 52.3873 | AD26: 52.3873 | AE26: 52.38786307 | AF26: 52.38842615 | AG26: 52.39574611 | AH26: 52.40306606 | AI26: 52.44698582 | AJ26: 52.49090557 | AK26: 52.65194465 | AL26: 52.81298374 | AM26: 53.21558146 | AN26: 53.61817917 | AO26: 54.34285507 | AP26: 55.06753096 | AQ26: 56.03376548 | AR26: 57
B27: 0.274 | C27: 57 | D27: 56.03376548 | E27: 55.18831027 | F27: 54.34285507 | G27: 53.77921826 | H27: =f*(G26+I26)+(1-2*f)*H26 -> 53.21558146 | I27: 52.93376306 | J27: 52.65194465 | K27: 52.54946523 | L27: 52.44698582 | M27: 52.42136596 | N27: 52.39574611 | O27: 52.39180459 | P27: 52.38786307 | Q27: 52.38758154 | R27: 52.3873 | S27: 52.3873 | T27: 52.3873 | U27: 52.3873 | V27: 52.3873 | W27: 52.3873 | X27: 52.3873 | Y27: 52.3873 | Z27: 52.3873 | AA27: 52.3873 | AB27: 52.3873 | AC27: 52.3873 | AD27: 52.38758154 | AE27: 52.38786307 | AF27: 52.39180459 | AG27: 52.39574611 | AH27: 52.42136596 | AI27: 52.44698582 | AJ27: 52.54946523 | AK27: 52.65194465 | AL27: 52.93376306 | AM27: 53.21558146 | AN27: 53.77921826 | AO27: 54.34285507 | AP27: 55.18831027 | AQ27: 56.03376548 | AR27: 57
B28: 0.289 | C28: 57 | D28: 56.09415514 | E28: 55.18831027 | F28: 54.48376427 | G28: 53.77921826 | H28: 53.35649066 | I28: 52.93376306 | J28: 52.74161414 | K28: 52.54946523 | L28: 52.4854156 | M28: 52.42136596 | N28: 52.40658528 | O28: 52.39180459 | P28: 52.38969306 | Q28: 52.38758154 | R28: 52.38744077 | S28: 52.3873 | T28: 52.3873 | U28: 52.3873 | V28: 52.3873 | W28: 52.3873 | X28: 52.3873 | Y28: 52.3873 | Z28: 52.3873 | AA28: 52.3873 | AB28: 52.3873 | AC28: 52.38744077 | AD28: 52.38758154 | AE28: 52.38969306 | AF28: 52.39180459 | AG28: 52.40658528 | AH28: 52.42136596 | AI28: 52.4854156 | AJ28: 52.54946523 | AK28: 52.74161414 | AL28: 52.93376306 | AM28: 53.35649066 | AN28: 53.77921826 | AO28: 54.48376427 | AP28: 55.18831027 | AQ28: 56.09415514 | AR28: 57
B29: 0.304 | C29: 57 | D29: 56.09415514 | E29: 55.2889597 | F29: 54.48376427 | G29: 53.92012746 | H29: 53.35649066 | I29: 53.0490524 | J29: 52.74161414 | K29: 52.61351487 | L29: 52.4854156 | M29: 52.44600044 | N29: 52.40658528 | O29: 52.39813917 | P29: 52.38969306 | Q29: 52.38856692 | R29: 52.38744077 | S29: 52.38737038 | T29: 52.3873 | U29: 52.3873 | V29: 52.3873 | W29: 52.3873 | X29: 52.3873 | Y29: 52.3873 | Z29: 52.3873 | AA29: 52.3873 | AB29: 52.38737038 | AC29: 52.38744077 | AD29: 52.38856692 | AE29: 52.38969306 | AF29: 52.39813917 | AG29: 52.40658528 | AH29: 52.44600044 | AI29: 52.4854156 | AJ29: 52.61351487 | AK29: 52.74161414 | AL29: 53.0490524 | AM29: 53.35649066 | AN29: 53.92012746 | AO29: 54.48376427 | AP29: 55.2889597 | AQ29: 56.09415514 | AR29: 57
B30: 0.319 | C30: 57 | D30: 56.14447985 | E30: 55.2889597 | F30: 54.60454358 | G30: 53.92012746 | H30: 53.48458993 | I30: 53.0490524 | J30: 52.83128364 | K30: 52.61351487 | L30: 52.52975765 | M30: 52.44600044 | N30: 52.4220698 | O30: 52.39813917 | P30: 52.39335304 | Q30: 52.38856692 | R30: 52.38796865 | S30: 52.38737038 | T30: 52.38733519 | U30: 52.3873 | V30: 52.3873 | W30: 52.3873 | X30: 52.3873 | Y30: 52.3873 | Z30: 52.3873 | AA30: 52.38733519 | AB30: 52.38737038 | AC30: 52.38796865 | AD30: 52.38856692 | AE30: 52.39335304 | AF30: 52.39813917 | AG30: 52.4220698 | AH30: 52.44600044 | AI30: 52.52975765 | AJ30: 52.61351487 | AK30: 52.83128364 | AL30: 53.0490524 | AM30: 53.48458993 | AN30: 53.92012746 | AO30: 54.60454358 | AP30: 55.2889597 | AQ30: 56.14447985 | AR30: 57
B31: 0.334 | C31: 57 | D31: 56.14447985 | E31: 55.37451172 | F31: 54.60454358 | G31: 54.04456676 | H31: 53.48458993 | I31: 53.15793678 | J31: 52.83128364 | K31: 52.68052065 | L31: 52.52975765 | M31: 52.47591373 | N31: 52.4220698 | O31: 52.40771142 | P31: 52.39335304 | Q31: 52.39066085 | R31: 52.38796865 | S31: 52.38765192 | T31: 52.38733519 | U31: 52.3873176 | V31: 52.3873 | W31: 52.3873 | X31: 52.3873 | Y31: 52.3873 | Z31: 52.3873176 | AA31: 52.38733519 | AB31: 52.38765192 | AC31: 52.38796865 | AD31: 52.39066085 | AE31: 52.39335304 | AF31: 52.40771142 | AG31: 52.4220698 | AH31: 52.47591373 | AI31: 52.52975765 | AJ31: 52.68052065 | AK31: 52.83128364 | AL31: 53.15793678 | AM31: 53.48458993 | AN31: 54.04456676 | AO31: 54.60454358 | AP31: 55.37451172 | AQ31: 56.14447985 | AR31: 57
B32: 0.349 | C32: 57 | D32: 56.18725586 | E32: 55.37451172 | F32: 54.70953924 | G32: 54.04456676 | H32: 53.60125177 | I32: 53.15793678 | J32: 52.91922871 | K32: 52.68052065 | L32: 52.57821719 | M32: 52.47591373 | N32: 52.44181258 | O32: 52.40771142 | P32: 52.39918613 | Q32: 52.39066085 | R32: 52.38915638 | S32: 52.38765192 | T32: 52.38748476 | U32: 52.3873176 | V32: 52.3873088 | W32: 52.3873 | X32: 52.3873 | Y32: 52.3873088 | Z32: 52.3873176 | AA32: 52.38748476 | AB32: 52.38765192 | AC32: 52.38915638 | AD32: 52.39066085 | AE32: 52.39918613 | AF32: 52.40771142 | AG32: 52.44181258 | AH32: 52.47591373 | AI32: 52.57821719 | AJ32: 52.68052065 | AK32: 52.91922871 | AL32: 53.15793678 | AM32: 53.60125177 | AN32: 54.04456676 | AO32: 54.70953924 | AP32: 55.37451172 | AQ32: 56.18725586 | AR32: 57
B33: 0.364 | C33: 57 | D33: 56.18725586 | E33: 55.44839755 | F33: 54.70953924 | G33: 54.1553955 | H33: 53.60125177 | I33: 53.26024024 | J33: 52.91922871 | K33: 52.74872295 | L33: 52.57821719 | M33: 52.51001488 | N33: 52.44181258 | O33: 52.42049936 | P33: 52.39918613 | Q33: 52.39417126 | R33: 52.38915638 | S33: 52.38832057 | T33: 52.38748476 | U33: 52.38739678 | V33: 52.3873088 | W33: 52.3873044 | X33: 52.3873044 | Y33: 52.3873088 | Z33: 52.38739678 | AA33: 52.38748476 | AB33: 52.38832057 | AC33: =f*(AB32+AD32)+(1-2*f)*AC32 -> 52.38915638 | AD33: 52.39417126 | AE33: 52.39918613 | AF33: 52.42049936 | AG33: 52.44181258 | AH33: 52.51001488 | AI33: 52.57821719 | AJ33: 52.74872295 | AK33: 52.91922871 | AL33: 53.26024024 | AM33: 53.60125177 | AN33: 54.1553955 | AO33: 54.70953924 | AP33: 55.44839755 | AQ33: 56.18725586 | AR33: 57
B34: 0.379 | C34: 57 | D34: 56.22419877 | E34: 55.44839755 | F34: 54.80189653 | G34: 54.1553955 | H34: 53.70781787 | I34: 53.26024024 | J34: 53.0044816 | K34: 52.74872295 | L34: 52.62936892 | M34: 52.51001488 | N34: 52.46525712 | O34: 52.42049936 | P34: 52.40733531 | Q34: 52.39417126 | R34: 52.39124592 | S34: 52.38832057 | T34: 52.38785867 | U34: 52.38739678 | V34: 52.38735059 | W34: 52.3873066 | X34: 52.3873066 | Y34: 52.38735059 | Z34: 52.38739678 | AA34: 52.38785867 | AB34: 52.38832057 | AC34: 52.39124592 | AD34: 52.39417126 | AE34: 52.40733531 | AF34: 52.42049936 | AG34: 52.46525712 | AH34: 52.51001488 | AI34: 52.62936892 | AJ34: 52.74872295 | AK34: 53.0044816 | AL34: 53.26024024 | AM34: 53.70781787 | AN34: 54.1553955 | AO34: 54.80189653 | AP34: 55.44839755 | AQ34: 56.22419877 | AR34: 57
B35: 0.394 | C35: 57 | D35: 56.22419877 | E35: 55.51304765 | F35: 54.80189653 | G35: 54.2548572 | H35: 53.70781787 | I35: 53.35614974 | J35: 53.0044816 | K35: 52.81692526 | L35: 52.62936892 | M35: 52.54731302 | N35: 52.46525712 | O35: 52.43629621 | P35: 52.40733531 | Q35: 52.39929061 | R35: 52.39124592 | S35: 52.38955229 | T35: 52.38785867 | U35: 52.38760463 | V35: 52.38735169 | W35: 52.38732859 | X35: 52.38732859 | Y35: 52.38735169 | Z35: 52.38760463 | AA35: 52.38785867 | AB35: 52.38955229 | AC35: 52.39124592 | AD35: 52.39929061 | AE35: 52.40733531 | AF35: 52.43629621 | AG35: 52.46525712 | AH35: 52.54731302 | AI35: 52.62936892 | AJ35: 52.81692526 | AK35: 53.0044816 | AL35: 53.35614974 | AM35: 53.70781787 | AN35: 54.2548572 | AO35: 54.80189653 | AP35: 55.51304765 | AQ35: 56.22419877 | AR35: 57
B36: 0.409 | C36: 57 | D36: 56.25652382 | E36: 55.51304765 | F36: 54.88395242 | G36: 54.2548572 | H36: 53.80550347 | I36: 53.35614974 | J36: 53.0865375 | K36: 52.81692526 | L36: 52.68211914 | M36: 52.54731302 | N36: 52.49180461 | O36: 52.43629621 | P36: 52.41779341 | Q36: 52.39929061 | R36: 52.39442145 | S36: 52.38955229 | T36: 52.38857846 | U36: 52.38760518 | V36: 52.38746661 | W36: 52.38734014 | X36: 52.38734014 | Y36: 52.38746661 | Z36: 52.38760518 | AA36: 52.38857846 | AB36: 52.38955229 | AC36: 52.39442145 | AD36: 52.39929061 | AE36: 52.41779341 | AF36: 52.43629621 | AG36: 52.49180461 | AH36: 52.54731302 | AI36: 52.68211914 | AJ36: 52.81692526 | AK36: 53.0865375 | AL36: 53.35614974 | AM36: 53.80550347 | AN36: 54.2548572 | AO36: 54.88395242 | AP36: 55.51304765 | AQ36: 56.25652382 | AR36: 57
B37: 0.424 | C37: 57 | D37: 56.25652382 | E37: 55.57023812 | F37: 54.88395242 | G37: 54.34472795 | H37: 53.80550347 | I37: 53.44602048 | J37: 53.0865375 | K37: 52.88432832 | L37: 52.68211914 | M37: 52.58696188 | N37: 52.49180461 | O37: 52.45479901 | P37: 52.41779341 | Q37: 52.40610743 | R37: 52.39442145 | S37: 52.39149996 | T37: 52.38857874 | U37: 52.38802254 | V37: 52.38747266 | W37: 52.38740338 | X37: 52.38740338 | Y37: 52.38747266 | Z37: 52.38802254 | AA37: 52.38857874 | AB37: 52.39149996 | AC37: 52.39442145 | AD37: 52.40610743 | AE37: 52.41779341 | AF37: 52.45479901 | AG37: 52.49180461 | AH37: 52.58696188 | AI37: 52.68211914 | AJ37: 52.88432832 | AK37: 53.0865375 | AL37: 53.44602048 | AM37: 53.80550347 | AN37: 54.34472795 | AO37: 54.88395242 | AP37: 55.57023812 | AQ37: 56.25652382 | AR37: 57
B38: 0.439 | C38: 57 | D38: 56.28511906 | E38: 55.57023812 | F38: 54.95748304 | G38: 54.34472795 | H38: 53.89537421 | I38: 53.44602048 | J38: 53.1651744 | K38: 52.88432832 | L38: 52.7356451 | M38: 52.58696188 | N38: 52.52088044 | O38: 52.45479901 | P38: 52.43045322 | Q38: 52.40610743 | R38: 52.3988037 | S38: 52.3915001 | T38: 52.38976125 | U38: 52.3880257 | V38: 52.38771296 | W38: 52.38743802 | X38: 52.38743802 | Y38: 52.38771296 | Z38: 52.3880257 | AA38: 52.38976125 | AB38: 52.3915001 | AC38: 52.3988037 | AD38: 52.40610743 | AE38: 52.43045322 | AF38: 52.45479901 | AG38: 52.52088044 | AH38: 52.58696188 | AI38: 52.7356451 | AJ38: 52.88432832 | AK38: 53.1651744 | AL38: 53.44602048 | AM38: 53.89537421 | AN38: 54.34472795 | AO38: 54.95748304 | AP38: 55.57023812 | AQ38: 56.28511906 | AR38: 57
B39: 0.454 | C39: 57 | D39: 56.28511906 | E39: 55.62130105 | F39: 54.95748304 | G39: 54.42642862 | H39: 53.89537421 | I39: 53.53027431 | J39: 53.1651744 | K39: 52.95040975 | L39: 52.7356451 | M39: 52.62826277 | N39: 52.52088044 | O39: 52.47566683 | P39: 52.43045322 | Q39: 52.41462846 | R39: 52.39880376 | S39: 52.39428247 | T39: 52.3897629 | U39: 52.3887371 | V39: 52.38773186 | W39: 52.38757549 | X39: 52.38757549 | Y39: 52.38773186 | Z39: 52.3887371 | AA39: 52.3897629 | AB39: 52.39428247 | AC39: 52.39880376 | AD39: 52.41462846 | AE39: 52.43045322 | AF39: 52.47566683 | AG39: 52.52088044 | AH39: 52.62826277 | AI39: 52.7356451 | AJ39: 52.95040975 | AK39: 53.1651744 | AL39: 53.53027431 | AM39: 53.89537421 | AN39: 54.42642862 | AO39: 54.95748304 | AP39: 55.62130105 | AQ39: 56.28511906 | AR39: 57
B40: 0.469 | C40: 57 | D40: 56.31065052 | E40: 55.62130105 | F40: 55.02386484 | G40: 54.42642862 | H40: 53.97835147 | I40: 53.53027431 | J40: 53.24034203 | K40: =f*(J39+L39)+(1-2*f)*K39 -> 52.95040975 | L40: 52.78933626 | M40: 52.62826277 | N40: 52.5519648 | O40: 52.47566683 | P40: 52.44514765 | Q40: 52.41462849 | R40: 52.40445547 | S40: 52.39428333 | T40: 52.39150979 | U40: 52.38874738 | V40: 52.3881563 | W40: 52.38765367 | X40: 52.38765367 | Y40: 52.3881563 | Z40: 52.38874738 | AA40: 52.39150979 | AB40: 52.39428333 | AC40: 52.40445547 | AD40: 52.41462849 | AE40: 52.44514765 | AF40: 52.47566683 | AG40: 52.5519648 | AH40: 52.62826277 | AI40: 52.78933626 | AJ40: 52.95040975 | AK40: 53.24034203 | AL40: 53.53027431 | AM40: 53.97835147 | AN40: 54.42642862 | AO40: 55.02386484 | AP40: 55.62130105 | AQ40: 56.31065052 | AR40: 57
B41: 0.484 | C41: 57 | D41: 56.31065052 | E41: 55.66725768 | F41: 55.02386484 | G41: 54.50110815 | H41: 53.97835147 | I41: 53.60934675 | J41: 53.24034203 | K41: 53.01483914 | L41: 52.78933626 | M41: 52.67065053 | N41: 52.5519648 | O41: 52.49855622 | P41: 52.44514766 | Q41: 52.42480156 | R41: 52.40445591 | S41: 52.39798263 | T41: 52.39151535 | U41: 52.38983304 | V41: 52.38820053 | W41: 52.38790498 | X41: 52.38790498 | Y41: 52.38820053 | Z41: 52.38983304 | AA41: 52.39151535 | AB41: 52.39798263 | AC41: 52.40445591 | AD41: 52.42480156 | AE41: 52.44514766 | AF41: 52.49855622 | AG41: 52.5519648 | AH41: 52.67065053 | AI41: 52.78933626 | AJ41: 53.01483914 | AK41: 53.24034203 | AL41: 53.60934675 | AM41: 53.97835147 | AN41: 54.50110815 | AO41: 55.02386484 | AP41: 55.66725768 | AQ41: 56.31065052 | AR41: 57
B42: 0.499 | C42: 57 | D42: 56.33362884 | E42: 55.66725768 | F42: 55.08418292 | G42: 54.50110815 | H42: 54.05522745 | I42: 53.60934675 | J42: 53.31209294 | K42: 53.01483914 | L42: 52.84274484 | M42: 52.67065053 | N42: 52.58460338 | O42: 52.49855623 | P42: 52.46167889 | Q42: 52.42480179 | R42: 52.41139209 | S42: 52.39798563 | T42: 52.39390783 | U42: 52.38985794 | V42: 52.38886901 | W42: 52.38805276 | X42: 52.38805276 | Y42: 52.38886901 | Z42: 52.38985794 | AA42: 52.39390783 | AB42: 52.39798563 | AC42: 52.41139209 | AD42: 52.42480179 | AE42: 52.46167889 | AF42: 52.49855623 | AG42: 52.58460338 | AH42: 52.67065053 | AI42: 52.84274484 | AJ42: 53.01483914 | AK42: 53.31209294 | AL42: 53.60934675 | AM42: 54.05522745 | AN42: 54.50110815 | AO42: 55.08418292 | AP42: 55.66725768 | AQ42: 56.33362884 | AR42: 57
B43: 0.514 | C43: 57 | D43: 56.33362884 | E43: 55.70890588 | F43: 55.08418292 | G43: 54.56970518 | H43: 54.05522745 | I43: 53.6836602 | J43: 53.31209294 | K43: 53.07741889 | L43: 52.84274484 | M43: 52.71367411 | N43: 52.58460338 | O43: 52.52314113 | P43: 52.46167901 | Q43: 52.43653549 | R43: 52.41139371 | S43: 52.40264996 | T43: 52.39392179 | U43: 52.39138842 | V43: 52.38895535 | W43: 52.38846088 | X43: 52.38846088 | Y43: 52.38895535 | Z43: 52.39138842 | AA43: 52.39392179 | AB43: 52.40264996 | AC43: 52.41139371 | AD43: 52.43653549 | AE43: 52.46167901 | AF43: 52.52314113 | AG43: 52.58460338 | AH43: 52.71367411 | AI43: 52.84274484 | AJ43: 53.07741889 | AK43: 53.31209294 | AL43: 53.6836602 | AM43: 54.05522745 | AN43: 54.56970518 | AO43: 55.08418292 | AP43: 55.70890588 | AQ43: 56.33362884 | AR43: 57
B44: 0.529 | C44: 57 | D44: 56.35445294 | E44: 55.70890588 | F44: 55.13930553 | G44: 54.56970518 | H44: 54.12668269 | I44: 53.6836602 | J44: 53.38053954 | K44: 53.07741889 | L44: 52.8955465 | M44: 52.71367411 | N44: 52.61840762 | O44: 52.5231412 | P44: 52.47983831 | Q44: 52.43653636 | R44: 52.41959273 | S44: 52.40265775 | T44: 52.39701919 | U44: 52.39143857 | V44: 52.38992465 | W44: 52.38870812 | X44: 52.38870812 | Y44: 52.38992465 | Z44: 52.39143857 | AA44: 52.39701919 | AB44: 52.40265775 | AC44: 52.41959273 | AD44: 52.43653636 | AE44: 52.47983831 | AF44: 52.5231412 | AG44: 52.61840762 | AH44: 52.71367411 | AI44: 52.8955465 | AJ44: 53.07741889 | AK44: 53.38053954 | AL44: 53.6836602 | AM44: 54.12668269 | AN44: 54.56970518 | AO44: 55.13930553 | AP44: 55.70890588 | AQ44: 56.35445294 | AR44: 57
B45: 0.544 | C45: 57 | D45: 56.35445294 | E45: 55.74687923 | F45: 55.13930553 | G45: 54.63299411 | H45: 54.12668269 | I45: 53.75361112 | J45: 53.38053954 | K45: 53.13804302 | L45: 52.8955465 | M45: 52.75697706 | N45: 52.61840765 | O45: 52.54912297 | P45: 52.47983878 | Q45: 52.44971552 | R45: 52.41959705 | S45: 52.40830596 | T45: 52.39704816 | U45: 52.39347192 | V45: 52.39007334 | W45: 52.38931638 | X45: 52.38931638 | Y45: 52.39007334 | Z45: 52.39347192 | AA45: 52.39704816 | AB45: 52.40830596 | AC45: 52.41959705 | AD45: 52.44971552 | AE45: 52.47983878 | AF45: 52.54912297 | AG45: 52.61840765 | AH45: 52.75697706 | AI45: 52.8955465 | AJ45: 53.13804302 | AK45: 53.38053954 | AL45: 53.75361112 | AM45: 54.12668269 | AN45: 54.63299411 | AO45: 55.13930553 | AP45: 55.74687923 | AQ45: 56.35445294 | AR45: 57
B46: 0.559 | C46: 57 | D46: 56.37343962 | E46: 55.74687923 | F46: 55.18993667 | G46: 54.63299411 | H46: 54.19330261 | I46: 53.75361112 | J46: 53.44582707 | K46: 53.13804302 | L46: 52.94751004 | M46: 52.75697708 | N46: 52.65305001 | O46: 52.54912322 | P46: 52.49941924 | Q46: 52.44971792 | R46: 52.42901074 | S46: 52.40832261 | T46: 52.40088894 | U46: 52.39356075 | V46: 52.39139415 | W46: 52.38969486 | X46: 52.38969486 | Y46: 52.39139415 | Z46: 52.39356075 | AA46: 52.40088894 | AB46: 52.40832261 | AC46: 52.42901074 | AD46: 52.44971792 | AE46: 52.49941924 | AF46: =f*(AE45+AG45)+(1-2*f)*AF45 -> 52.54912322 | AG46: 52.65305001 | AH46: 52.75697708 | AI46: 52.94751004 | AJ46: 53.13804302 | AK46: 53.44582707 | AL46: 53.75361112 | AM46: 54.19330261 | AN46: 54.63299411 | AO46: 55.18993667 | AP46: 55.74687923 | AQ46: 56.37343962 | AR46: 57
B47: 0.574 | C47: 57 | D47: 56.37343962 | E47: 55.78168814 | F47: 55.18993667 | G47: 54.69161964 | H47: 54.19330261 | I47: 53.81956484 | J47: 53.44582707 | K47: 53.19666855 | L47: 52.94751005 | M47: 52.80028003 | N47: 52.65305015 | O47: 52.57623463 | P47: 52.49942057 | Q47: 52.46421499 | R47: 52.42902026 | S47: 52.41494984 | T47: 52.40094168 | U47: 52.39614155 | V47: 52.39162781 | W47: 52.39054451 | X47: 52.39054451 | Y47: 52.39162781 | Z47: 52.39614155 | AA47: 52.40094168 | AB47: 52.41494984 | AC47: 52.42902026 | AD47: 52.46421499 | AE47: 52.49942057 | AF47: 52.57623463 | AG47: 52.65305015 | AH47: 52.80028003 | AI47: 52.94751005 | AJ47: 53.19666855 | AK47: 53.44582707 | AL47: 53.81956484 | AM47: 54.19330261 | AN47: 54.69161964 | AO47: 55.18993667 | AP47: 55.78168814 | AQ47: 56.37343962 | AR47: 57
B48: 0.589 | C48: 57 | D48: 56.39084407 | E48: 55.78168814 | F48: 55.23665389 | G48: 54.69161964 | H48: 54.25559224 | I48: 53.81956484 | J48: 53.5081167 | K48: 53.19666856 | L48: 52.99847429 | M48: 52.8002801 | N48: 52.68825733 | O48: 52.57623536 | P48: 52.52022481 | Q48: 52.46422041 | R48: 52.43958242 | S48: 52.41498097 | T48: 52.40554569 | U48: 52.39628474 | V48: 52.39334303 | W48: 52.39108616 | X48: 52.39108616 | Y48: 52.39334303 | Z48: 52.39628474 | AA48: 52.40554569 | AB48: 52.41498097 | AC48: 52.43958242 | AD48: 52.46422041 | AE48: 52.52022481 | AF48: 52.57623536 | AG48: 52.68825733 | AH48: 52.8002801 | AI48: 52.99847429 | AJ48: 53.19666856 | AK48: 53.5081167 | AL48: 53.81956484 | AM48: 54.25559224 | AN48: 54.69161964 | AO48: 55.23665389 | AP48: 55.78168814 | AQ48: 56.39084407 | AR48: 57
B49: 0.604 | C49: 57 | D49: 56.39084407 | E49: 55.81374898 | F49: 55.23665389 | G49: 54.74612307 | H49: 54.25559224 | I49: 53.88185447 | J49: 53.5081167 | K49: 53.25329549 | L49: 52.99847433 | M49: 52.84336581 | N49: 52.68825773 | O49: 52.60424107 | P49: 52.52022788 | Q49: 52.47990361 | R49: 52.43960069 | S49: 52.42256406 | T49: 52.40563286 | U49: 52.39944436 | V49: 52.39368545 | W49: 52.39221459 | X49: 52.39221459 | Y49: 52.39368545 | Z49: 52.39944436 | AA49: 52.40563286 | AB49: 52.42256406 | AC49: 52.43960069 | AD49: 52.47990361 | AE49: 52.52022788 | AF49: 52.60424107 | AG49: 52.68825773 | AH49: 52.84336581 | AI49: 52.99847433 | AJ49: 53.25329549 | AK49: 53.5081167 | AL49: 53.88185447 | AM49: 54.25559224 | AN49: 54.74612307 | AO49: 55.23665389 | AP49: 55.81374898 | AQ49: 56.39084407 | AR49: 57
B50: 0.619 | C50: 57 | D50: 56.40687449 | E50: 55.81374898 | F50: 55.27993603 | G50: 54.74612307 | H50: 54.31398877 | I50: 53.88185447 | J50: 53.56757498 | K50: 53.25329551 | L50: 53.04833065 | M50: 52.84336603 | N50: 52.72380344 | O50: 52.60424281 | P50: 52.54207234 | Q50: 52.47991429 | R50: 52.45123383 | S50: 52.42261677 | T50: 52.41100421 | U50: 52.39965915 | V50: 52.39582948 | W50: 52.39295002 | X50: 52.39295002 | Y50: 52.39582948 | Z50: 52.39965915 | AA50: 52.41100421 | AB50: 52.42261677 | AC50: 52.45123383 | AD50: 52.47991429 | AE50: 52.54207234 | AF50: 52.60424281 | AG50: 52.72380344 | AH50: 52.84336603 | AI50: 53.04833065 | AJ50: 53.25329551 | AK50: 53.56757498 | AL50: 53.88185447 | AM50: 54.31398877 | AN50: 54.74612307 | AO50: 55.27993603 | AP50: 55.81374898 | AQ50: 56.40687449 | AR50: 57
B51: 0.634 | C51: 57 | D51: 56.40687449 | E51: 55.84340526 | F51: 55.27993603 | G51: 54.7969624 | H51: 54.31398877 | I51: 53.94078188 | J51: 53.56757499 | K51: 53.30795282 | L51: 53.04833077 | M51: 52.88606705 | N51: 52.72380442 | O51: 52.63293789 | P51: 52.54207855 | Q51: 52.49665309 | R51: 52.45126553 | S51: 52.43111902 | T51: 52.41113796 | U51: 52.40341684 | V51: 52.39630459 | W51: 52.39438975 | X51: 52.39438975 | Y51: 52.39630459 | Z51: 52.40341684 | AA51: 52.41113796 | AB51: 52.43111902 | AC51: 52.45126553 | AD51: 52.49665309 | AE51: 52.54207855 | AF51: 52.63293789 | AG51: 52.72380442 | AH51: 52.88606705 | AI51: 53.04833077 | AJ51: 53.30795282 | AK51: 53.56757499 | AL51: 53.94078188 | AM51: 54.31398877 | AN51: 54.7969624 | AO51: 55.27993603 | AP51: 55.84340526 | AQ51: 56.40687449 | AR51: 57
B52: 0.649 | C52: 57 | D52: 56.42170263 | E52: 55.84340526 | F52: 55.32018383 | G52: 54.7969624 | H52: 54.36887214 | I52: 53.94078188 | J52: 53.62436735 | K52: 53.30795288 | L52: 53.09700993 | M52: 52.88606759 | N52: 52.75950247 | O52: 52.63294148 | P52: 52.56479549 | Q52: 52.49667204 | R52: 52.46388605 | S52: 52.43120175 | T52: 52.41726793 | U52: 52.40372128 | V52: 52.3989033 | W52: 52.39534717 | X52: 52.39534717 | Y52: 52.3989033 | Z52: 52.40372128 | AA52: 52.41726793 | AB52: 52.43120175 | AC52: 52.46388605 | AD52: 52.49667204 | AE52: 52.56479549 | AF52: 52.63294148 | AG52: 52.75950247 | AH52: 52.88606759 | AI52: 53.09700993 | AJ52: 53.30795288 | AK52: 53.62436735 | AL52: 53.94078188 | AM52: 54.36887214 | AN52: 54.7969624 | AO52: 55.32018383 | AP52: 55.84340526 | AQ52: 56.42170263 | AR52: 57
B53: 0.664 | C53: 57 | D53: 56.42170263 | E53: 55.87094323 | F53: 55.32018383 | G53: 54.84452798 | H53: 54.36887214 | I53: 53.99661974 | J53: 53.62436738 | K53: 53.36068864 | L53: 53.09701024 | M53: 52.9282562 | N53: =f*(M52+O52)+(1-2*f)*N52 -> 52.75950454 | O53: 52.66214898 | P53: 52.56480676 | Q53: 52.51434077 | R53: 52.46393689 | S53: 52.44057699 | T53: 52.41746151 | U53: 52.40808561 | V53: 52.39953422 | W53: 52.39712523 | X53: 52.39712523 | Y53: 52.39953422 | Z53: 52.40808561 | AA53: 52.41746151 | AB53: 52.44057699 | AC53: 52.46393689 | AD53: 52.51434077 | AE53: 52.56480676 | AF53: 52.66214898 | AG53: 52.75950454 | AH53: 52.9282562 | AI53: 53.09701024 | AJ53: 53.36068864 | AK53: 53.62436738 | AL53: 53.99661974 | AM53: 54.36887214 | AN53: 54.84452798 | AO53: 55.32018383 | AP53: 55.87094323 | AQ53: 56.42170263 | AR53: 57
B54: 0.679 | C54: 57 | D54: 56.43547161 | E54: 55.87094323 | F54: 55.35773561 | G54: 54.84452798 | H54: 54.42057386 | I54: 53.99661976 | J54: 53.67865419 | K54: 53.36068881 | L54: 53.14447242 | M54: 52.92825739 | N54: 52.79520259 | O54: 52.66215565 | P54: 52.58824487 | Q54: 52.51437183 | R54: 52.47745888 | S54: 52.4406992 | T54: 52.4243313 | U54: 52.40849787 | V54: 52.40260542 | W54: 52.39832973 | X54: 52.39832973 | Y54: 52.40260542 | Z54: 52.40849787 | AA54: 52.4243313 | AB54: 52.4406992 | AC54: 52.47745888 | AD54: 52.51437183 | AE54: 52.58824487 | AF54: 52.66215565 | AG54: 52.79520259 | AH54: 52.92825739 | AI54: 53.14447242 | AJ54: 53.36068881 | AK54: 53.67865419 | AL54: 53.99661976 | AM54: 54.42057386 | AN54: 54.84452798 | AO54: 55.35773561 | AP54: 55.87094323 | AQ54: 56.43547161 | AR54: 57
B55: 0.694 | C55: 57 | D55: 56.43547161 | E55: 55.89660361 | F55: 55.35773561 | G55: 54.88915473 | H55: 54.42057387 | I55: 54.04961403 | J55: 53.67865428 | K55: 53.4115633 | L55: 53.1444731 | M55: 52.9698375 | N55: 52.79520652 | O55: 52.69172373 | P55: 52.58826374 | Q55: 52.53285188 | R55: 52.47753551 | S55: 52.45089509 | T55: 52.42459853 | U55: 52.41346836 | V55: 52.4034138 | W55: 52.40046758 | X55: 52.40046758 | Y55: 52.4034138 | Z55: 52.41346836 | AA55: 52.42459853 | AB55: 52.45089509 | AC55: 52.47753551 | AD55: 52.53285188 | AE55: 52.58826374 | AF55: 52.69172373 | AG55: 52.79520652 | AH55: 52.9698375 | AI55: 53.1444731 | AJ55: 53.4115633 | AK55: 53.67865428 | AL55: 54.04961403 | AM55: 54.42057387 | AN55: 54.88915473 | AO55: 55.35773561 | AP55: 55.89660361 | AQ55: 56.43547161 | AR55: 57
B56: 0.709 | C56: 57 | D56: 56.4483018 | E56: 55.89660361 | F56: 55.39287917 | G56: 54.88915474 | H56: 54.46938438 | I56: 54.04961408 | J56: 53.73058866 | K56: 53.41156369 | L56: 53.1907004 | M56: 52.96983981 | N56: 52.83078062 | O56: 52.69173513 | P56: 52.6122878 | Q56: 52.53289963 | R56: 52.49187349 | S56: 52.45106702 | T56: 52.43218173 | U56: 52.41400617 | V56: 52.40696797 | W56: 52.40194069 | X56: 52.40194069 | Y56: 52.40696797 | Z56: 52.41400617 | AA56: 52.43218173 | AB56: 52.45106702 | AC56: 52.49187349 | AD56: 52.53289963 | AE56: 52.6122878 | AF56: 52.69173513 | AG56: 52.83078062 | AH56: 52.96983981 | AI56: 53.1907004 | AJ56: 53.41156369 | AK56: 53.73058866 | AL56: 54.04961408 | AM56: 54.46938438 | AN56: 54.88915474 | AO56: 55.39287917 | AP56: 55.89660361 | AQ56: 56.4483018 | AR56: 57
B57: 0.724 | C57: 57 | D57: 56.44830181 | E57: 55.92059049 | F57: 55.39287917 | G57: 54.93113178 | H57: 54.46938441 | I57: 54.09998652 | J57: 53.73058889 | K57: 53.46064453 | L57: 53.19070175 | M57: 53.01074051 | N57: 52.83078747 | O57: 52.72153421 | P57: 52.61231738 | Q57: 52.55208065 | R57: 52.49198333 | S57: 52.46202761 | T57: 52.4325366 | U57: 52.41957485 | V57: 52.40797343 | W57: 52.40445433 | X57: 52.40445433 | Y57: 52.40797343 | Z57: 52.41957485 | AA57: 52.4325366 | AB57: 52.46202761 | AC57: 52.49198333 | AD57: 52.55208065 | AE57: 52.61231738 | AF57: 52.72153421 | AG57: 52.83078747 | AH57: 53.01074051 | AI57: 53.19070175 | AJ57: 53.46064453 | AK57: 53.73058889 | AL57: 54.09998652 | AM57: 54.46938441 | AN57: 54.93113178 | AO57: 55.39287917 | AP57: 55.92059049 | AQ57: 56.44830181 | AR57: 57
B58: 0.739 | C58: 57 | D58: 56.46029524 | E58: 55.92059049 | F58: 55.42586113 | G58: 54.93113179 | H58: 54.51555915 | I58: 54.09998665 | J58: 53.78031553 | K58: 53.46064532 | L58: 53.23569252 | M58: 53.01074461 | N58: 52.86613736 | O58: 52.72155242 | P58: 52.63680743 | Q58: 52.55215035 | R58: 52.50705413 | S58: 52.46225996 | T58: 52.44080123 | U58: 52.42025501 | V58: 52.41201459 | W58: 52.40621388 | X58: 52.40621388 | Y58: 52.41201459 | Z58: 52.42025501 | AA58: 52.44080123 | AB58: 52.46225996 | AC58: 52.50705413 | AD58: 52.55215035 | AE58: 52.63680743 | AF58: 52.72155242 | AG58: 52.86613736 | AH58: 53.01074461 | AI58: 53.23569252 | AJ58: 53.46064532 | AK58: 53.78031553 | AL58: 54.09998665 | AM58: 54.51555915 | AN58: 54.93113179 | AO58: 55.42586113 | AP58: 55.92059049 | AQ58: 56.46029524 | AR58: 57
B59: 0.754 | C59: 57 | D59: 56.46029524 | E59: 55.94307819 | F59: 55.42586114 | G59: 54.97071014 | H59: 54.51555922 | I59: 54.14793734 | J59: 53.78031598 | K59: 53.50800403 | L59: 53.23569496 | M59: 53.05091494 | N59: 52.86614852 | O59: 52.75147239 | P59: 52.63685139 | Q59: 52.57193078 | R59: 52.50720516 | S59: 52.47392768 | T59: 52.44125749 | U59: 52.42640791 | V59: 52.41323444 | W59: 52.40911423 | X59: 52.40911423 | Y59: 52.41323444 | Z59: 52.42640791 | AA59: 52.44125749 | AB59: 52.47392768 | AC59: 52.50720516 | AD59: 52.57193078 | AE59: 52.63685139 | AF59: 52.75147239 | AG59: 52.86614852 | AH59: 53.05091494 | AI59: =f*(AH58+AJ58)+(1-2*f)*AI58 -> 53.23569496 | AJ59: 53.50800403 | AK59: 53.78031598 | AL59: 54.14793734 | AM59: 54.51555922 | AN59: 54.97071014 | AO59: 55.42586114 | AP59: 55.94307819 | AQ59: 56.46029524 | AR59: 57
B60: 0.769 | C60: 57 | D60: 56.47153909 | E60: 55.94307819 | F60: 55.45689416 | G60: 54.97071018 | H60: 54.55932374 | I60: 54.1479376 | J60: 53.82797068 | K60: 53.50800547 | L60: 53.27945948 | M60: 53.05092174 | N60: 52.90119367 | O60: 52.75149995 | P60: 52.66170159 | Q60: 52.57202827 | R60: 52.52292923 | S60: 52.47423132 | T60: 52.45016779 | U60: 52.42724596 | V60: 52.41776107 | W60: 52.41117434 | X60: 52.41117434 | Y60: 52.41776107 | Z60: 52.42724596 | AA60: 52.45016779 | AB60: 52.47423132 | AC60: 52.52292923 | AD60: 52.57202827 | AE60: 52.66170159 | AF60: 52.75149995 | AG60: 52.90119367 | AH60: 53.05092174 | AI60: 53.27945948 | AJ60: 53.50800547 | AK60: 53.82797068 | AL60: 54.1479376 | AM60: 54.55932374 | AN60: 54.97071018 | AO60: 55.45689416 | AP60: 55.94307819 | AQ60: 56.47153909 | AR60: 57
B61: 0.784 | C61: 57 | D61: 56.4715391 | E61: 55.96421663 | F61: 55.45689419 | G61: 55.00810895 | H61: 54.55932389 | I61: 54.19364721 | J61: 53.82797154 | K61: 53.55371508 | L61: 53.27946361 | M61: 53.09032658 | N61: 52.90121085 | O61: 52.78144763 | P61: 52.66176411 | Q61: 52.59231541 | R61: 52.5231298 | S61: 52.48654851 | T61: 52.45073864 | U61: 52.43396443 | V61: 52.41921015 | W61: 52.4144677 | X61: 52.4144677 | Y61: 52.41921015 | Z61: 52.43396443 | AA61: 52.45073864 | AB61: 52.48654851 | AC61: 52.5231298 | AD61: 52.59231541 | AE61: 52.66176411 | AF61: 52.78144763 | AG61: 52.90121085 | AH61: 53.09032658 | AI61: 53.27946361 | AJ61: 53.55371508 | AK61: 53.82797154 | AL61: 54.19364721 | AM61: 54.55932389 | AN61: 55.00810895 | AO61: 55.45689419 | AP61: 55.96421663 | AQ61: 56.4715391 | AR61: 57
B62: 0.799 | C62: 57 | D62: 56.48210831 | E62: 55.96421664 | F62: 55.48616279 | G62: 55.00810904 | H62: 54.60087808 | I62: 54.19364771 | J62: 53.87368115 | K62: 53.55371757 | L62: 53.32202083 | M62: 53.09033723 | N62: 52.9358871 | O62: 52.78148748 | P62: 52.68688152 | Q62: 52.59244695 | R62: 52.53943196 | S62: 52.48693422 | T62: 52.46025647 | U62: 52.4349744 | V62: 52.42421607 | W62: 52.41683893 | X62: 52.41683893 | Y62: 52.42421607 | Z62: 52.4349744 | AA62: 52.46025647 | AB62: 52.48693422 | AC62: 52.53943196 | AD62: 52.59244695 | AE62: 52.68688152 | AF62: 52.78148748 | AG62: 52.9358871 | AH62: 53.09033723 | AI62: 53.32202083 | AJ62: 53.55371757 | AK62: 53.87368115 | AL62: 54.19364771 | AM62: 54.60087808 | AN62: 55.00810904 | AO62: 55.48616279 | AP62: 55.96421664 | AQ62: 56.48210831 | AR62: 57
B63: 0.814 | C63: 57 | D63: 56.48210832 | E63: 55.98413555 | F63: 55.48616284 | G63: 55.04352044 | H63: 54.60087838 | I63: 54.23727961 | J63: 53.87368264 | K63: 53.59785099 | L63: 53.3220274 | M63: 53.12895397 | N63: 52.93591235 | O63: 52.81138431 | P63: 52.68696722 | Q63: 52.61315674 | R63: 52.53969059 | S63: 52.49984421 | T63: 52.46095431 | U63: 52.44223627 | V63: 52.42590666 | W63: 52.4205275 | X63: 52.4205275 | Y63: 52.42590666 | Z63: 52.44223627 | AA63: 52.46095431 | AB63: 52.49984421 | AC63: 52.53969059 | AD63: 52.61315674 | AE63: 52.68696722 | AF63: 52.81138431 | AG63: 52.93591235 | AH63: 53.12895397 | AI63: 53.3220274 | AJ63: 53.59785099 | AK63: 53.87368264 | AL63: 54.23727961 | AM63: 54.60087838 | AN63: 55.04352044 | AO63: 55.48616284 | AP63: 55.98413555 | AQ63: 56.48210832 | AR63: 57
B64: 0.829 | C64: 57 | D64: 56.49206778 | E64: 55.98413558 | F64: 55.51382799 | G64: 55.04352061 | H64: 54.64040002 | I64: 54.23728051 | J64: 53.9175653 | K64: 53.59785502 | L64: 53.36340248 | M64: 53.12896988 | N64: 52.97016914 | O64: 52.81143978 | P64: 52.71227052 | Q64: 52.6133289 | R64: 52.55650048 | S64: 52.50032245 | T64: 52.47104024 | U64: 52.44343049 | V64: 52.43138188 | W64: 52.42321708 | X64: 52.42321708 | Y64: 52.43138188 | Z64: 52.44343049 | AA64: 52.47104024 | AB64: 52.50032245 | AC64: 52.55650048 | AD64: 52.6133289 | AE64: 52.71227052 | AF64: 52.81143978 | AG64: 52.97016914 | AH64: 53.12896988 | AI64: 53.36340248 | AJ64: 53.59785502 | AK64: 53.9175653 | AL64: 54.23728051 | AM64: 54.64040002 | AN64: 55.04352061 | AO64: 55.51382799 | AP64: 55.98413558 | AQ64: 56.49206778 | AR64: 57
B65: 0.844 | C65: 57 | D65: 56.49206779 | E65: 56.00294789 | F65: 55.51382809 | G65: 55.07711401 | H65: 54.64040056 | I65: 54.27898266 | J65: 53.91756776 | K65: 53.64048389 | L65: 53.36341245 | M65: 53.16678581 | N65: 52.97020483 | O65: 52.84121983 | P65: 52.71238434 | Q65: 52.6343855 | R65: 52.55682567 | S65: 52.51377036 | T65: 52.47187647 | U65: 52.45121106 | V65: 52.43332378 | W65: 52.42729948 | X65: 52.42729948 | Y65: 52.43332378 | Z65: 52.45121106 | AA65: 52.47187647 | AB65: 52.51377036 | AC65: 52.55682567 | AD65: 52.6343855 | AE65: 52.71238434 | AF65: 52.84121983 | AG65: 52.97020483 | AH65: 53.16678581 | AI65: 53.36341245 | AJ65: 53.64048389 | AK65: 53.91756776 | AL65: 54.27898266 | AM65: 54.64040056 | AN65: 55.07711401 | AO65: 55.51382809 | AP65: 56.00294789 | AQ65: 56.49206779 | AR65: 57
B66: 0.859 | C66: 57 | D66: 56.50147394 | E66: 56.00294794 | F66: 55.54003095 | G66: 55.07711433 | H66: 54.67804834 | I66: 54.27898416 | J66: 53.95973328 | K66: 53.64049011 | L66: 53.40363485 | M66: 53.16680864 | N66: 53.00400282 | O66: 52.84129459 | P66: 52.73780266 | Q66: =f*(P65+R65)+(1-2*f)*Q65 -> 52.63460501 | R66: 52.57407793 | S66: 52.51435107 | T66: 52.48249071 | U66: 52.45260012 | V66: 52.43925527 | W66: 52.43031163 | X66: 52.43031163 | Y66: 52.43925527 | Z66: 52.45260012 | AA66: 52.48249071 | AB66: 52.51435107 | AC66: 52.57407793 | AD66: 52.63460501 | AE66: 52.73780266 | AF66: 52.84129459 | AG66: 53.00400282 | AH66: 53.16680864 | AI66: 53.40363485 | AJ66: 53.64049011 | AK66: 53.95973328 | AL66: 54.27898416 | AM66: 54.67804834 | AN66: 55.07711433 | AO66: 55.54003095 | AP66: 56.00294794 | AQ66: 56.50147394 | AR66: 57
B67: 0.874 | C67: 57 | D67: 56.50147397 | E67: 56.02075245 | F67: 55.54003113 | G67: 55.10903964 | H67: 54.67804924 | I67: 54.31889081 | J67: 53.95973713 | K67: 53.68168406 | L67: 53.40364937 | M67: 53.20381883 | N67: 53.00405161 | O67: 52.87090274 | P67: 52.7379498 | Q67: 52.6559403 | R67: 52.57447804 | S67: 52.52828432 | T67: 52.4834756 | U67: 52.46087299 | V67: 52.44145588 | W67: 52.43478345 | X67: 52.43478345 | Y67: 52.44145588 | Z67: 52.46087299 | AA67: 52.4834756 | AB67: 52.52828432 | AC67: 52.57447804 | AD67: 52.6559403 | AE67: 52.7379498 | AF67: 52.87090274 | AG67: 53.00405161 | AH67: 53.20381883 | AI67: 53.40364937 | AJ67: 53.68168406 | AK67: 53.95973713 | AL67: 54.31889081 | AM67: 54.67804924 | AN67: 55.10903964 | AO67: 55.54003113 | AP67: 56.02075245 | AQ67: 56.50147397 | AR67: 57
B68: 0.889 | C68: 57 | D68: 56.51037622 | E68: 56.02075255 | F68: 55.56489604 | G68: 55.10904019 | H68: 54.71396522 | I68: 54.31889319 | J68: 54.00028743 | K68: 53.68169325 | L68: 53.44275145 | M68: 53.20385049 | N68: 53.03736079 | O68: 52.8710007 | P68: 52.76342152 | Q68: 52.65621392 | R68: 52.59211231 | S68: 52.52897682 | T68: 52.49457866 | U68: 52.46246574 | V68: 52.44782822 | W68: 52.43811967 | X68: 52.43811967 | Y68: 52.44782822 | Z68: 52.46246574 | AA68: 52.49457866 | AB68: 52.52897682 | AC68: 52.59211231 | AD68: 52.65621392 | AE68: 52.76342152 | AF68: 52.8710007 | AG68: 53.03736079 | AH68: 53.20385049 | AI68: 53.44275145 | AJ68: 53.68169325 | AK68: 54.00028743 | AL68: 54.31889319 | AM68: 54.71396522 | AN68: 55.10904019 | AO68: 55.56489604 | AP68: 56.02075255 | AQ68: 56.51037622 | AR68: 57
B69: 0.904 | C69: 57 | D69: 56.51037628 | E69: 56.03763613 | F69: 55.56489637 | G69: 55.13943063 | H69: 54.71396669 | I69: 54.35712633 | J69: 54.00029322 | K69: 53.72151944 | L69: 53.44277187 | M69: 53.24005612 | N69: 53.0374256 | O69: 52.90039115 | P69: 52.76360731 | Q69: 52.67776691 | R69: 52.59259537 | S69: 52.54334548 | T69: 52.49572128 | U69: 52.47120344 | V69: 52.4502927 | W69: 52.44297394 | X69: 52.44297394 | Y69: 52.4502927 | Z69: 52.47120344 | AA69: 52.49572128 | AB69: 52.54334548 | AC69: 52.59259537 | AD69: 52.67776691 | AE69: 52.76360731 | AF69: 52.90039115 | AG69: 53.0374256 | AH69: 53.24005612 | AI69: 53.44277187 | AJ69: 53.72151944 | AK69: 54.00029322 | AL69: 54.35712633 | AM69: 54.71396669 | AN69: 55.13943063 | AO69: 55.56489637 | AP69: 56.03763613 | AQ69: 56.51037628 | AR69: 57
B70: 0.919 | C70: 57 | D70: 56.51881807 | E70: 56.03763632 | F70: 55.58853338 | G70: 55.13943153 | H70: 54.74827848 | I70: 54.35712996 | J70: 54.03932288 | K70: 53.72153255 | L70: 53.48078778 | M70: 53.24009874 | N70: 53.07022364 | O70: 52.90051646 | P70: 52.78907903 | Q70: 52.67810134 | R70: 52.6105562 | S70: 52.54415832 | T70: 52.50727446 | U70: 52.47300699 | V70: 52.45708869 | W70: 52.44663332 | X70: 52.44663332 | Y70: 52.45708869 | Z70: 52.47300699 | AA70: 52.50727446 | AB70: 52.54415832 | AC70: 52.6105562 | AD70: 52.67810134 | AE70: 52.78907903 | AF70: 52.90051646 | AG70: 53.07022364 | AH70: 53.24009874 | AI70: 53.48078778 | AJ70: 53.72153255 | AK70: 54.03932288 | AL70: 54.35712996 | AM70: 54.74827848 | AN70: 55.13943153 | AO70: 55.58853338 | AP70: 56.03763632 | AQ70: 56.51881807 | AR70: 57
B71: 0.934 | C71: 57 | D71: 56.51881816 | E71: 56.05367572 | F71: 55.58853393 | G71: 55.16840593 | H71: 54.74828074 | I71: 54.39380068 | J71: 54.03933125 | K71: 53.76005533 | L71: 53.48081564 | M71: 53.27550571 | N71: 53.0703076 | O71: 52.92965133 | P71: 52.7893089 | Q71: 52.69981762 | R71: 52.61112983 | S71: 52.55891533 | T71: 52.50858266 | U71: 52.48218158 | V71: 52.45982016 | W71: 52.45186101 | X71: 52.45186101 | Y71: 52.45982016 | Z71: 52.48218158 | AA71: 52.50858266 | AB71: 52.55891533 | AC71: 52.61112983 | AD71: 52.69981762 | AE71: 52.7893089 | AF71: 52.92965133 | AG71: 53.0703076 | AH71: 53.27550571 | AI71: 53.48081564 | AJ71: 53.76005533 | AK71: 54.03933125 | AL71: 54.39380068 | AM71: 54.74828074 | AN71: 55.16840593 | AO71: 55.58853393 | AP71: 56.05367572 | AQ71: 56.51881816 | AR71: 57
B72: 0.949 | C72: 57 | D72: 56.52683786 | E72: 56.05367604 | F72: 55.61104083 | G72: 55.16840733 | H72: 54.78110331 | I72: 54.393806 | J72: 54.07692801 | K72: 53.76007345 | L72: 53.51778052 | M72: 53.27556162 | N72: 53.10257852 | O72: 52.92980825 | P72: 52.81473448 | Q72: 52.70021936 | R72: 52.62936647 | S72: 52.55985624 | T72: 52.52054845 | U72: 52.48420141 | V72: 52.46702129 | W72: 52.45584058 | X72: 52.45584058 | Y72: 52.46702129 | Z72: 52.48420141 | AA72: 52.52054845 | AB72: 52.55985624 | AC72: 52.62936647 | AD72: 52.70021936 | AE72: 52.81473448 | AF72: 52.92980825 | AG72: 53.10257852 | AH72: 53.27556162 | AI72: 53.51778052 | AJ72: 53.76007345 | AK72: 54.07692801 | AL72: =f*(AK71+AM71)+(1-2*f)*AL71 -> 54.393806 | AM72: 54.78110331 | AN72: 55.16840733 | AO72: 55.61104083 | AP72: 56.05367604 | AQ72: 56.52683786 | AR72: 57
B73: 0.964 | C73: 57 | D73: 56.52683802 | E73: 56.06893935 | F73: 55.61104169 | G73: 55.19607207 | H73: 54.78110667 | I73: 54.42901566 | J73: 54.07693972 | K73: 53.79735426 | L73: 53.51781753 | M73: 53.31017952 | N73: 53.10268493 | O73: 52.9586565 | P73: 52.81501381 | Q73: 52.72205047 | R73: 52.6300378 | S73: 52.57495746 | T73: 52.52202883 | U73: 52.49378487 | V73: 52.47002099 | W73: 52.46143094 | X73: 52.46143094 | Y73: 52.47002099 | Z73: 52.49378487 | AA73: 52.52202883 | AB73: 52.57495746 | AC73: 52.6300378 | AD73: 52.72205047 | AE73: 52.81501381 | AF73: 52.9586565 | AG73: 53.10268493 | AH73: 53.31017952 | AI73: 53.51781753 | AJ73: 53.79735426 | AK73: 54.07693972 | AL73: 54.42901566 | AM73: 54.78110667 | AN73: 55.19607207 | AO73: 55.61104169 | AP73: 56.06893935 | AQ73: 56.52683802 | AR73: 57
B74: 0.979 | C74: 57 | D74: 56.53446967 | E74: 56.06893986 | F74: 55.63250571 | G74: 55.19607418 | H74: 54.81254386 | I74: 54.42902319 | J74: 54.11318496 | K74: 53.79737863 | L74: 53.55376689 | M74: 53.31025123 | N74: 53.13441801 | O74: 52.95884937 | P74: 52.84035349 | Q74: 52.7225258 | R74: 52.64850397 | S74: 52.57603331 | T74: 52.53437117 | U74: 52.49602491 | V74: 52.4776079 | W74: 52.46572597 | X74: 52.46572597 | Y74: 52.4776079 | Z74: 52.49602491 | AA74: 52.53437117 | AB74: 52.57603331 | AC74: 52.64850397 | AD74: 52.7225258 | AE74: 52.84035349 | AF74: 52.95884937 | AG74: 53.13441801 | AH74: 53.31025123 | AI74: 53.55376689 | AJ74: 53.79737863 | AK74: 54.11318496 | AL74: 54.42902319 | AM74: 54.81254386 | AN74: 55.19607418 | AO74: 55.63250571 | AP74: 56.06893986 | AQ74: 56.53446967 | AR74: 57
B75: 0.994 | C75: 57 | D75: 56.53446993 | E75: 56.08348769 | F75: 55.63250702 | G75: 55.22252478 | H75: 54.81254869 | I75: 54.46286441 | J75: 54.11320091 | K75: 53.83347593 | L75: 53.55381493 | M75: 53.34409245 | N75: 53.1345503 | O75: 52.98738575 | P75: 52.84068759 | Q75: 52.74442873 | R75: 52.64927956 | S75: 52.59143757 | T75: 52.53602911 | U75: 52.50598954 | V75: 52.48087544 | W75: 52.47166693 | X75: 52.47166693 | Y75: 52.48087544 | Z75: 52.50598954 | AA75: 52.53602911 | AB75: 52.59143757 | AC75: 52.64927956 | AD75: 52.74442873 | AE75: 52.84068759 | AF75: 52.98738575 | AG75: 53.1345503 | AH75: 53.34409245 | AI75: 53.55381493 | AJ75: 53.83347593 | AK75: 54.11320091 | AL75: 54.46286441 | AM75: 54.81254869 | AN75: 55.22252478 | AO75: 55.63250702 | AP75: 56.08348769 | AQ75: 56.53446993 | AR75: 57
B76: 1.009 | C76: 57 | D76: 56.54174384 | E76: 56.08348847 | F76: 55.65300624 | G76: 55.22252785 | H76: 54.8426946 | I76: 54.4628748 | J76: 54.14817017 | K76: 53.83350792 | L76: 53.58878419 | M76: 53.34418262 | N76: 53.1657391 | O76: 52.98761894 | P76: 52.86590724 | Q76: 52.74498357 | R76: 52.66793315 | S76: 52.59265434 | T76: 52.54871355 | U76: 52.50845227 | V76: 52.48882824 | W76: 52.47627119 | X76: 52.47627119 | Y76: 52.48882824 | Z76: 52.50845227 | AA76: 52.54871355 | AB76: 52.59265434 | AC76: 52.66793315 | AD76: 52.74498357 | AE76: 52.86590724 | AF76: 52.98761894 | AG76: 53.1657391 | AH76: 53.34418262 | AI76: 53.58878419 | AJ76: 53.83350792 | AK76: 54.14817017 | AL76: 54.4628748 | AM76: 54.8426946 | AN76: 55.22252785 | AO76: 55.65300624 | AP76: 56.08348847 | AQ76: 56.54174384 | AR76: 57
B77: 1.024 | C77: 57 | D77: 56.54174424 | E77: 56.09737504 | F77: 55.65300816 | G77: 55.24785042 | H77: 54.84270132 | I77: 54.49543238 | J77: 54.14819136 | K77: 53.86847718 | L77: 53.58884527 | M77: 53.37726164 | N77: 53.16590078 | O77: 53.01582317 | P77: 52.86630126 | Q77: 52.76692019 | R77: 52.66881895 | S77: 52.60832335 | T77: 52.55055331 | U77: 52.51877089 | V77: 52.49236173 | W77: 52.48254971 | X77: 52.48254971 | Y77: 52.49236173 | Z77: 52.51877089 | AA77: 52.55055331 | AB77: 52.60832335 | AC77: 52.66881895 | AD77: 52.76692019 | AE77: 52.86630126 | AF77: 53.01582317 | AG77: 53.16590078 | AH77: 53.37726164 | AI77: 53.58884527 | AJ77: 53.86847718 | AK77: 54.14819136 | AL77: 54.49543238 | AM77: 54.84270132 | AN77: 55.24785042 | AO77: 55.65300816 | AP77: 56.09737504 | AQ77: 56.54174424 | AR77: 57
B78: 1.039 | C78: 57 | D78: =f*(C77+E77)+(1-2*f)*D77 -> 56.54868752 | E78: 56.0973762 | F78: 55.67261273 | G78: 55.24785474 | H78: 54.8716414 | I78: 54.49544634 | J78: 54.18195478 | K78: 53.86851831 | L78: 53.62286941 | M78: 53.37737302 | N78: 53.19654241 | O78: 53.01610102 | P78: 52.89137168 | Q78: 52.76756011 | R78: 52.68762177 | S78: 52.60968613 | T78: 52.56354712 | U78: 52.52145752 | V78: 52.5006603 | W78: 52.48745572 | X78: 52.48745572 | Y78: 52.5006603 | Z78: 52.52145752 | AA78: 52.56354712 | AB78: 52.60968613 | AC78: 52.68762177 | AD78: 52.76756011 | AE78: 52.89137168 | AF78: 53.01610102 | AG78: 53.19654241 | AH78: 53.37737302 | AI78: 53.62286941 | AJ78: 53.86851831 | AK78: 54.18195478 | AL78: 54.49544634 | AM78: 54.8716414 | AN78: 55.24785474 | AO78: 55.67261273 | AP78: 56.0973762 | AQ78: 56.54868752 | AR78: 57
B79: 1.054 | C79: 57 | D79: 56.5486881 | E79: 56.11065013 | F79: 55.67261547 | G79: 55.27212707 | H79: 54.87165054 | I79: 54.52679809 | J79: 54.18198233 | K79: 53.9024121 | L79: 53.62294567 | M79: 53.40970591 | N79: 53.19673702 | O79: 53.04395704 | P79: 52.89183056 | Q79: 52.78949673 | R79: 52.68862312 | S79: 52.62558445 | T79: =f*(S78+U78)+(1-2*f)*T78 -> 52.56557182 | U79: 52.53210371 | V79: 52.50445662 | W79: 52.49405801 | X79: 52.49405801 | Y79: 52.50445662 | Z79: 52.53210371 | AA79: 52.56557182 | AB79: 52.62558445 | AC79: 52.68862312 | AD79: 52.78949673 | AE79: 52.89183056 | AF79: 53.04395704 | AG79: 53.19673702 | AH79: 53.40970591 | AI79: 53.62294567 | AJ79: 53.9024121 | AK79: 54.18198233 | AL79: 54.52679809 | AM79: 54.87165054 | AN79: 55.27212707 | AO79: 55.67261547 | AP79: 56.11065013 | AQ79: 56.5486881 | AR79: 57
B80: 1.069 | C80: 57 | D80: 56.55532506 | E80: 56.11065179 | F80: 55.6913886 | G80: 55.27213301 | H80: 54.89946258 | I80: 54.52681644 | J80: 54.21460509 | K80: 53.902464 | L80: 53.656059 | M80: 53.40984134 | N80: 53.22683148 | O80: 53.04428379 | P80: 52.91672688 | Q80: 52.79022684 | R80: 52.70754059 | S80: 52.62709747 | T80: 52.57884408 | U80: 52.53501422 | V80: 52.51308086 | W80: 52.49925732 | X80: 52.49925732 | Y80: 52.51308086 | Z80: 52.53501422 | AA80: 52.57884408 | AB80: 52.62709747 | AC80: 52.70754059 | AD80: 52.79022684 | AE80: 52.91672688 | AF80: 53.04428379 | AG80: 53.22683148 | AH80: 53.40984134 | AI80: 53.656059 | AJ80: 53.902464 | AK80: 54.21460509 | AL80: 54.52681644 | AM80: 54.89946258 | AN80: 55.27213301 | AO80: 55.6913886 | AP80: 56.11065179 | AQ80: 56.55532506 | AR80: 57
B81: 1.084 | C81: 57 | D81: 56.55532589 | E81: 56.12335683 | F81: 55.6913924 | G81: 55.29542559 | H81: 54.89947472 | I81: 54.55703384 | J81: 54.21464022 | K81: 53.93533205 | L81: 53.65615267 | M81: 53.44144524 | N81: 53.22706257 | O81: 53.07177918 | P81: 52.91725532 | Q81: 52.81213374 | R81: 52.70866216 | S81: 52.64319233 | T81: 52.58105585 | U81: 52.54596247 | V81: 52.51713577 | W81: 52.50616909 | X81: 52.50616909 | Y81: 52.51713577 | Z81: 52.54596247 | AA81: 52.58105585 | AB81: 52.64319233 | AC81: 52.70866216 | AD81: 52.81213374 | AE81: 52.91725532 | AF81: 53.07177918 | AG81: 53.22706257 | AH81: 53.44144524 | AI81: 53.65615267 | AJ81: 53.93533205 | AK81: 54.21464022 | AL81: 54.55703384 | AM81: 54.89947472 | AN81: 55.29542559 | AO81: 55.6913924 | AP81: 56.12335683 | AQ81: 56.55532589 | AR81: 57
B82: 1.099 | C82: 57 | D82: 56.56167841 | E82: 56.12335914 | F82: 55.70939121 | G82: 55.29543356 | H82: 54.92622971 | I82: 54.55705747 | J82: 54.24618294 | K82: 53.93539644 | L82: 53.68838864 | M82: 53.44160762 | N82: 53.25661221 | O82: 53.07215894 | P82: 52.94195646 | Q82: 52.81295874 | R82: 52.72766303 | S82: 52.644859 | T82: 52.5945774 | U82: 52.54909581 | V82: 52.52606578 | W82: 52.51165243 | X82: 52.51165243 | Y82: 52.52606578 | Z82: 52.54909581 | AA82: 52.5945774 | AB82: 52.644859 | AC82: 52.72766303 | AD82: 52.81295874 | AE82: 52.94195646 | AF82: 53.07215894 | AG82: 53.25661221 | AH82: 53.44160762 | AI82: 53.68838864 | AJ82: 53.93539644 | AK82: 54.24618294 | AL82: 54.55705747 | AM82: 54.92622971 | AN82: 55.29543356 | AO82: 55.70939121 | AP82: 56.12335914 | AQ82: 56.56167841 | AR82: 57
B83: 1.114 | C83: 57 | D83: 56.56167957 | E83: 56.13553481 | F83: 55.70939635 | G83: 55.31781046 | H83: 54.92624551 | I83: 54.58620633 | J83: 54.24622696 | K83: 53.96728579 | L83: 53.68850203 | M83: 53.47250043 | N83: 53.25688328 | O83: 53.09928433 | P83: 52.94255884 | Q83: 52.83480975 | R83: 52.72890887 | S83: 52.66112022 | T83: 52.5969774 | U83: 52.56032159 | V83: 52.53037412 | W83: 52.5188591 | X83: 52.5188591 | Y83: 52.53037412 | Z83: 52.56032159 | AA83: 52.5969774 | AB83: 52.66112022 | AC83: 52.72890887 | AD83: 52.83480975 | AE83: 52.94255884 | AF83: 53.09928433 | AG83: 53.25688328 | AH83: 53.47250043 | AI83: 53.68850203 | AJ83: 53.96728579 | AK83: 54.24622696 | AL83: 54.58620633 | AM83: 54.92624551 | AN83: 55.31781046 | AO83: 55.70939635 | AP83: 56.13553481 | AQ83: 56.56167957 | AR83: 57
B84: 1.129 | C84: 57 | D84: 56.56776741 | E84: 56.13553796 | F84: 55.72667264 | G84: 55.31782093 | H84: 54.95200839 | I84: 54.58623623 | J84: 54.27674606 | K84: 53.96736449 | L84: 53.71989311 | M84: 53.47269266 | N84: 53.28589238 | O84: 53.09972106 | P84: 52.96704704 | Q84: 52.83573385 | R84: 52.74796498 | S84: 52.66294314 | T84: 52.6107209 | U84: 52.56367576 | V84: 52.53959035 | W84: 52.52461661 | X84: 52.52461661 | Y84: 52.53959035 | Z84: 52.56367576 | AA84: 52.6107209 | AB84: 52.66294314 | AC84: 52.74796498 | AD84: 52.83573385 | AE84: 52.96704704 | AF84: 53.09972106 | AG84: 53.28589238 | AH84: 53.47269266 | AI84: 53.71989311 | AJ84: 53.96736449 | AK84: 54.27674606 | AL84: 54.58623623 | AM84: 54.95200839 | AN84: 55.31782093 | AO84: 55.72667264 | AP84: 56.13553796 | AQ84: 56.56776741 | AR84: 57
B85: 1.144 | C85: 57 | D85: 56.56776898 | E85: 56.14722002 | F85: 55.72667945 | G85: 55.33934051 | H85: 54.95202858 | I85: 54.61437723 | J85: 54.27680036 | K85: 53.99831958 | L85: 53.72002858 | M85: 53.50289274 | N85: 53.28620686 | O85: 53.12646971 | P85: 52.96772746 | Q85: 52.85750601 | R85: 52.7493385 | S85: 52.67934294 | T85: 52.61330945 | U85: 52.57515563 | V85: 52.54414619 | W85: 52.53210348 | X85: 52.53210348 | Y85: 52.54414619 | Z85: 52.57515563 | AA85: 52.61330945 | AB85: 52.67934294 | AC85: 52.7493385 | AD85: 52.85750601 | AE85: 52.96772746 | AF85: 53.12646971 | AG85: 53.28620686 | AH85: 53.50289274 | AI85: 53.72002858 | AJ85: 53.99831958 | AK85: 54.27680036 | AL85: 54.61437723 | AM85: 54.95202858 | AN85: 55.33934051 | AO85: =f*(AN84+AP84)+(1-2*f)*AO84 -> 55.72667945 | AP85: 56.14722002 | AQ85: 56.56776898 | AR85: 57
B86: 1.159 | C86: 57 | D86: 56.57361001 | E86: 56.14722421 | F86: 55.74328027 | G86: 55.33935402 | H86: 54.97685887 | I86: 54.61441447 | J86: 54.30634841 | K86: 53.99841447 | L86: 53.75060616 | M86: 53.50311772 | N86: 53.31468123 | O86: 53.12696716 | P86: 52.99198786 | Q86: 52.85853298 | R86: 52.76842448 | S86: 52.68132397 | T86: 52.62724928 | U86: 52.57872782 | V86: 52.55362955 | W86: 52.53812483 | X86: 52.53812483 | Y86: 52.55362955 | Z86: 52.57872782 | AA86: 52.62724928 | AB86: 52.68132397 | AC86: 52.76842448 | AD86: 52.85853298 | AE86: 52.99198786 | AF86: 53.12696716 | AG86: 53.31468123 | AH86: 53.50311772 | AI86: 53.75060616 | AJ86: 53.99841447 | AK86: 54.30634841 | AL86: 54.61441447 | AM86: 54.97685887 | AN86: 55.33935402 | AO86: 55.74328027 | AP86: 56.14722421 | AQ86: 56.57361001 | AR86: 57
B87: 1.174 | C87: 57 | D87: 56.57361211 | E87: 56.15844514 | F87: 55.74328911 | G87: 55.36006957 | H87: 54.97688424 | I87: 54.64160364 | J87: 54.30641447 | K87: 54.02847729 | L87: 53.75076609 | M87: 53.5326437 | N87: 53.31504244 | O87: 53.15333454 | P87: 52.99275007 | Q87: 52.88020617 | R87: 52.76992847 | S87: 52.69783688 | T87: 52.63002589 | U87: 52.59043942 | V87: 52.55842632 | W87: 52.54587719 | X87: 52.54587719 | Y87: 52.55842632 | Z87: 52.59043942 | AA87: 52.63002589 | AB87: 52.69783688 | AC87: 52.76992847 | AD87: 52.88020617 | AE87: 52.99275007 | AF87: 53.15333454 | AG87: 53.31504244 | AH87: 53.5326437 | AI87: 53.75076609 | AJ87: 54.02847729 | AK87: 54.30641447 | AL87: 54.64160364 | AM87: 54.97688424 | AN87: 55.36006957 | AO87: 55.74328911 | AP87: 56.15844514 | AQ87: 56.57361211 | AR87: 57
B88: 1.189 | C88: 57 | D88: 56.57922257 | E88: 56.15845061 | F88: 55.75925735 | G88: 55.36008668 | H88: 55.0008366 | I88: 54.64164936 | J88: 54.33504046 | K88: 54.02859028 | L88: 53.78056049 | M88: 53.53290427 | N88: 53.34298912 | O88: 53.15389625 | P88: 53.01677036 | Q88: 52.88133927 | R88: 52.78902152 | S88: 52.69997718 | T88: 52.64413815 | U88: 52.59422611 | V88: 52.56815831 | W88: 52.55215176 | X88: 52.55215176 | Y88: 52.56815831 | Z88: 52.59422611 | AA88: 52.64413815 | AB88: 52.69997718 | AC88: 52.78902152 | AD88: 52.88133927 | AE88: 53.01677036 | AF88: 53.15389625 | AG88: 53.34298912 | AH88: 53.53290427 | AI88: 53.78056049 | AJ88: 54.02859028 | AK88: 54.33504046 | AL88: 54.64164936 | AM88: 55.0008366 | AN88: 55.36008668 | AO88: 55.75925735 | AP88: 56.15845061 | AQ88: 56.57922257 | AR88: 57
B89: 1.204 | C89: 57 | D89: 56.57922531 | E89: 56.16923996 | F89: 55.75926865 | G89: 55.38004698 | H89: 55.00086802 | I89: 54.66793853 | J89: 54.33511982 | K89: 54.05780048 | L89: 53.78074727 | M89: 53.56177481 | N89: 53.34340026 | O89: 53.17987974 | P89: 53.01761776 | Q89: 52.90289594 | R89: 52.79065823 | S89: 52.71657984 | T89: 52.64710165 | U89: 52.60614823 | V89: 52.57318893 | W89: 52.56015503 | X89: 52.56015503 | Y89: 52.57318893 | Z89: 52.60614823 | AA89: 52.64710165 | AB89: 52.71657984 | AC89: 52.79065823 | AD89: 52.90289594 | AE89: 53.01761776 | AF89: 53.17987974 | AG89: 53.34340026 | AH89: 53.56177481 | AI89: 53.78074727 | AJ89: 54.05780048 | AK89: 54.33511982 | AL89: 54.66793853 | AM89: 55.00086802 | AN89: 55.38004698 | AO89: 55.75926865 | AP89: 56.16923996 | AQ89: 56.57922531 | AR89: 57
B90: 1.219 | C90: 57 | D90: 56.58461998 | E90: 56.16924698 | F90: 55.77464347 | G90: 55.38006833 | H90: 55.02399276 | I90: 54.66799392 | J90: 54.3628695 | K90: 54.05793355 | L90: 53.80978764 | M90: 53.56207377 | N90: 53.37082727 | O90: 53.18050901 | P90: 53.04138784 | Q90: 52.90413799 | R90: 52.80973789 | S90: 52.71887994 | T90: 52.66136403 | U90: 52.61014529 | V90: 52.58315163 | W90: 52.56667198 | X90: 52.56667198 | Y90: 52.58315163 | Z90: 52.61014529 | AA90: 52.66136403 | AB90: 52.71887994 | AC90: 52.80973789 | AD90: 52.90413799 | AE90: 53.04138784 | AF90: 53.18050901 | AG90: 53.37082727 | AH90: 53.56207377 | AI90: 53.80978764 | AJ90: 54.05793355 | AK90: 54.3628695 | AL90: 54.66799392 | AM90: 55.02399276 | AN90: 55.38006833 | AO90: 55.77464347 | AP90: 56.16924698 | AQ90: 56.58461998 | AR90: 57
B91: 1.234 | C91: 57 | D91: 56.58462349 | E91: 56.17963173 | F91: 55.77465765 | G91: 55.39931811 | H91: 55.02403113 | I91: 54.69343113 | J91: 54.36296373 | K91: 54.08632857 | L91: 53.81000366 | M91: 53.59030746 | N91: 53.37129139 | O91: 53.20610756 | P91: 53.0423235 | Q91: 52.92556286 | R91: 52.81150897 | S91: 52.73555096 | T91: 52.66451261 | U91: 52.62225783 | V91: 52.58840864 | W91: 52.57491181 | X91: 52.57491181 | Y91: 52.58840864 | Z91: 52.62225783 | AA91: 52.66451261 | AB91: 52.73555096 | AC91: 52.81150897 | AD91: 52.92556286 | AE91: 53.0423235 | AF91: 53.20610756 | AG91: 53.37129139 | AH91: 53.59030746 | AI91: 53.81000366 | AJ91: 54.08632857 | AK91: 54.36296373 | AL91: 54.69343113 | AM91: 55.02403113 | AN91: 55.39931811 | AO91: 55.77465765 | AP91: 56.17963173 | AQ91: 56.58462349 | AR91: 57
B92: 1.249 | C92: 57 | D92: 56.58981586 | E92: 56.17964057 | F92: 55.78947492 | G92: 55.39934439 | H92: 55.04637462 | I92: 54.69349743 | J92: 54.38987985 | K92: 54.0864837 | L92: 53.83831801 | M92: 53.59064752 | N92: 53.39820751 | O92: 53.20680745 | P92: 53.06583521 | Q92: 52.92691623 | R92: 52.83055691 | S92: 52.73801079 | T92: 52.6789044 | U92: 52.62646063 | V92: 52.59858482 | W92: =f*(V91+X91)+(1-2*f)*W91 -> 52.58166022 | X92: 52.58166022 | Y92: 52.59858482 | Z92: 52.62646063 | AA92: 52.6789044 | AB92: 52.73801079 | AC92: 52.83055691 | AD92: 52.92691623 | AE92: 53.06583521 | AF92: 53.20680745 | AG92: 53.39820751 | AH92: 53.59064752 | AI92: 53.83831801 | AJ92: 54.0864837 | AK92: 54.38987985 | AL92: 54.69349743 | AM92: 55.04637462 | AN92: 55.39934439 | AO92: 55.78947492 | AP92: 56.17964057 | AQ92: 56.58981586 | AR92: 57
B93: 1.264 | C93: 57 | D93: 56.58982029 | E93: 56.18964539 | F93: 55.78949248 | G93: 55.41792477 | H93: 55.04642091 | I93: 54.71812724 | J93: 54.38999056 | K93: 54.11409893 | L93: 53.83856561 | M93: 53.61826276 | N93: 53.39872748 | O93: 53.23202136 | P93: 53.06686184 | Q93: 52.94819606 | R93: 52.83246351 | S93: 52.75473065 | T93: 52.68223571 | U93: 52.63874461 | V93: 52.60406042 | W93: 52.59012252 | X93: 52.59012252 | Y93: 52.60406042 | Z93: 52.63874461 | AA93: 52.68223571 | AB93: 52.75473065 | AC93: 52.83246351 | AD93: 52.94819606 | AE93: 53.06686184 | AF93: 53.23202136 | AG93: 53.39872748 | AH93: 53.61826276 | AI93: 53.83856561 | AJ93: 54.11409893 | AK93: 54.38999056 | AL93: 54.71812724 | AM93: 55.04642091 | AN93: 55.41792477 | AO93: 55.78949248 | AP93: 56.18964539 | AQ93: 56.58982029 | AR93: 57
B94: 1.279 | C94: 57 | D94: 56.5948227 | E94: 56.18965638 | F94: 55.80378508 | G94: 55.4179567 | H94: 55.068026 | I94: 54.71820574 | J94: 54.41611308 | K94: 54.11427809 | L94: 53.86618085 | M94: 53.61864655 | N94: 53.42514206 | O94: 53.23279466 | P94: 53.09010871 | Q94: 52.94966268 | R94: 52.85146336 | S94: 52.75734961 | T94: 52.69673763 | U94: 52.64314807 | V94: 52.61443356 | W94: 52.59709147 | X94: 52.59709147 | Y94: 52.61443356 | Z94: 52.64314807 | AA94: 52.69673763 | AB94: 52.75734961 | AC94: 52.85146336 | AD94: 52.94966268 | AE94: 53.09010871 | AF94: 53.23279466 | AG94: 53.42514206 | AH94: 53.61864655 | AI94: 53.86618085 | AJ94: 54.11427809 | AK94: 54.41611308 | AL94: 54.71820574 | AM94: 55.068026 | AN94: 55.4179567 | AO94: 55.80378508 | AP94: 56.18965638 | AQ94: 56.5948227 | AR94: 57
B95: 1.294 | C95: 57 | D95: 56.59482819 | E95: 56.19930389 | F95: 55.80380654 | G95: 55.43590554 | H95: 55.06808122 | I95: 54.74206954 | J95: 54.41624191 | K95: 54.14114697 | L95: 53.86646232 | M95: 53.64566145 | N95: 53.4257206 | O95: 53.25762538 | P95: 53.09122867 | Q95: 52.97078603 | R95: 52.85350614 | S95: 52.77410049 | T95: 52.70024884 | U95: 52.6555856 | V95: 52.62011977 | W95: 52.60576252 | X95: 52.60576252 | Y95: 52.62011977 | Z95: 52.6555856 | AA95: 52.70024884 | AB95: 52.77410049 | AC95: 52.85350614 | AD95: 52.97078603 | AE95: 53.09122867 | AF95: 53.25762538 | AG95: 53.4257206 | AH95: 53.64566145 | AI95: 53.86646232 | AJ95: 54.14114697 | AK95: 54.41624191 | AL95: 54.74206954 | AM95: 55.06808122 | AN95: 55.43590554 | AO95: 55.80380654 | AP95: 56.19930389 | AQ95: 56.59482819 | AR95: 57
B96: 1.309 | C96: 57 | D96: 56.59965194 | E96: 56.19931737 | F96: 55.81760471 | G96: 55.43594388 | H96: 55.08898754 | I96: 54.74216156 | J96: 54.44160825 | K96: 54.14135211 | L96: 53.89340421 | M96: 53.64609146 | N96: 53.45164342 | O96: 53.25847464 | P96: 53.11420571 | Q96: 52.97236741 | R96: 52.87244326 | S96: 52.77687749 | T96: 52.71484305 | U96: 52.6601843 | V96: 52.63067406 | W96: 52.61294114 | X96: 52.61294114 | Y96: 52.63067406 | Z96: 52.6601843 | AA96: 52.71484305 | AB96: 52.77687749 | AC96: 52.87244326 | AD96: 52.97236741 | AE96: 53.11420571 | AF96: 53.25847464 | AG96: 53.45164342 | AH96: 53.64609146 | AI96: 53.89340421 | AJ96: 54.14135211 | AK96: 54.44160825 | AL96: 54.74216156 | AM96: 55.08898754 | AN96: 55.43594388 | AO96: 55.81760471 | AP96: 56.19931737 | AQ96: 56.59965194 | AR96: 57
B97: 1.324 | C97: 57 | D97: 56.59965868 | E97: 56.20862833 | F97: 55.81763062 | G97: 55.45329613 | H97: 55.08905272 | I97: 54.7652979 | J97: 54.44175684 | K97: 54.16750623 | L97: 53.89372179 | M97: 53.67252381 | N97: 53.45228305 | O97: 53.28292456 | P97: 53.11542102 | Q97: 52.99332449 | R97: 52.87462245 | S97: 52.79364315 | T97: 52.7185309 | U97: 52.67275855 | V97: 52.63656272 | W97: 52.6218076 | X97: 52.6218076 | Y97: 52.63656272 | Z97: 52.67275855 | AA97: 52.7185309 | AB97: 52.79364315 | AC97: 52.87462245 | AD97: 52.99332449 | AE97: 53.11542102 | AF97: 53.28292456 | AG97: 53.45228305 | AH97: 53.67252381 | AI97: 53.89372179 | AJ97: 54.16750623 | AK97: 54.44175684 | AL97: 54.7652979 | AM97: 55.08905272 | AN97: 55.45329613 | AO97: 55.81763062 | AP97: 56.20862833 | AQ97: 56.59965868 | AR97: 57
B98: 1.339 | C98: 57 | D98: 56.60431416 | E98: 56.20864465 | F98: 55.83096223 | G98: 55.45334167 | H98: 55.10929701 | I98: 54.76540478 | J98: 54.46640207 | K98: 54.16773931 | L98: 53.92001502 | M98: 53.67300242 | N98: 53.47772419 | O98: 53.28385203 | P98: 53.13812452 | Q98: 52.99502173 | R98: 52.89348382 | S98: 52.79657667 | T98: 52.73320085 | U98: 52.67754681 | V98: 52.64728308 | W98: 52.62918516 | X98: 52.62918516 | Y98: 52.64728308 | Z98: 52.67754681 | AA98: 52.73320085 | AB98: 52.79657667 | AC98: 52.89348382 | AD98: 52.99502173 | AE98: 53.13812452 | AF98: 53.28385203 | AG98: 53.47772419 | AH98: 53.67300242 | AI98: 53.92001502 | AJ98: 54.16773931 | AK98: 54.46640207 | AL98: 54.76540478 | AM98: 55.10929701 | AN98: 55.45334167 | AO98: 55.83096223 | AP98: 56.20864465 | AQ98: 56.60431416 | AR98: 57
B99: 1.354 | C99: 57 | D99: 56.60432233 | E99: =f*(D98+F98)+(1-2*f)*E98 -> 56.2176382 | F99: 55.83099316 | G99: 55.47012962 | H99: 55.10937323 | I99: 54.78784954 | J99: 54.46657205 | K99: 54.19320854 | L99: 53.92037087 | M99: 53.69886961 | N99: 53.47842723 | O99: 53.30792436 | P99: 53.13943688 | Q99: 53.01580417 | R99: 52.8957992 | S99: 52.81334234 | T99: 52.73706174 | U99: 52.69024196 | V99: 52.65336599 | W99: 52.63823412 | X99: 52.63823412 | Y99: 52.65336599 | Z99: 52.69024196 | AA99: 52.73706174 | AB99: 52.81334234 | AC99: 52.8957992 | AD99: 53.01580417 | AE99: 53.13943688 | AF99: 53.30792436 | AG99: 53.47842723 | AH99: 53.69886961 | AI99: 53.92037087 | AJ99: 54.19320854 | AK99: 54.46657205 | AL99: 54.78784954 | AM99: 55.10937323 | AN99: 55.47012962 | AO99: 55.83099316 | AP99: 56.2176382 | AQ99: 56.60432233 | AR99: 57
B100: 1.369 | C100: 57 | D100: 56.6088191 | E100: 56.21765774 | F100: 55.84388391 | G100: 55.47018319 | H100: 55.12898958 | I100: 54.78797264 | J100: 54.49052904 | K100: 54.19347146 | L100: 53.94603907 | M100: 53.69939905 | N100: 53.50339698 | O100: 53.30893206 | P100: 53.16186426 | Q100: 53.01761804 | R100: 52.91457325 | S100: 52.81643047 | T100: 52.75179215 | U100: 52.69521386 | V100: 52.66423804 | W100: 52.64580005 | X100: 52.64580005 | Y100: 52.66423804 | Z100: 52.69521386 | AA100: 52.75179215 | AB100: 52.81643047 | AC100: 52.91457325 | AD100: 53.01761804 | AE100: 53.16186426 | AF100: 53.30893206 | AG100: 53.50339698 | AH100: 53.69939905 | AI100: 53.94603907 | AJ100: 54.19347146 | AK100: 54.49052904 | AL100: 54.78797264 | AM100: 55.12898958 | AN100: 55.47018319 | AO100: 55.84388391 | AP100: 56.21765774 | AQ100: 56.6088191 | AR100: 57
B101: 1.384 | C101: 57 | D101: 56.60882887 | E101: 56.2263515 | F101: 55.84392047 | G101: 55.48643674 | H101: 55.12907791 | I101: 54.80975931 | J101: 54.49072205 | K101: 54.21828406 | L101: 53.94643525 | M101: 53.72471803 | N101: 53.50416555 | O101: 53.33263062 | P101: 53.16327505 | Q101: 53.03821876 | R101: 52.91702426 | S101: 52.8331827 | T101: 52.75582217 | U101: 52.7080151 | V101: 52.67050696 | W101: 52.65501905 | X101: 52.65501905 | Y101: 52.67050696 | Z101: 52.7080151 | AA101: 52.75582217 | AB101: 52.8331827 | AC101: 52.91702426 | AD101: 53.03821876 | AE101: 53.16327505 | AF101: 53.33263062 | AG101: 53.50416555 | AH101: 53.72471803 | AI101: 53.94643525 | AJ101: 54.21828406 | AK101: 54.49072205 | AL101: 54.80975931 | AM101: 55.12907791 | AN101: 55.48643674 | AO101: 55.84392047 | AP101: 56.2263515 | AQ101: 56.60882887 | AR101: 57
B102: 1.399 | C102: 57 | D102: 56.61317575 | E102: 56.22637467 | F102: 55.85639412 | G102: 55.48649919 | H102: 55.14809803 | I102: 54.80989998 | J102: 54.51402168 | K102: 54.21857865 | L102: 53.97150104 | M102: 53.7253004 | N102: 53.52867433 | O102: 53.3337203 | P102: 53.18542469 | Q102: 53.04014965 | R102: 52.93570073 | S102: 52.83642321 | T102: 52.7705989 | U102: 52.71316456 | V102: 52.68151707 | W102: 52.662763 | X102: 52.662763 | Y102: 52.68151707 | Z102: 52.71316456 | AA102: 52.7705989 | AB102: 52.83642321 | AC102: 52.93570073 | AD102: 53.04014965 | AE102: 53.18542469 | AF102: 53.3337203 | AG102: 53.52867433 | AH102: 53.7253004 | AI102: 53.97150104 | AJ102: 54.21857865 | AK102: 54.51402168 | AL102: 54.80989998 | AM102: 55.14809803 | AN102: 55.48649919 | AO102: 55.85639412 | AP102: 56.22637467 | AQ102: 56.61317575 | AR102: 57
B103: 1.414 | C103: 57 | D103: 56.61318734 | E103: 56.23478494 | F103: 55.85643693 | G103: 55.50224608 | H103: 55.14819959 | I103: 54.83105986 | J103: 54.51423931 | K103: 54.24276136 | L103: 53.97193952 | M103: 53.75008768 | N103: 53.52951035 | O103: 53.35704951 | P103: 53.18693498 | Q103: 53.06056271 | R103: 52.93828643 | S103: 52.85314982 | T103: 52.77479389 | U103: 52.72605799 | V103: 52.68796378 | W103: 52.67214004 | X103: 52.67214004 | Y103: 52.68796378 | Z103: 52.72605799 | AA103: 52.77479389 | AB103: 52.85314982 | AC103: 52.93828643 | AD103: 53.06056271 | AE103: 53.18693498 | AF103: 53.35704951 | AG103: 53.52951035 | AH103: 53.75008768 | AI103: 53.97193952 | AJ103: 54.24276136 | AK103: 54.51423931 | AL103: 54.83105986 | AM103: 55.14819959 | AN103: 55.50224608 | AO103: 55.85643693 | AP103: 56.23478494 | AQ103: 56.61318734 | AR103: 57
B104: 1.429 | C104: 57 | D104: 56.61739247 | E104: 56.23481213 | F104: 55.86851551 | G104: 55.50231826 | H104: 55.16665297 | I104: 54.83121945 | J104: 54.53691061 | K104: 54.24308942 | L104: 53.99642452 | M104: 53.75072494 | N104: 53.5535686 | O104: 53.35822266 | P104: 53.20880611 | Q104: 53.06261071 | R104: 52.95685626 | S104: 52.85654016 | T104: 52.7896039 | U104: 52.73137884 | V104: 52.69909901 | W104: 52.68005191 | X104: 52.68005191 | Y104: 52.69909901 | Z104: 52.73137884 | AA104: 52.7896039 | AB104: 52.85654016 | AC104: 52.95685626 | AD104: 53.06261071 | AE104: 53.20880611 | AF104: 53.35822266 | AG104: 53.5535686 | AH104: 53.75072494 | AI104: 53.99642452 | AJ104: 54.24308942 | AK104: 54.53691061 | AL104: 54.83121945 | AM104: 55.16665297 | AN104: 55.50231826 | AO104: 55.86851551 | AP104: 56.23481213 | AQ104: 56.61739247 | AR104: 57
B105: 1.444 | C105: 57 | D105: 56.61740607 | E105: 56.24295399 | F105: 55.8685652 | G105: 55.51758424 | H105: 55.16676885 | I105: 54.85178179 | J105: 54.53715443 | K105: 54.26666757 | L105: 53.99690718 | M105: 53.77499656 | N105: 53.5544738 | O105: 53.38118735 | P105: 53.21041668 | Q105: 53.08283119 | R105: 52.95957543 | S105: 52.87323008 | T105: 52.7939595 | U105: 52.74435146 | V105: 52.70571537 | W105: 52.68957546 | X105: 52.68957546 | Y105: 52.70571537 | Z105: =f*(Y104+AA104)+(1-2*f)*Z104 -> 52.74435146 | AA105: 52.7939595 | AB105: 52.87323008 | AC105: 52.95957543 | AD105: 53.08283119 | AE105: 53.21041668 | AF105: 53.38118735 | AG105: 53.5544738 | AH105: 53.77499656 | AI105: 53.99690718 | AJ105: 54.26666757 | AK105: 54.53715443 | AL105: 54.85178179 | AM105: 55.16676885 | AN105: 55.51758424 | AO105: 55.8685652 | AP105: 56.24295399 | AQ105: 56.61740607 | AR105: 57
B106: 1.459 | C106: 57 | D106: 56.62147699 | E106: 56.24298563 | F106: 55.88026911 | G106: 55.51766702 | H106: 55.18468301 | I106: 54.85196164 | J106: 54.55922468 | K106: 54.26703081 | L106: 54.02083206 | M106: 53.77569049 | N106: 53.57809196 | O106: 53.38244524 | P106: 53.23200927 | Q106: 53.08499606 | R106: 52.97803063 | S106: 52.87676747 | T106: 52.80879077 | U106: 52.74983744 | V106: 52.71696346 | W106: 52.69764542 | X106: 52.69764542 | Y106: 52.71696346 | Z106: 52.74983744 | AA106: 52.80879077 | AB106: 52.87676747 | AC106: 52.97803063 | AD106: 53.08499606 | AE106: 53.23200927 | AF106: 53.38244524 | AG106: 53.57809196 | AH106: 53.77569049 | AI106: 54.02083206 | AJ106: 54.26703081 | AK106: 54.55922468 | AL106: 54.85196164 | AM106: 55.18468301 | AN106: 55.51766702 | AO106: 55.88026911 | AP106: 56.24298563 | AQ106: 56.62147699 | AR106: 57
B107: 1.474 | C107: 57 | D107: 56.62149282 | E107: 56.25087305 | F107: 55.88032633 | G107: 55.53247606 | H107: 55.18481433 | I107: 54.87195385 | J107: 54.55949623 | K107: 54.29002837 | L107: 54.02136065 | M107: 53.79946201 | N107: 53.57906787 | O107: 53.40505061 | P107: 53.23372065 | Q107: 53.10501995 | R107: 52.98088176 | S107: 52.8934107 | T107: 52.81330245 | U107: 52.76287711 | V107: 52.72374143 | W107: 52.70730444 | X107: 52.70730444 | Y107: 52.72374143 | Z107: 52.76287711 | AA107: 52.81330245 | AB107: 52.8934107 | AC107: 52.98088176 | AD107: 53.10501995 | AE107: 53.23372065 | AF107: 53.40505061 | AG107: 53.57906787 | AH107: 53.79946201 | AI107: 54.02136065 | AJ107: 54.29002837 | AK107: 54.55949623 | AL107: 54.87195385 | AM107: 55.18481433 | AN107: 55.53247606 | AO107: 55.88032633 | AP107: 56.25087305 | AQ107: 56.62149282 | AR107: 57
B108: 1.489 | C108: 57 | D108: 56.62543653 | E108: 56.25090957 | F108: 55.89167456 | G108: 55.53257033 | H108: 55.20221495 | I108: 54.87215528 | J108: 54.58099111 | K108: 54.29042844 | L108: 54.04474519 | M108: 53.80021426 | N108: 53.60225631 | O108: 53.40639426 | P108: 53.25503528 | Q108: 53.10730121 | R108: 52.99921533 | S108: 52.89709211 | T108: 52.82814391 | U108: 52.76852194 | V108: 52.73509078 | W108: 52.71552293 | X108: 52.71552293 | Y108: 52.73509078 | Z108: 52.76852194 | AA108: 52.82814391 | AB108: 52.89709211 | AC108: 52.99921533 | AD108: 53.10730121 | AE108: 53.25503528 | AF108: 53.40639426 | AG108: 53.60225631 | AH108: 53.80021426 | AI108: 54.04474519 | AJ108: 54.29042844 | AK108: 54.58099111 | AL108: 54.87215528 | AM108: 55.20221495 | AN108: 55.53257033 | AO108: 55.89167456 | AP108: 56.25090957 | AQ108: 56.62543653 | AR108: 57
B109: 1.504 | C109: 57 | D109: 56.62545479 | E109: 56.25855554 | F109: 55.89173995 | G109: 55.54694476 | H109: 55.20236281 | I109: 54.89160303 | J109: 54.58129186 | K109: 54.31286815 | L109: 54.04532135 | M109: 53.82350075 | N109: 53.60330426 | O109: 53.4286458 | P109: 53.25684773 | Q109: 53.1271253 | R109: 53.00219666 | S109: 52.91367962 | T109: 52.83280702 | U109: 52.78161734 | V109: 52.74202243 | W109: 52.72530685 | X109: 52.72530685 | Y109: 52.74202243 | Z109: 52.78161734 | AA109: 52.83280702 | AB109: 52.91367962 | AC109: 53.00219666 | AD109: 53.1271253 | AE109: 53.25684773 | AF109: 53.4286458 | AG109: 53.60330426 | AH109: 53.82350075 | AI109: 54.04532135 | AJ109: 54.31286815 | AK109: 54.58129186 | AL109: 54.89160303 | AM109: 55.20236281 | AN109: 55.54694476 | AO109: 55.89173995 | AP109: 56.25855554 | AQ109: 56.62545479 | AR109: 57
B110: 1.519 | C110: 57 | D110: 56.62927777 | E110: 56.25859737 | F110: 55.90275015 | G110: 55.54705138 | H110: 55.21927389 | I110: 54.89182733 | J110: 54.60223559 | K110: 54.3133066 | L110: 54.06818445 | M110: 53.8243128 | N110: 53.62607327 | O110: 53.43007599 | P110: 53.27788555 | Q110: 53.12952219 | R110: 53.02040246 | S110: 52.91750184 | T110: 52.84764848 | U110: 52.78741473 | V110: 52.7534621 | W110: 52.73366464 | X110: 52.73366464 | Y110: 52.7534621 | Z110: 52.78741473 | AA110: 52.84764848 | AB110: 52.91750184 | AC110: 53.02040246 | AD110: 53.12952219 | AE110: 53.27788555 | AF110: 53.43007599 | AG110: 53.62607327 | AH110: 53.8243128 | AI110: 54.06818445 | AJ110: 54.3133066 | AK110: 54.60223559 | AL110: 54.89182733 | AM110: 55.21927389 | AN110: 55.54705138 | AO110: 55.90275015 | AP110: 56.25859737 | AQ110: 56.62927777 | AR110: 57
B111: 1.534 | C111: 57 | D111: 56.62929868 | E111: 56.26601396 | F111: 55.90282437 | G111: 55.56101202 | H111: 55.21943936 | I111: 54.91075474 | J111: 54.60256697 | K111: 54.33521002 | L111: 54.0688097 | M111: 53.84712886 | N111: 53.6271944 | O111: 53.45197941 | P111: 53.27979909 | Q111: 53.14914401 | R111: 53.02351202 | S111: 52.93402547 | T111: 52.85245828 | U111: 52.80055529 | V111: 52.76053969 | W111: 52.74356337 | X111: 52.74356337 | Y111: 52.76053969 | Z111: 52.80055529 | AA111: 52.85245828 | AB111: 52.93402547 | AC111: 53.02351202 | AD111: 53.14914401 | AE111: 53.27979909 | AF111: 53.45197941 | AG111: 53.6271944 | AH111: 53.84712886 | AI111: 54.0688097 | AJ111: 54.33521002 | AK111: 54.60256697 | AL111: 54.91075474 | AM111: 55.21943936 | AN111: 55.56101202 | AO111: 55.90282437 | AP111: 56.26601396 | AQ111: 56.62929868 | AR111: 57
B112: 1.549 | C112: 57 | D112: 56.63300698 | E112: 56.26606153 | F112: 55.91351299 | G112: 55.56113186 | H112: =f*(G111+I111)+(1-2*f)*H111 -> 55.23588338 | I112: 54.91100316 | J112: 54.62298238 | K112: 54.33568833 | L112: 54.09116944 | M112: 53.84800205 | N112: 53.64955414 | O112: 53.45349675 | P112: 53.30056171 | Q112: 53.15165556 | R112: 53.04158474 | S112: 52.93798515 | T112: 52.86729038 | U112: 52.80649899 | V112: 52.77205933 | W112: 52.75205153 | X112: 52.75205153 | Y112: 52.77205933 | Z112: 52.80649899 | AA112: 52.86729038 | AB112: 52.93798515 | AC112: 53.04158474 | AD112: 53.15165556 | AE112: 53.30056171 | AF112: 53.45349675 | AG112: 53.64955414 | AH112: 53.84800205 | AI112: 54.09116944 | AJ112: 54.33568833 | AK112: 54.62298238 | AL112: 54.91100316 | AM112: 55.23588338 | AN112: 55.56113186 | AO112: 55.91351299 | AP112: 56.26606153 | AQ112: 56.63300698 | AR112: 57
B113: 1.564 | C113: 57 | D113: 56.63303076 | E113: 56.27325999 | F113: 55.9135967 | G113: 55.57469819 | H113: 55.23606751 | I113: 54.92943288 | J113: 54.62334575 | K113: 54.35707591 | L113: 54.09184519 | M113: 53.87036179 | N113: 53.6507494 | O113: 53.47505792 | P113: 53.30257615 | Q113: 53.17107322 | R113: 53.04482035 | S113: 52.95443756 | T113: 52.87224207 | U113: 52.81967485 | V113: 52.77927526 | W113: 52.76205543 | X113: 52.76205543 | Y113: 52.77927526 | Z113: 52.81967485 | AA113: 52.87224207 | AB113: 52.95443756 | AC113: 53.04482035 | AD113: 53.17107322 | AE113: 53.30257615 | AF113: 53.47505792 | AG113: 53.6507494 | AH113: 53.87036179 | AI113: 54.09184519 | AJ113: 54.35707591 | AK113: 54.62334575 | AL113: 54.92943288 | AM113: 55.23606751 | AN113: 55.57469819 | AO113: 55.9135967 | AP113: 56.27325999 | AQ113: 56.63303076 | AR113: 57
B114: 1.579 | C114: 57 | D114: 56.63662999 | E114: 56.27331373 | F114: 55.92397909 | G114: 55.5748321 | H114: 55.25206553 | I114: 54.92970663 | J114: 54.6432544 | K114: 54.35759547 | L114: 54.11371885 | M114: 53.8712973 | N114: 53.67270986 | O114: 53.47666277 | P114: 53.32306557 | Q114: 53.17369825 | R114: 53.06275539 | S114: 52.95853121 | T114: 52.88705621 | U114: 52.82575866 | V114: 52.79086514 | W114: 52.77066534 | X114: 52.77066534 | Y114: 52.79086514 | Z114: 52.82575866 | AA114: 52.88705621 | AB114: 52.95853121 | AC114: 53.06275539 | AD114: 53.17369825 | AE114: 53.32306557 | AF114: 53.47666277 | AG114: 53.67270986 | AH114: 53.8712973 | AI114: 54.11371885 | AJ114: 54.35759547 | AK114: 54.6432544 | AL114: 54.92970663 | AM114: 55.25206553 | AN114: 55.5748321 | AO114: 55.92397909 | AP114: 56.27331373 | AQ114: 56.63662999 | AR114: 57
B115: 1.594 | C115: 57 | D115: 56.63665687 | E115: 56.28030454 | F115: 55.92407292 | G115: 55.58802231 | H115: 55.25226937 | I115: 54.94765996 | J115: 54.64365105 | K115: 54.37848662 | L115: 54.11444638 | M115: 53.89321435 | N115: 53.67398004 | O115: 53.49788771 | P115: 53.32518051 | Q115: 53.19291048 | R115: 53.06611473 | S115: 52.9749058 | T115: 52.89214494 | U115: 52.83896067 | V115: 52.798212 | W115: 52.78076524 | X115: 52.78076524 | Y115: 52.798212 | Z115: 52.83896067 | AA115: 52.89214494 | AB115: 52.9749058 | AC115: 53.06611473 | AD115: 53.19291048 | AE115: 53.32518051 | AF115: 53.49788771 | AG115: 53.67398004 | AH115: 53.89321435 | AI115: 54.11444638 | AJ115: 54.37848662 | AK115: 54.64365105 | AL115: 54.94765996 | AM115: 55.25226937 | AN115: 55.58802231 | AO115: 55.92407292 | AP115: 56.28030454 | AQ115: 56.63665687 | AR115: 57
B116: 1.609 | C116: 57 | D116: 56.64015227 | E116: 56.28036489 | F116: 55.93416342 | G116: 55.58817114 | H116: 55.26784114 | I116: 54.94796021 | J116: 54.66307329 | K116: 54.37904872 | L116: 54.13585049 | M116: 53.89421321 | N116: 53.69555103 | O116: 53.49958027 | P116: 53.3453991 | Q116: 53.19564762 | R116: 53.08390814 | S116: 52.97912983 | T116: 52.90693324 | U116: 52.84517847 | V116: 52.80986296 | W116: 52.78948862 | X116: 52.78948862 | Y116: 52.80986296 | Z116: 52.84517847 | AA116: 52.90693324 | AB116: 52.97912983 | AC116: 53.08390814 | AD116: 53.19564762 | AE116: 53.3453991 | AF116: 53.49958027 | AG116: 53.69555103 | AH116: 53.89421321 | AI116: 54.13585049 | AJ116: 54.37904872 | AK116: 54.66307329 | AL116: 54.94796021 | AM116: 55.26784114 | AN116: 55.58817114 | AO116: 55.93416342 | AP116: 56.28036489 | AQ116: 56.64015227 | AR116: 57
B117: 1.624 | C117: 57 | D117: 56.64018245 | E117: 56.28715785 | F117: 55.93426802 | G117: 55.60100228 | H117: 55.26806568 | I117: 54.96545722 | J117: 54.66350446 | K117: 54.39946189 | L117: 54.13663096 | M117: 53.91570076 | N117: 53.69689674 | O117: 53.52047507 | P117: 53.34761395 | Q117: 53.21465362 | R117: 53.08738873 | S117: 52.99542069 | T117: 52.91215415 | U117: 52.8583981 | V117: 52.81733355 | W117: 52.79967579 | X117: 52.79967579 | Y117: 52.81733355 | Z117: 52.8583981 | AA117: 52.91215415 | AB117: 52.99542069 | AC117: 53.08738873 | AD117: 53.21465362 | AE117: 53.34761395 | AF117: 53.52047507 | AG117: 53.69689674 | AH117: 53.91570076 | AI117: 54.13663096 | AJ117: 54.39946189 | AK117: 54.66350446 | AL117: 54.96545722 | AM117: 55.26806568 | AN117: 55.60100228 | AO117: 55.93426802 | AP117: 56.28715785 | AQ117: 56.64018245 | AR117: 57
B118: 1.639 | C118: 57 | D118: 56.64357892 | E118: 56.28722523 | F118: 55.94408006 | G118: 55.60116685 | H118: 55.28322975 | I118: 54.96578507 | J118: 54.68245955 | K118: 54.40006771 | L118: 54.15758133 | M118: 53.91676385 | N118: 53.71808791 | O118: 53.52225534 | P118: 53.36756434 | Q118: 53.21750134 | R118: 53.10503715 | S118: 52.99977144 | T118: 52.92690939 | U118: 52.86474385 | V118: 52.82903694 | W118: 52.80850467 | X118: 52.80850467 | Y118: 52.82903694 | Z118: 52.86474385 | AA118: 52.92690939 | AB118: 52.99977144 | AC118: =f*(AB117+AD117)+(1-2*f)*AC117 -> 53.10503715 | AD118: 53.21750134 | AE118: 53.36756434 | AF118: 53.52225534 | AG118: 53.71808791 | AH118: 53.91676385 | AI118: 54.15758133 | AJ118: 54.40006771 | AK118: 54.68245955 | AL118: 54.96578507 | AM118: 55.28322975 | AN118: 55.60116685 | AO118: 55.94408006 | AP118: 56.28722523 | AQ118: 56.64357892 | AR118: 57
B119: 1.654 | C119: 57 | D119: 56.64361262 | E119: 56.29382949 | F119: 55.94419604 | G119: 55.61365491 | H119: 55.28347596 | I119: 54.98284465 | J119: 54.68292639 | K119: 54.42002044 | L119: 54.15841578 | M119: 53.93783462 | N119: 53.7195096 | O119: 53.54282613 | P119: 53.36987834 | Q119: 53.23630075 | R119: 53.10863639 | S119: 53.01597327 | T119: 52.93225764 | U119: 52.87797317 | V119: 52.83662426 | W119: 52.81877081 | X119: 52.81877081 | Y119: 52.83662426 | Z119: 52.87797317 | AA119: 52.93225764 | AB119: 53.01597327 | AC119: 53.10863639 | AD119: 53.23630075 | AE119: 53.36987834 | AF119: 53.54282613 | AG119: 53.7195096 | AH119: 53.93783462 | AI119: 54.15841578 | AJ119: 54.42002044 | AK119: 54.68292639 | AL119: 54.98284465 | AM119: 55.28347596 | AN119: 55.61365491 | AO119: 55.94419604 | AP119: 56.29382949 | AQ119: 56.64361262 | AR119: 57
B120: 1.669 | C120: 57 | D120: 56.64691475 | E120: 56.29390433 | F120: 55.9537422 | G120: 55.613836 | H120: 55.29824978 | I120: 54.98320117 | J120: 54.70143255 | K120: 54.42067109 | L120: 54.17892753 | M120: 53.93896269 | N120: 53.74033037 | O120: 53.54469397 | P120: 53.38956344 | Q120: 53.23925737 | R120: 53.12613701 | S120: 53.02044702 | T120: 52.94697322 | U120: 52.88444095 | V120: 52.84837199 | W120: 52.82769753 | X120: 52.82769753 | Y120: 52.84837199 | Z120: 52.88444095 | AA120: 52.94697322 | AB120: 53.02044702 | AC120: 53.12613701 | AD120: 53.23925737 | AE120: 53.38956344 | AF120: 53.54469397 | AG120: 53.74033037 | AH120: 53.93896269 | AI120: 54.17892753 | AJ120: 54.42067109 | AK120: 54.70143255 | AL120: 54.98320117 | AM120: 55.29824978 | AN120: 55.613836 | AO120: 55.9537422 | AP120: 56.29390433 | AQ120: 56.64691475 | AR120: 57
B121: 1.684 | C121: 57 | D121: 56.64695216 | E121: 56.30032847 | F121: 55.95387016 | G121: 55.62599599 | H121: 55.29851859 | I121: 54.99984116 | J121: 54.70193613 | K121: 54.44018004 | L121: 54.17981689 | M121: 53.95962895 | N121: 53.74182833 | O121: 53.56494691 | P121: 53.39197567 | Q121: 53.25785022 | R121: 53.12985219 | S121: 53.03655512 | T121: 52.95244398 | U121: 52.8976726 | V121: 52.85606924 | W121: 52.83803476 | X121: 52.83803476 | Y121: 52.85606924 | Z121: 52.8976726 | AA121: 52.95244398 | AB121: 53.03655512 | AC121: 53.12985219 | AD121: 53.25785022 | AE121: 53.39197567 | AF121: 53.56494691 | AG121: 53.74182833 | AH121: 53.95962895 | AI121: 54.17981689 | AJ121: 54.44018004 | AK121: 54.70193613 | AL121: 54.99984116 | AM121: 55.29851859 | AN121: 55.62599599 | AO121: 55.95387016 | AP121: 56.30032847 | AQ121: 56.64695216 | AR121: 57
B122: 1.699 | C122: 57 | D122: 56.65016424 | E122: 56.30041116 | F122: 55.96316223 | G122: 55.62619437 | H122: 55.31291858 | I122: 55.00022736 | J122: 54.7200106 | K122: 54.44087651 | L122: 54.19990449 | M122: 53.96082261 | N122: 53.76228793 | O122: 53.566902 | P122: 53.41139857 | Q122: 53.26091393 | R122: 53.14720267 | S122: 53.04114809 | T122: 52.96711386 | U122: 52.90425661 | V122: 52.86785368 | W122: 52.847052 | X122: 52.847052 | Y122: 52.86785368 | Z122: 52.90425661 | AA122: 52.96711386 | AB122: 53.04114809 | AC122: 53.14720267 | AD122: 53.26091393 | AE122: 53.41139857 | AF122: 53.566902 | AG122: 53.76228793 | AH122: 53.96082261 | AI122: 54.19990449 | AJ122: 54.44087651 | AK122: 54.7200106 | AL122: 55.00022736 | AM122: 55.31291858 | AN122: 55.62619437 | AO122: 55.96316223 | AP122: 56.30041116 | AQ122: 56.65016424 | AR122: 57
B123: 1.714 | C123: 57 | D123: 56.65020558 | E123: 56.30666323 | F123: 55.96330277 | G123: 55.6380404 | H123: 55.31321087 | I123: 55.01646459 | J123: 54.72055193 | K123: 54.45995755 | L123: 54.20084956 | M123: 53.98109621 | N123: 53.7638623 | O123: 53.58684325 | P123: 53.41390796 | Q123: 53.27930062 | R123: 53.15103101 | S123: 53.05715827 | T123: 52.97270235 | U123: 52.91748377 | V123: 52.87565431 | W123: 52.85745284 | X123: 52.85745284 | Y123: 52.87565431 | Z123: 52.91748377 | AA123: 52.97270235 | AB123: 53.05715827 | AC123: 53.15103101 | AD123: 53.27930062 | AE123: 53.41390796 | AF123: 53.58684325 | AG123: 53.7638623 | AH123: 53.98109621 | AI123: 54.20084956 | AJ123: 54.45995755 | AK123: 54.72055193 | AL123: 55.01646459 | AM123: 55.31321087 | AN123: 55.6380404 | AO123: 55.96330277 | AP123: 56.30666323 | AQ123: 56.65020558 | AR123: 57
B124: 1.729 | C124: 57 | D124: 56.65333162 | E124: 56.30675418 | F124: 55.97235182 | G124: 55.63825682 | H124: 55.3272525 | I124: 55.0168814 | J124: 54.73821107 | K124: 54.46070075 | L124: 54.22052688 | M124: 53.98235593 | N124: 53.78396973 | O124: 53.58888513 | P124: 53.43307193 | Q124: 53.28246949 | R124: 53.16822944 | S124: 53.06186668 | T124: 52.98732102 | U124: 52.92417833 | V124: 52.88746831 | W124: 52.86655357 | X124: 52.86655357 | Y124: 52.88746831 | Z124: 52.92417833 | AA124: 52.98732102 | AB124: 53.06186668 | AC124: 53.16822944 | AD124: 53.28246949 | AE124: 53.43307193 | AF124: 53.58888513 | AG124: 53.78396973 | AH124: 53.98235593 | AI124: 54.22052688 | AJ124: 54.46070075 | AK124: 54.73821107 | AL124: 55.0168814 | AM124: 55.3272525 | AN124: 55.63825682 | AO124: 55.97235182 | AP124: 56.30675418 | AQ124: 56.65333162 | AR124: 57
B125: 1.744 | C125: 57 | D125: 56.65337709 | E125: 56.31284172 | F125: 55.9725055 | G125: 55.64980216 | H125: 55.32756911 | I125: 55.03273178 | J125: 54.73879107 | K125: =f*(J124+L124)+(1-2*f)*K124 -> 54.47936897 | L125: 54.22152834 | M125: 54.0022483 | N125: 53.78562053 | O125: 53.60852083 | P125: 53.43567731 | Q125: 53.30065069 | R125: 53.17216808 | S125: 53.07777523 | T125: 52.9930225 | U125: 52.93739466 | V125: 52.89536595 | W125: 52.87701094 | X125: 52.87701094 | Y125: 52.89536595 | Z125: 52.93739466 | AA125: 52.9930225 | AB125: 53.07777523 | AC125: 53.17216808 | AD125: 53.30065069 | AE125: 53.43567731 | AF125: 53.60852083 | AG125: 53.78562053 | AH125: 54.0022483 | AI125: 54.22152834 | AJ125: 54.47936897 | AK125: 54.73879107 | AL125: 55.03273178 | AM125: 55.32756911 | AN125: 55.64980216 | AO125: 55.9725055 | AP125: 56.31284172 | AQ125: 56.65337709 | AR125: 57
B126: 1.759 | C126: 57 | D126: 56.65642086 | E126: 56.31294129 | F126: 55.98132194 | G126: 55.6500373 | H126: 55.34126697 | I126: 55.03318009 | J126: 54.75605038 | K126: 54.48015971 | L126: 54.24080864 | M126: 54.00357444 | N126: 53.80538457 | O126: 53.61064892 | P126: 53.45458576 | Q126: 53.3039227 | R126: 53.18921296 | S126: 53.08259529 | T126: 53.00758495 | U126: 52.94419423 | V126: 52.9072028 | W126: 52.88618845 | X126: 52.88618845 | Y126: 52.9072028 | Z126: 52.94419423 | AA126: 53.00758495 | AB126: 53.08259529 | AC126: 53.18921296 | AD126: 53.3039227 | AE126: 53.45458576 | AF126: 53.61064892 | AG126: 53.80538457 | AH126: 54.00357444 | AI126: 54.24080864 | AJ126: 54.48015971 | AK126: 54.75605038 | AL126: 55.03318009 | AM126: 55.34126697 | AN126: 55.6500373 | AO126: 55.98132194 | AP126: 56.31294129 | AQ126: 56.65642086 | AR126: 57
B127: 1.774 | C127: 57 | D127: 56.65647065 | E127: 56.3188714 | F127: 55.9814893 | G127: 55.66129445 | H127: 55.3416087 | I127: 55.04865867 | J127: 54.7566699 | K127: 54.49842951 | L127: 54.24186707 | M127: 54.0230966 | N127: 53.80711168 | O127: 53.62998516 | P127: 53.45728581 | Q127: 53.32189936 | R127: 53.19325899 | S127: 53.09839895 | T127: 53.01339476 | U127: 52.95739387 | V127: 52.91519134 | W127: 52.89669562 | X127: 52.89669562 | Y127: 52.91519134 | Z127: 52.95739387 | AA127: 53.01339476 | AB127: 53.09839895 | AC127: 53.19325899 | AD127: 53.32189936 | AE127: 53.45728581 | AF127: 53.62998516 | AG127: 53.80711168 | AH127: 54.0230966 | AI127: 54.24186707 | AJ127: 54.49842951 | AK127: 54.7566699 | AL127: 55.04865867 | AM127: 55.3416087 | AN127: 55.66129445 | AO127: 55.9814893 | AP127: 56.3188714 | AQ127: 56.65647065 | AR127: 57
B128: 1.789 | C128: 57 | D128: 56.6594357 | E128: 56.31897997 | F128: 55.99008293 | G128: 55.661549 | H128: 55.35497656 | I128: 55.0491393 | J128: 54.77354409 | K128: 54.49926849 | L128: 54.26076306 | M128: 54.02448938 | N128: 53.82654088 | O128: 53.63219874 | P128: 53.47594226 | Q128: 53.3252724 | R128: 53.21014916 | S128: 53.10332688 | T128: 53.02789641 | U128: 52.96429305 | V128: 52.92704475 | W128: 52.90594348 | X128: 52.90594348 | Y128: 52.92704475 | Z128: 52.96429305 | AA128: 53.02789641 | AB128: 53.10332688 | AC128: 53.21014916 | AD128: 53.3252724 | AE128: 53.47594226 | AF128: 53.63219874 | AG128: 53.82654088 | AH128: 54.02448938 | AI128: 54.26076306 | AJ128: 54.49926849 | AK128: 54.77354409 | AL128: 55.0491393 | AM128: 55.35497656 | AN128: 55.661549 | AO128: 55.99008293 | AP128: 56.31897997 | AQ128: 56.6594357 | AR128: 57
B129: 1.804 | C129: 57 | D129: 56.65948999 | E129: 56.32475931 | F129: 55.99026448 | G129: 55.67252974 | H129: 55.35534415 | I129: 55.06426033 | J129: 54.77420389 | K129: 54.51715357 | L129: 54.26187893 | M129: 54.04365197 | N129: 53.82834406 | O129: 53.65124157 | P129: 53.47873557 | Q129: 53.34304571 | R129: 53.21429964 | S129: 53.11902278 | T129: 53.03380996 | U129: 52.97747058 | V129: 52.93511826 | W129: 52.91649411 | X129: 52.91649411 | Y129: 52.93511826 | Z129: 52.97747058 | AA129: 53.03380996 | AB129: 53.11902278 | AC129: 53.21429964 | AD129: 53.34304571 | AE129: 53.47873557 | AF129: 53.65124157 | AG129: 53.82834406 | AH129: 54.04365197 | AI129: 54.26187893 | AJ129: 54.51715357 | AK129: 54.77420389 | AL129: 55.06426033 | AM129: 55.35534415 | AN129: 55.67252974 | AO129: 55.99026448 | AP129: 56.32475931 | AQ129: 56.65948999 | AR129: 57
B130: 1.819 | C130: 57 | D130: 56.66237966 | E130: 56.32487724 | F130: 55.99864453 | G130: 55.67280432 | H130: 55.36839504 | I130: 55.06477402 | J130: 54.79070695 | K130: 54.51804141 | L130: 54.28040277 | M130: 54.04511149 | N130: 53.84744677 | O130: 53.65353982 | P130: 53.49714364 | Q130: 53.34651761 | R130: 53.23103425 | S130: 53.1240548 | T130: 53.04824668 | U130: 52.98446411 | V130: 52.94698235 | W130: 52.92580619 | X130: 52.92580619 | Y130: 52.94698235 | Z130: 52.98446411 | AA130: 53.04824668 | AB130: 53.1240548 | AC130: 53.23103425 | AD130: 53.34651761 | AE130: 53.49714364 | AF130: 53.65353982 | AG130: 53.84744677 | AH130: 54.04511149 | AI130: 54.28040277 | AJ130: 54.51804141 | AK130: 54.79070695 | AL130: 55.06477402 | AM130: 55.36839504 | AN130: 55.67280432 | AO130: 55.99864453 | AP130: 56.32487724 | AQ130: 56.66237966 | AR130: 57
B131: 1.834 | C131: 57 | D131: 56.66243862 | E131: 56.33051209 | F131: 55.99884078 | G131: 55.68351978 | H131: 55.36878917 | I131: 55.07955099 | J131: 54.79140772 | K131: 54.53555486 | L131: 54.28157645 | M131: 54.06392477 | N131: 53.84932566 | O131: 53.67229521 | P131: 53.50002871 | Q131: 53.36408894 | R131: 53.2352862 | S131: 53.13964046 | T131: 53.05425946 | U131: 52.99761451 | V131: 52.95513515 | W131: 52.93639427 | X131: 52.93639427 | Y131: 52.95513515 | Z131: 52.99761451 | AA131: 53.05425946 | AB131: 53.13964046 | AC131: 53.2352862 | AD131: 53.36408894 | AE131: 53.50002871 | AF131: =f*(AE130+AG130)+(1-2*f)*AF130 -> 53.67229521 | AG131: 53.84932566 | AH131: 54.06392477 | AI131: 54.28157645 | AJ131: 54.53555486 | AK131: 54.79140772 | AL131: 55.07955099 | AM131: 55.36878917 | AN131: 55.68351978 | AO131: 55.99884078 | AP131: 56.33051209 | AQ131: 56.66243862 | AR131: 57
B132: 1.849 | C132: 57 | D132: 56.66525605 | E132: 56.3306397 | F132: 56.00701594 | G132: 55.68381497 | H132: 55.38153539 | I132: 55.08009844 | J132: 54.80755293 | K132: 54.53649208 | L132: 54.29973982 | M132: 54.06545105 | N132: 53.86810999 | O132: 53.67467718 | P132: 53.51819207 | Q132: 53.36765746 | R132: 53.2518647 | S132: 53.14477283 | T132: 53.06862749 | U132: 53.0046973 | V132: 52.96700439 | W132: 52.94576471 | X132: 52.94576471 | Y132: 52.96700439 | Z132: 53.0046973 | AA132: 53.06862749 | AB132: 53.14477283 | AC132: 53.2518647 | AD132: 53.36765746 | AE132: 53.51819207 | AF132: 53.67467718 | AG132: 53.86810999 | AH132: 54.06545105 | AI132: 54.29973982 | AJ132: 54.53649208 | AK132: 54.80755293 | AL132: 55.08009844 | AM132: 55.38153539 | AN132: 55.68381497 | AO132: 56.00701594 | AP132: 56.3306397 | AQ132: 56.66525605 | AR132: 57
B133: 1.864 | C133: 57 | D133: 56.66531985 | E133: 56.33613599 | F133: 56.00722733 | G133: 55.69427566 | H133: 55.38195671 | I133: 55.09454416 | J133: 54.80829526 | K133: 54.55364637 | L133: 54.30097157 | M133: 54.0839249 | N133: 53.87006412 | O133: 53.69315103 | P133: 53.52116732 | Q133: 53.38502839 | R133: 53.25621514 | S133: 53.1602461 | T133: 53.07473507 | U133: 53.01781594 | V133: 52.97523101 | W133: 52.95638455 | X133: 52.95638455 | Y133: 52.97523101 | Z133: 53.01781594 | AA133: 53.07473507 | AB133: 53.1602461 | AC133: 53.25621514 | AD133: 53.38502839 | AE133: 53.52116732 | AF133: 53.69315103 | AG133: 53.87006412 | AH133: 54.0839249 | AI133: 54.30097157 | AJ133: 54.55364637 | AK133: 54.80829526 | AL133: 55.09454416 | AM133: 55.38195671 | AN133: 55.69427566 | AO133: 56.00722733 | AP133: 56.33613599 | AQ133: 56.66531985 | AR133: 57
B134: 1.879 | C134: 57 | D134: 56.668068 | E134: 56.33627359 | F134: 56.01520583 | G134: 55.69459202 | H134: 55.39440991 | I134: 55.09512598 | J134: 54.82409526 | K134: 54.55463342 | L134: 54.31878564 | M134: 54.08551784 | N134: 53.88853797 | O134: 53.69561572 | P134: 53.53908971 | Q134: 53.38869123 | R134: 53.27263724 | S134: 53.16547511 | T134: 53.08903102 | U134: 53.02498304 | V134: 52.98710025 | W134: 52.96580778 | X134: 52.96580778 | Y134: 52.98710025 | Z134: 53.02498304 | AA134: 53.08903102 | AB134: 53.16547511 | AC134: 53.27263724 | AD134: 53.38869123 | AE134: 53.53908971 | AF134: 53.69561572 | AG134: 53.88853797 | AH134: 54.08551784 | AI134: 54.31878564 | AJ134: 54.55463342 | AK134: 54.82409526 | AL134: 55.09512598 | AM134: 55.39440991 | AN134: 55.69459202 | AO134: 56.01520583 | AP134: 56.33627359 | AQ134: 56.668068 | AR134: 57
B135: 1.894 | C135: 57 | D135: 56.6681368 | E135: 56.34163691 | F135: 56.01543281 | G135: 55.70480787 | H135: 55.394859 | I135: 55.10925259 | J135: 54.8248797 | K135: 54.57144045 | L135: 54.32007563 | M135: 54.1036618 | N135: 53.89056678 | O135: 53.71381384 | P135: 53.54215348 | Q135: 53.40586348 | R135: 53.27708317 | S135: 53.18083413 | T135: 53.09522907 | U135: 53.03806563 | V135: 52.99539541 | W135: 52.97645401 | X135: 52.97645401 | Y135: 52.99539541 | Z135: 53.03806563 | AA135: 53.09522907 | AB135: 53.18083413 | AC135: 53.27708317 | AD135: 53.40586348 | AE135: 53.54215348 | AF135: 53.71381384 | AG135: 53.89056678 | AH135: 54.1036618 | AI135: 54.32007563 | AJ135: 54.57144045 | AK135: 54.8248797 | AL135: 55.10925259 | AM135: 55.394859 | AN135: 55.70480787 | AO135: 56.01543281 | AP135: 56.34163691 | AQ135: 56.6681368 | AR135: 57
B136: 1.909 | C136: 57 | D136: 56.67081846 | E136: 56.3417848 | F136: 56.02322239 | G136: 55.7051459 | H136: 55.40703023 | I136: 55.10986935 | J136: 54.84034652 | K136: 54.57247767 | L136: 54.33755113 | M136: 54.10532121 | N136: 53.90873782 | O136: 53.71636013 | P136: 53.55983866 | Q136: 53.40961832 | R136: 53.2933488 | S136: 53.18615612 | T136: 53.10944988 | U136: 53.04531224 | V136: 53.00725982 | W136: 52.98592471 | X136: 52.98592471 | Y136: 53.00725982 | Z136: 53.04531224 | AA136: 53.10944988 | AB136: 53.18615612 | AC136: 53.2933488 | AD136: 53.40961832 | AE136: 53.55983866 | AF136: 53.71636013 | AG136: 53.90873782 | AH136: 54.10532121 | AI136: 54.33755113 | AJ136: 54.57247767 | AK136: 54.84034652 | AL136: 55.10986935 | AM136: 55.40703023 | AN136: 55.7051459 | AO136: 56.02322239 | AP136: 56.3417848 | AQ136: 56.67081846 | AR136: 57
B137: 1.924 | C137: 57 | D137: 56.6708924 | E137: 56.34702042 | F137: 56.02346535 | G137: 55.71512631 | H137: 55.40750763 | I137: 55.12368837 | J137: 54.84117351 | K137: 54.58894882 | L137: 54.33889944 | M137: 54.12314447 | N137: 53.91084067 | O137: 53.73428824 | P137: 53.56298923 | Q137: 53.42659373 | R137: 53.29788722 | S137: 53.20139934 | T137: 53.11573418 | U137: 53.05835485 | V137: 53.01561848 | W137: 52.99659227 | X137: 52.99659227 | Y137: 53.01561848 | Z137: 53.05835485 | AA137: 53.11573418 | AB137: 53.20139934 | AC137: 53.29788722 | AD137: 53.42659373 | AE137: 53.56298923 | AF137: 53.73428824 | AG137: 53.91084067 | AH137: 54.12314447 | AI137: 54.33889944 | AJ137: 54.58894882 | AK137: 54.84117351 | AL137: 55.12368837 | AM137: 55.40750763 | AN137: 55.71512631 | AO137: 56.02346535 | AP137: 56.34702042 | AQ137: 56.6708924 | AR137: 57
B138: 1.939 | C138: 57 | D138: 56.67351021 | E138: 56.34717888 | F138: 56.03107337 | G138: 55.71548649 | H138: 55.41940734 | I138: 55.12434057 | J138: 54.8563186 | K138: 54.59003647 | L138: 54.35604665 | M138: 54.12487005 | N138: =f*(M137+O137)+(1-2*f)*N137 -> 53.92871636 | O138: 53.73691495 | P138: 53.58044098 | Q138: 53.43043822 | R138: 53.31399654 | S138: 53.2068107 | T138: 53.1298771 | U138: 53.06567633 | V138: 53.02747356 | W138: 53.00610537 | X138: 53.00610537 | Y138: 53.02747356 | Z138: 53.06567633 | AA138: 53.1298771 | AB138: 53.2068107 | AC138: 53.31399654 | AD138: 53.43043822 | AE138: 53.58044098 | AF138: 53.73691495 | AG138: 53.92871636 | AH138: 54.12487005 | AI138: 54.35604665 | AJ138: 54.59003647 | AK138: 54.8563186 | AL138: 55.12434057 | AM138: 55.41940734 | AN138: 55.71548649 | AO138: 56.03107337 | AP138: 56.34717888 | AQ138: 56.67351021 | AR138: 57
B139: 1.954 | C139: 57 | D139: 56.67358944 | E139: 56.35229179 | F139: 56.03133268 | G139: 55.72524035 | H139: 55.41991353 | I139: 55.13786297 | J139: 54.85718852 | K139: 54.60618262 | L139: 54.35745326 | M139: 54.1423815 | N139: 53.9308925 | O139: 53.75457867 | P139: 53.58367659 | Q139: 53.44721876 | R139: 53.31862446 | S139: 53.22193682 | T139: 53.13624351 | U139: 53.07867533 | V139: 53.03589085 | W139: 53.01678946 | X139: 53.01678946 | Y139: 53.03589085 | Z139: 53.07867533 | AA139: 53.13624351 | AB139: 53.22193682 | AC139: 53.31862446 | AD139: 53.44721876 | AE139: 53.58367659 | AF139: 53.75457867 | AG139: 53.9308925 | AH139: 54.1423815 | AI139: 54.35745326 | AJ139: 54.60618262 | AK139: 54.85718852 | AL139: 55.13786297 | AM139: 55.41991353 | AN139: 55.72524035 | AO139: 56.03133268 | AP139: 56.35229179 | AQ139: 56.67358944 | AR139: 57
B140: 1.969 | C140: 57 | D140: 56.67614589 | E140: 56.35246106 | F140: 56.03876607 | G140: 55.72562311 | H140: 55.43155166 | I140: 55.13855102 | J140: 54.8720228 | K140: 54.60732089 | L140: 54.37428206 | M140: 54.14417288 | N140: 53.94848009 | O140: 53.75728454 | P140: 53.60089872 | Q140: 53.45115052 | R140: 53.33457779 | S140: 53.22743399 | T140: 53.15030607 | U140: 53.08606718 | V140: 53.0477324 | W140: 53.02634016 | X140: 53.02634016 | Y140: 53.0477324 | Z140: 53.08606718 | AA140: 53.15030607 | AB140: 53.22743399 | AC140: 53.33457779 | AD140: 53.45115052 | AE140: 53.60089872 | AF140: 53.75728454 | AG140: 53.94848009 | AH140: 54.14417288 | AI140: 54.37428206 | AJ140: 54.60732089 | AK140: 54.8720228 | AL140: 55.13855102 | AM140: 55.43155166 | AN140: 55.72562311 | AO140: 56.03876607 | AP140: 56.35246106 | AQ140: 56.67614589 | AR140: 57
B141: 1.984 | C141: 57 | D141: 56.67623053 | E141: 56.35745598 | F141: 56.03904208 | G141: 55.73515887 | H141: 55.43208707 | I141: 55.15178723 | J141: 54.87293596 | K141: 54.62315243 | L141: 54.37574689 | M141: 54.16138107 | N141: 53.95072871 | O141: 53.7746894 | P141: 53.60421753 | Q141: 53.46773825 | R141: 53.33929226 | S141: 53.24244193 | T141: 53.15675058 | U141: 53.09901923 | V141: 53.05620367 | W141: 53.03703628 | X141: 53.03703628 | Y141: 53.05620367 | Z141: 53.09901923 | AA141: 53.15675058 | AB141: 53.24244193 | AC141: 53.33929226 | AD141: 53.46773825 | AE141: 53.60421753 | AF141: 53.7746894 | AG141: 53.95072871 | AH141: 54.16138107 | AI141: 54.37574689 | AJ141: 54.62315243 | AK141: 54.87293596 | AL141: 55.15178723 | AM141: 55.43208707 | AN141: 55.73515887 | AO141: 56.03904208 | AP141: 56.35745598 | AQ141: 56.67623053 | AR141: 57
B142: 1.999 | C142: 57 | D142: =f*(C141+E141)+(1-2*f)*D141 -> 56.67872799 | E142: 56.35763631 | F142: 56.04630742 | G142: 55.73556457 | H142: 55.44347305 | I142: 55.15251151 | J142: 54.88746983 | K142: 54.62434142 | L142: 54.39226675 | M142: 54.1632378 | N142: 53.96803524 | O142: 53.77747312 | P142: 53.62121383 | Q142: 53.47175489 | R142: 53.35509009 | S142: 53.24802142 | T142: 53.17073058 | U142: 53.10647713 | V142: 53.06802776 | W142: 53.04661997 | X142: 53.04661997 | Y142: 53.06802776 | Z142: 53.10647713 | AA142: 53.17073058 | AB142: 53.24802142 | AC142: 53.35509009 | AD142: 53.47175489 | AE142: 53.62121383 | AF142: 53.77747312 | AG142: 53.96803524 | AH142: 54.1632378 | AI142: 54.39226675 | AJ142: 54.62434142 | AK142: 54.88746983 | AL142: 55.15251151 | AM142: 55.44347305 | AN142: 55.73556457 | AO142: 56.04630742 | AP142: 56.35763631 | AQ142: 56.67872799 | AR142: 57
B143: 2.014 | C143: 57 | D143: 56.67881815 | E143: 56.36251771 | F143: 56.04660044 | G143: 55.74489024 | H143: 55.44403804 | I143: 55.16547144 | J143: 54.88842647 | K143: 54.63986829 | L143: 54.39378961 | M143: 54.18015099 | N143: 53.97035546 | O143: 53.79462453 | P143: 53.62461401 | Q143: 53.48815196 | R143: 53.35988816 | S143: 53.26291034 | T143: 53.17724927 | U143: 53.11937917 | V143: 53.07654855 | W143: 53.05732386 | X143: 53.05732386 | Y143: 53.07654855 | Z143: 53.11937917 | AA143: 53.17724927 | AB143: 53.26291034 | AC143: 53.35988816 | AD143: 53.48815196 | AE143: 53.62461401 | AF143: 53.79462453 | AG143: 53.97035546 | AH143: 54.18015099 | AI143: 54.39378961 | AJ143: 54.63986829 | AK143: 54.88842647 | AL143: 55.16547144 | AM143: 55.44403804 | AN143: 55.74489024 | AO143: 56.04660044 | AP143: 56.36251771 | AQ143: 56.67881815 | AR143: 57
B144: 2.029 | C144: 57 | D144: 56.68125885 | E144: 56.3627093 | F144: 56.05370397 | G144: 55.74531924 | H144: 55.45518084 | I144: 55.16623225 | J144: 54.90266986 | K144: 54.64110804 | L144: 54.41000964 | M144: 54.18207254 | N144: 53.98738776 | O144: 53.79748473 | P144: 53.64138825 | Q144: 53.49225108 | R144: 53.37553115 | S144: 53.26856872 | T144: 53.19114475 | U144: 53.12689891 | V144: 53.08835152 | W144: 53.06693621 | X144: 53.06693621 | Y144: 53.08835152 | Z144: 53.12689891 | AA144: 53.19114475 | AB144: 53.26856872 | AC144: 53.37553115 | AD144: 53.49225108 | AE144: 53.64138825 | AF144: 53.79748473 | AG144: 53.98738776 | AH144: 54.18207254 | AI144: =f*(AH143+AJ143)+(1-2*f)*AI143 -> 54.41000964 | AJ144: 54.64110804 | AK144: 54.90266986 | AL144: 55.16623225 | AM144: 55.45518084 | AN144: 55.74531924 | AO144: 56.05370397 | AP144: 56.3627093 | AQ144: 56.68125885 | AR144: 57
B145: 2.044 | C145: 57 | D145: 56.68135465 | E145: 56.36748141 | F145: 56.05401427 | G145: 55.7544424 | H145: 55.45577575 | I145: 55.17892535 | J145: 54.90367015 | K145: 54.65633975 | L145: 54.41159029 | M145: 54.1986987 | N145: 53.98977863 | O145: 53.814388 | P145: 53.64486791 | Q145: 53.5084597 | R145: 53.3804099 | S145: 53.28333795 | T145: 53.19773381 | U145: 53.13974813 | V145: 53.09691756 | W145: 53.07764386 | X145: 53.07764386 | Y145: 53.09691756 | Z145: 53.13974813 | AA145: 53.19773381 | AB145: 53.28333795 | AC145: 53.3804099 | AD145: 53.5084597 | AE145: 53.64486791 | AF145: 53.814388 | AG145: 53.98977863 | AH145: 54.1986987 | AI145: 54.41159029 | AJ145: 54.65633975 | AK145: 54.90367015 | AL145: 55.17892535 | AM145: 55.45577575 | AN145: 55.7544424 | AO145: 56.05401427 | AP145: 56.36748141 | AQ145: 56.68135465 | AR145: 57
B146: 2.059 | C146: 57 | D146: 56.68374071 | E146: 56.36768446 | F146: 56.06096191 | G146: 55.75489501 | H146: 55.46668388 | I146: 55.17972295 | J146: 54.91763255 | K146: 54.65763022 | L146: 54.42751923 | M146: 54.20068446 | N146: 54.00654335 | O146: 53.81732327 | P146: 53.66142385 | Q146: 53.5126389 | R146: 53.39589882 | S146: 53.28907186 | T146: 53.21154304 | U146: 53.14732569 | V146: 53.108696 | W146: 53.08728071 | X146: 53.08728071 | Y146: 53.108696 | Z146: 53.14732569 | AA146: 53.21154304 | AB146: 53.28907186 | AC146: 53.39589882 | AD146: 53.5126389 | AE146: 53.66142385 | AF146: 53.81732327 | AG146: 54.00654335 | AH146: 54.20068446 | AI146: 54.42751923 | AJ146: 54.65763022 | AK146: 54.91763255 | AL146: 55.17972295 | AM146: 55.46668388 | AN146: 55.75489501 | AO146: 56.06096191 | AP146: 56.36768446 | AQ146: 56.68374071 | AR146: 57
B147: 2.074 | C147: 57 | D147: 56.68384223 | E147: 56.37235131 | F147: 56.06128973 | G147: 55.76382289 | H147: 55.46730898 | I147: 55.19215821 | J147: 54.91867658 | K147: 54.67257589 | L147: 54.42915734 | M147: 54.21703129 | N147: 54.00900387 | O147: 53.8339836 | P147: 53.66498109 | Q147: 53.52866134 | R147: 53.40085538 | S147: 53.30372093 | T147: 53.21819877 | U147: 53.16011952 | V147: 53.1173032 | W147: 53.09798835 | X147: 53.09798835 | Y147: 53.1173032 | Z147: 53.16011952 | AA147: 53.21819877 | AB147: 53.30372093 | AC147: 53.40085538 | AD147: 53.52866134 | AE147: 53.66498109 | AF147: 53.8339836 | AG147: 54.00900387 | AH147: 54.21703129 | AI147: 54.42915734 | AJ147: 54.67257589 | AK147: 54.91867658 | AL147: 55.19215821 | AM147: 55.46730898 | AN147: 55.76382289 | AO147: 56.06128973 | AP147: 56.37235131 | AQ147: 56.68384223 | AR147: 57
B148: 2.089 | C148: 57 | D148: 56.68617565 | E148: 56.37256598 | F148: 56.0680871 | G148: 55.76429936 | H148: 55.47799055 | I148: 55.19299278 | J148: 54.93236705 | K148: 54.67391696 | L148: 54.44480359 | M148: 54.2190806 | N148: 54.02550745 | O148: 53.83699248 | P148: 53.68132247 | Q148: 53.53291823 | R148: 53.41619114 | S148: 53.30952708 | T148: 53.23192023 | U148: 53.16775099 | V148: 53.12905394 | W148: 53.10764578 | X148: 53.10764578 | Y148: 53.12905394 | Z148: 53.16775099 | AA148: 53.23192023 | AB148: 53.30952708 | AC148: 53.41619114 | AD148: 53.53291823 | AE148: 53.68132247 | AF148: 53.83699248 | AG148: 54.02550745 | AH148: 54.2190806 | AI148: 54.44480359 | AJ148: 54.67391696 | AK148: 54.93236705 | AL148: 55.19299278 | AM148: 55.47799055 | AN148: 55.76429936 | AO148: 56.0680871 | AP148: 56.37256598 | AQ148: 56.68617565 | AR148: 57
B149: 2.104 | C149: 57 | D149: 56.68628299 | E149: 56.37713138 | F149: 56.06843267 | G149: 55.77303883 | H149: 55.47864607 | I149: 55.2051788 | J149: 54.93345487 | K149: 54.68858532 | L149: 54.44649878 | M149: 54.23515552 | N149: 54.02803654 | O149: 53.85341496 | P149: 53.68495536 | Q149: 53.5487568 | R149: 53.42122265 | S149: 53.32405568 | T149: 53.23863903 | U149: 53.18048708 | V149: 53.13769838 | W149: 53.11834986 | X149: 53.11834986 | Y149: 53.13769838 | Z149: 53.18048708 | AA149: 53.23863903 | AB149: 53.32405568 | AC149: 53.42122265 | AD149: 53.5487568 | AE149: 53.68495536 | AF149: 53.85341496 | AG149: 54.02803654 | AH149: 54.23515552 | AI149: 54.44649878 | AJ149: 54.68858532 | AK149: 54.93345487 | AL149: 55.2051788 | AM149: 55.47864607 | AN149: 55.77303883 | AO149: 56.06843267 | AP149: 56.37713138 | AQ149: 56.68628299 | AR149: 57
B150: 2.119 | C150: 57 | D150: 56.68856569 | E150: 56.37735783 | F150: 56.0750851 | G150: 55.77353937 | H150: 55.48910882 | I150: 55.20605047 | J150: 54.94688206 | K150: 54.68997683 | L150: 54.46187042 | M150: 54.23726766 | N150: 54.04428524 | O150: 53.85649595 | P150: 53.70108588 | Q150: 53.55308901 | R150: 53.43640624 | S150: 53.32993084 | T150: 53.25227138 | U150: 53.18816871 | V150: 53.14941847 | W150: 53.12802412 | X150: 53.12802412 | Y150: 53.14941847 | Z150: 53.18816871 | AA150: 53.25227138 | AB150: 53.32993084 | AC150: 53.43640624 | AD150: 53.55308901 | AE150: 53.70108588 | AF150: 53.85649595 | AG150: 54.04428524 | AH150: 54.23726766 | AI150: 54.46187042 | AJ150: 54.68997683 | AK150: 54.94688206 | AL150: 55.20605047 | AM150: 55.48910882 | AN150: 55.77353937 | AO150: 56.0750851 | AP150: 56.37735783 | AQ150: 56.68856569 | AR150: 57
B151: 2.134 | C151: 57 | D151: 56.68867891 | E151: 56.3818254 | F151: 56.0754486 | G151: 55.78209696 | H151: 55.48979492 | I151: 55.21799544 | J151: 54.94801365 | K151: 54.70437624 | L151: 54.46362224 | M151: 54.25307783 | N151: 54.0468818 | O151: 53.87268556 | P151: 53.70479248 | Q151: =f*(P150+R150)+(1-2*f)*Q150 -> 53.56874606 | R151: 53.44150992 | S151: 53.34433881 | T151: 53.25904977 | U151: 53.20084493 | V151: 53.15809641 | W151: 53.13872129 | X151: 53.13872129 | Y151: 53.15809641 | Z151: 53.20084493 | AA151: 53.25904977 | AB151: 53.34433881 | AC151: 53.44150992 | AD151: 53.56874606 | AE151: 53.70479248 | AF151: 53.87268556 | AG151: 54.0468818 | AH151: 54.25307783 | AI151: 54.46362224 | AJ151: 54.70437624 | AK151: 54.94801365 | AL151: 55.21799544 | AM151: 55.48979492 | AN151: 55.78209696 | AO151: 56.0754486 | AP151: 56.3818254 | AQ151: 56.68867891 | AR151: 57
B152: 2.149 | C152: 57 | D152: 56.6909127 | E152: 56.38206376 | F152: 56.08196118 | G152: 55.78262176 | H152: 55.5000462 | I152: 55.21890428 | J152: 54.96118584 | K152: 54.70581795 | L152: 54.47872704 | M152: 54.25525202 | N152: 54.06288169 | O152: 53.87583714 | P152: 53.72071581 | Q152: 53.5731512 | R152: 53.45654244 | S152: 53.35027985 | T152: 53.27259187 | U152: 53.20857309 | V152: 53.16978311 | W152: 53.14840885 | X152: 53.14840885 | Y152: 53.16978311 | Z152: 53.20857309 | AA152: 53.27259187 | AB152: 53.35027985 | AC152: 53.45654244 | AD152: 53.5731512 | AE152: 53.72071581 | AF152: 53.87583714 | AG152: 54.06288169 | AH152: 54.25525202 | AI152: 54.47872704 | AJ152: 54.70581795 | AK152: 54.96118584 | AL152: 55.21890428 | AM152: 55.5000462 | AN152: 55.78262176 | AO152: 56.08196118 | AP152: 56.38206376 | AQ152: 56.6909127 | AR152: 57
B153: 2.164 | C153: 57 | D153: 56.69103188 | E153: 56.38643694 | F153: 56.08234276 | G153: 55.79100369 | H153: 55.50076302 | I153: 55.23061602 | J153: 54.96236111 | K153: 54.71995644 | L153: 54.48053498 | M153: 54.27080436 | N153: 54.06554458 | O153: 53.89179875 | P153: 53.72449417 | Q153: 53.58862912 | R153: 53.46171552 | S153: 53.36456715 | T153: 53.27942647 | U153: 53.22118749 | V153: 53.17849097 | W153: 53.15909598 | X153: 53.15909598 | Y153: 53.17849097 | Z153: 53.22118749 | AA153: 53.27942647 | AB153: 53.36456715 | AC153: 53.46171552 | AD153: 53.58862912 | AE153: 53.72449417 | AF153: 53.89179875 | AG153: 54.06554458 | AH153: 54.27080436 | AI153: 54.48053498 | AJ153: 54.71995644 | AK153: 54.96236111 | AL153: 55.23061602 | AM153: 55.50076302 | AN153: 55.79100369 | AO153: 56.08234276 | AP153: 56.38643694 | AQ153: 56.69103188 | AR153: 57
B154: 2.179 | C154: 57 | D154: 56.69321847 | E154: 56.38668732 | F154: 56.08872031 | G154: 55.79155289 | H154: 55.51080985 | I154: 55.23156207 | J154: 54.97528623 | K154: 54.72144805 | L154: 54.4953804 | M154: 54.27303978 | N154: 54.08130156 | O154: 53.89501938 | P154: 53.74021394 | Q154: 53.59310485 | R154: 53.47659814 | S154: 53.370571 | T154: 53.29287732 | U154: 53.22895872 | V154: 53.19014174 | W154: 53.16879348 | X154: 53.16879348 | Y154: 53.19014174 | Z154: 53.22895872 | AA154: 53.29287732 | AB154: 53.370571 | AC154: 53.47659814 | AD154: 53.59310485 | AE154: 53.74021394 | AF154: 53.89501938 | AG154: 54.08130156 | AH154: 54.27303978 | AI154: 54.4953804 | AJ154: 54.72144805 | AK154: 54.97528623 | AL154: 55.23156207 | AM154: 55.51080985 | AN154: 55.79155289 | AO154: 56.08872031 | AP154: 56.38668732 | AQ154: 56.69321847 | AR154: 57
B155: 2.194 | C155: 57 | D155: 56.69334366 | E155: 56.39096939 | F155: 56.0891201 | G155: 55.79976508 | H155: 55.51155748 | I155: 55.24304804 | J155: 54.97650506 | K155: 54.73533331 | L155: 54.49724392 | M155: 54.28834098 | N155: 54.08402958 | O155: 53.91075775 | P155: 53.74406211 | Q155: 53.60840604 | R155: 53.48183792 | S155: 53.38473773 | T155: 53.29976486 | U155: 53.24150953 | V155: 53.1988761 | W155: 53.17946761 | X155: 53.17946761 | Y155: 53.1988761 | Z155: 53.24150953 | AA155: 53.29976486 | AB155: 53.38473773 | AC155: 53.48183792 | AD155: 53.60840604 | AE155: 53.74406211 | AF155: 53.91075775 | AG155: 54.08402958 | AH155: 54.28834098 | AI155: 54.49724392 | AJ155: 54.73533331 | AK155: 54.97650506 | AL155: 55.24304804 | AM155: 55.51155748 | AN155: 55.79976508 | AO155: 56.0891201 | AP155: 56.39096939 | AQ155: 56.69334366 | AR155: 57
B156: 2.209 | C156: 57 | D156: 56.6954847 | E156: 56.39123188 | F156: 56.09536724 | G156: 55.80033879 | H156: 55.52140656 | I156: 55.24403127 | J156: 54.98919068 | K156: 54.73687449 | L156: 54.51183715 | M156: 54.29063675 | N156: 54.09954936 | O156: 53.91404585 | P156: 53.75958189 | Q156: 53.61295002 | R156: 53.49657188 | S156: 53.39080139 | T156: 53.31312363 | U156: 53.24932048 | V156: 53.21048857 | W156: 53.18917185 | X156: 53.18917185 | Y156: 53.21048857 | Z156: 53.24932048 | AA156: 53.31312363 | AB156: 53.39080139 | AC156: 53.49657188 | AD156: 53.61295002 | AE156: 53.75958189 | AF156: 53.91404585 | AG156: 54.09954936 | AH156: 54.29063675 | AI156: 54.51183715 | AJ156: 54.73687449 | AK156: 54.98919068 | AL156: 55.24403127 | AM156: 55.52140656 | AN156: 55.80033879 | AO156: 56.09536724 | AP156: 56.39123188 | AQ156: 56.6954847 | AR156: 57
B157: 2.224 | C157: 57 | D157: 56.69561594 | E157: 56.39542597 | F157: 56.09578534 | G157: 55.8083869 | H157: 55.52218503 | I157: 55.25529862 | J157: 54.99045288 | K157: 54.75051391 | L157: 54.51375562 | M157: 54.30569326 | N157: 54.1023413 | O157: 53.92956563 | P157: 53.76349793 | Q157: 53.62807689 | R157: 53.5018757 | S157: 53.40484776 | T157: 53.32006094 | U157: 53.2618061 | V157: 53.21924617 | W157: 53.19983021 | X157: 53.19983021 | Y157: 53.21924617 | Z157: 53.2618061 | AA157: 53.32006094 | AB157: 53.40484776 | AC157: 53.5018757 | AD157: 53.62807689 | AE157: 53.76349793 | AF157: 53.92956563 | AG157: 54.1023413 | AH157: 54.30569326 | AI157: 54.51375562 | AJ157: 54.75051391 | AK157: 54.99045288 | AL157: =f*(AK156+AM156)+(1-2*f)*AL156 -> 55.25529862 | AM157: 55.52218503 | AN157: 55.8083869 | AO157: 56.09578534 | AP157: 56.39542597 | AQ157: 56.69561594 | AR157: 57
B158: 2.239 | C158: 57 | D158: 56.69771298 | E158: 56.39570064 | F158: 56.10190643 | G158: 55.80898518 | H158: 55.53184276 | I158: 55.25631895 | J158: 55.00290627 | K158: 54.75210425 | L158: 54.52810358 | M158: 54.30804846 | N158: 54.11762944 | O158: 53.93291961 | P158: 53.77882126 | Q158: 53.63268682 | R158: 53.51646232 | S158: 53.41096832 | T158: 53.33332693 | U158: 53.26965355 | V158: 53.23081815 | W158: 53.20953819 | X158: 53.20953819 | Y158: 53.23081815 | Z158: 53.26965355 | AA158: 53.33332693 | AB158: 53.41096832 | AC158: 53.51646232 | AD158: 53.63268682 | AE158: 53.77882126 | AF158: 53.93291961 | AG158: 54.11762944 | AH158: 54.30804846 | AI158: 54.52810358 | AJ158: 54.75210425 | AK158: 55.00290627 | AL158: 55.25631895 | AM158: 55.53184276 | AN158: 55.80898518 | AO158: 56.10190643 | AP158: 56.39570064 | AQ158: 56.69771298 | AR158: 57
B159: 2.254 | C159: 57 | D159: 56.69785032 | E159: 56.39980971 | F159: 56.10234291 | G159: 55.8168746 | H159: 55.53265207 | I159: 55.26737451 | J159: 55.0042116 | K159: 54.76550493 | L159: 54.53007635 | M159: 54.32286651 | N159: 54.12048404 | O159: 53.94822535 | P159: 53.78280322 | Q159: 53.64764179 | R159: 53.52182757 | S159: 53.42489462 | T159: 53.34031094 | U159: 53.28207254 | V159: 53.23959587 | W159: 53.22017817 | X159: 53.22017817 | Y159: 53.23959587 | Z159: 53.28207254 | AA159: 53.34031094 | AB159: 53.42489462 | AC159: 53.52182757 | AD159: 53.64764179 | AE159: 53.78280322 | AF159: 53.94822535 | AG159: 54.12048404 | AH159: 54.32286651 | AI159: 54.53007635 | AJ159: 54.76550493 | AK159: 55.0042116 | AL159: 55.26737451 | AM159: 55.53265207 | AN159: 55.8168746 | AO159: 56.10234291 | AP159: 56.39980971 | AQ159: 56.69785032 | AR159: 57
B160: 2.269 | C160: 57 | D160: 56.69990485 | E160: 56.40009662 | F160: 56.10834215 | G160: 55.81749749 | H160: 55.54212455 | I160: 55.26843183 | J160: 55.01643972 | K160: 54.76714398 | L160: 54.54418572 | M160: 54.32528019 | N160: 54.13554593 | O160: 53.95164363 | P160: 53.79793357 | Q160: 53.65231539 | R160: 53.53626821 | S160: 53.43106925 | T160: 53.35348358 | U160: 53.2899534 | V160: 53.25112536 | W160: 53.22988702 | X160: 53.22988702 | Y160: 53.25112536 | Z160: 53.2899534 | AA160: 53.35348358 | AB160: 53.43106925 | AC160: 53.53626821 | AD160: 53.65231539 | AE160: 53.79793357 | AF160: 53.95164363 | AG160: 54.13554593 | AH160: 54.32528019 | AI160: 54.54418572 | AJ160: 54.76714398 | AK160: 55.01643972 | AL160: 55.26843183 | AM160: 55.54212455 | AN160: 55.81749749 | AO160: 56.10834215 | AP160: 56.40009662 | AQ160: 56.69990485 | AR160: 57
B161: 2.284 | C161: 57 | D161: 56.70004831 | E161: 56.4041235 | F161: 56.10879705 | G161: 55.82523335 | H161: 55.54296466 | I161: 55.27928214 | J161: 55.01778791 | K161: 54.78031272 | L161: 54.54621209 | M161: 54.33986583 | N161: 54.13846191 | O161: 53.96673975 | P161: 53.80197951 | Q161: 53.66710089 | R161: 53.54169232 | S161: 53.4448759 | T161: 53.36051133 | U161: 53.30230447 | V161: 53.25992021 | W161: 53.24050619 | X161: 53.24050619 | Y161: 53.25992021 | Z161: 53.30230447 | AA161: 53.36051133 | AB161: 53.4448759 | AC161: 53.54169232 | AD161: 53.66710089 | AE161: 53.80197951 | AF161: 53.96673975 | AG161: 54.13846191 | AH161: 54.33986583 | AI161: 54.54621209 | AJ161: 54.78031272 | AK161: 55.01778791 | AL161: 55.27928214 | AM161: 55.54296466 | AN161: 55.82523335 | AO161: 56.10879705 | AP161: 56.4041235 | AQ161: 56.70004831 | AR161: 57
B162: 2.299 | C162: 57 | D162: 56.70206175 | E162: 56.40442268 | F162: 56.11467843 | G162: 55.82588086 | H162: 55.55225775 | I162: 55.28037628 | J162: 55.02979743 | K162: 54.782 | L162: 54.56008927 | M162: 54.342337 | N162: 54.15330279 | O162: 53.97022071 | P162: 53.81692032 | Q162: 53.67183592 | R162: 53.55598839 | S162: 53.45110182 | T162: 53.37359018 | U162: 53.31021577 | V162: 53.27140533 | W162: 53.2502132 | X162: 53.2502132 | Y162: 53.27140533 | Z162: 53.31021577 | AA162: 53.37359018 | AB162: 53.45110182 | AC162: 53.55598839 | AD162: 53.67183592 | AE162: 53.81692032 | AF162: 53.97022071 | AG162: 54.15330279 | AH162: 54.342337 | AI162: 54.56008927 | AJ162: 54.782 | AK162: 55.02979743 | AL162: 55.28037628 | AM162: 55.55225775 | AN162: 55.82588086 | AO162: 56.11467843 | AP162: 56.40442268 | AQ162: 56.70206175 | AR162: 57
B163: 2.314 | C163: 57 | D163: 56.70221134 | E163: 56.40837009 | F163: 56.11515177 | G163: 55.83346809 | H163: 55.55312857 | I163: 55.29102759 | J163: 55.03118814 | K163: 54.79494335 | L163: 54.5621685 | M163: 54.35669603 | N163: 54.15627885 | O163: 53.98511155 | P163: 53.82102831 | Q163: 53.68645436 | R163: 53.56146887 | S163: 53.46478929 | T163: 53.3806588 | U163: 53.32249776 | V163: 53.28021448 | W163: 53.26080926 | X163: 53.26080926 | Y163: 53.28021448 | Z163: 53.32249776 | AA163: 53.3806588 | AB163: 53.46478929 | AC163: 53.56146887 | AD163: 53.68645436 | AE163: 53.82102831 | AF163: 53.98511155 | AG163: 54.15627885 | AH163: 54.35669603 | AI163: 54.5621685 | AJ163: 54.79494335 | AK163: 55.03118814 | AL163: 55.29102759 | AM163: 55.55312857 | AN163: 55.83346809 | AO163: 56.11515177 | AP163: 56.40837009 | AQ163: 56.70221134 | AR163: 57
B164: 2.329 | C164: 57 | D164: 56.70418504 | E164: 56.40868155 | F164: 56.12091909 | G164: 55.83414017 | H164: 55.56224784 | I164: 55.29215836 | J164: 55.04298547 | K164: 54.79667832 | L164: 54.57581969 | M164: 54.35922368 | N164: 54.17090379 | O164: 53.98865358 | P164: 53.83578295 | Q164: 53.69124859 | R164: 53.57562182 | S164: 53.47106383 | T164: =f*(S163+U163)+(1-2*f)*T163 -> 53.39364352 | U164: 53.33043664 | V164: 53.29165351 | W164: 53.27051187 | X164: 53.27051187 | Y164: 53.29165351 | Z164: 53.33043664 | AA164: 53.39364352 | AB164: 53.47106383 | AC164: 53.57562182 | AD164: 53.69124859 | AE164: 53.83578295 | AF164: 53.98865358 | AG164: 54.17090379 | AH164: 54.35922368 | AI164: 54.57581969 | AJ164: 54.79667832 | AK164: 55.04298547 | AL164: 55.29215836 | AM164: 55.56224784 | AN164: 55.83414017 | AO164: 56.12091909 | AP164: 56.40868155 | AQ164: 56.70418504 | AR164: 57
B165: 2.344 | C165: 57 | D165: 56.70434078 | E165: 56.41255207 | F165: 56.12141086 | G165: 55.84158346 | H165: 55.56314926 | I165: 55.30261665 | J165: 55.04441834 | K165: 54.80940258 | L165: 54.577951 | M165: 54.37336174 | N165: 54.17393863 | O165: 54.00334337 | P165: 53.83995109 | Q165: 53.70570239 | R165: 53.58115621 | S165: 53.48463267 | T165: 53.40075024 | U165: 53.34264852 | V165: 53.30047426 | W165: 53.28108269 | X165: 53.28108269 | Y165: 53.30047426 | Z165: 53.34264852 | AA165: 53.40075024 | AB165: 53.48463267 | AC165: 53.58115621 | AD165: 53.70570239 | AE165: 53.83995109 | AF165: 54.00334337 | AG165: 54.17393863 | AH165: 54.37336174 | AI165: 54.577951 | AJ165: 54.80940258 | AK165: 55.04441834 | AL165: 55.30261665 | AM165: 55.56314926 | AN165: 55.84158346 | AO165: 56.12141086 | AP165: 56.41255207 | AQ165: 56.70434078 | AR165: 57
B166: 2.359 | C166: 57 | D166: 56.70627603 | E166: 56.41287582 | F166: 56.12706776 | G166: 55.84228006 | H166: 55.57210006 | I166: 55.3037838 | J166: 55.05600962 | K166: 54.81118467 | L166: 54.59138216 | M166: 54.37594481 | N166: 54.18835256 | O166: 54.00694486 | P166: 53.85452288 | Q166: 53.71055365 | R166: 53.59516753 | S166: 53.49095323 | T166: 53.41364059 | U166: 53.35061225 | V166: 53.3118656 | W166: 53.29077848 | X166: 53.29077848 | Y166: 53.3118656 | Z166: 53.35061225 | AA166: 53.41364059 | AB166: 53.49095323 | AC166: 53.59516753 | AD166: 53.71055365 | AE166: 53.85452288 | AF166: 54.00694486 | AG166: 54.18835256 | AH166: 54.37594481 | AI166: 54.59138216 | AJ166: 54.81118467 | AK166: 55.05600962 | AL166: 55.3037838 | AM166: 55.57210006 | AN166: 55.84228006 | AO166: 56.12706776 | AP166: 56.41287582 | AQ166: 56.70627603 | AR166: 57
B167: 2.374 | C167: 57 | D167: 56.70643791 | E167: 56.4166719 | F167: 56.12757794 | G167: 55.84958391 | H167: 55.57303193 | I167: 55.31405484 | J167: 55.05748423 | K167: 54.82369589 | L167: 54.59356474 | M167: 54.38986736 | N167: 54.19144484 | O167: 54.02143772 | P167: 53.85874925 | Q167: 53.72484521 | R167: 53.60075344 | S167: 53.50440406 | T167: 53.42078274 | U167: 53.3627531 | V167: 53.32069536 | W167: 53.30132204 | X167: 53.30132204 | Y167: 53.32069536 | Z167: 53.3627531 | AA167: 53.42078274 | AB167: 53.50440406 | AC167: 53.60075344 | AD167: 53.72484521 | AE167: 53.85874925 | AF167: 54.02143772 | AG167: 54.19144484 | AH167: 54.38986736 | AI167: 54.59356474 | AJ167: 54.82369589 | AK167: 55.05748423 | AL167: 55.31405484 | AM167: 55.57303193 | AN167: 55.84958391 | AO167: 56.12757794 | AP167: 56.4166719 | AQ167: 56.70643791 | AR167: 57
B168: 2.389 | C168: 57 | D168: 56.70833595 | E168: 56.41700793 | F168: 56.1331279 | G168: 55.85030494 | H168: 55.58181937 | I168: 55.31525808 | J168: 55.06887536 | K168: 54.82552449 | L168: 54.60678162 | M168: 54.39250479 | N168: 54.20565254 | O168: 54.02509704 | P168: 53.87314146 | Q168: 53.72975135 | R168: 53.61462463 | S168: 53.51076809 | T168: 53.43357858 | U168: 53.37073905 | V168: 53.33203757 | W168: 53.3110087 | X168: 53.3110087 | Y168: 53.33203757 | Z168: 53.37073905 | AA168: 53.43357858 | AB168: 53.51076809 | AC168: 53.61462463 | AD168: 53.72975135 | AE168: 53.87314146 | AF168: 54.02509704 | AG168: 54.20565254 | AH168: 54.39250479 | AI168: 54.60678162 | AJ168: 54.82552449 | AK168: 55.06887536 | AL168: 55.31525808 | AM168: 55.58181937 | AN168: 55.85030494 | AO168: 56.1331279 | AP168: 56.41700793 | AQ168: 56.70833595 | AR168: 57
B169: 2.404 | C169: 57 | D169: 56.70850396 | E169: 56.42073193 | F169: 56.13365643 | G169: 55.85747364 | H169: 55.58278151 | I169: 55.32534737 | J169: 55.07039128 | K169: 54.83782849 | L169: 54.60901464 | M169: 54.40621708 | N169: 54.20880092 | O169: 54.039397 | P169: 53.8774242 | Q169: 53.74388305 | R169: 53.62025972 | S169: 53.52410161 | T169: 53.44075357 | U169: 53.38280807 | V169: 53.34087387 | W169: 53.32152313 | X169: 53.32152313 | Y169: 53.34087387 | Z169: 53.38280807 | AA169: 53.44075357 | AB169: 53.52410161 | AC169: 53.62025972 | AD169: 53.74388305 | AE169: 53.8774242 | AF169: 54.039397 | AG169: 54.20880092 | AH169: 54.40621708 | AI169: 54.60901464 | AJ169: 54.83782849 | AK169: 55.07039128 | AL169: 55.32534737 | AM169: 55.58278151 | AN169: 55.85747364 | AO169: 56.13365643 | AP169: 56.42073193 | AQ169: 56.70850396 | AR169: 57
B170: 2.419 | C170: 57 | D170: 56.71036596 | E170: 56.4210802 | F170: 56.13910278 | G170: 55.85821897 | H170: 55.5914105 | I170: 55.3265864 | J170: 55.08158793 | K170: 54.83970296 | L170: 54.62202279 | M170: 54.40890778 | N170: 54.22280704 | O170: 54.04311256 | P170: 53.89164002 | Q170: 53.74884196 | R170: 53.63399233 | S170: 53.53050664 | T170: 53.45345484 | U170: 53.39081372 | V170: 53.3521656 | W170: 53.3311985 | X170: 53.3311985 | Y170: 53.3521656 | Z170: 53.39081372 | AA170: 53.45345484 | AB170: 53.53050664 | AC170: 53.63399233 | AD170: 53.74884196 | AE170: 53.89164002 | AF170: 54.04311256 | AG170: 54.22280704 | AH170: 54.40890778 | AI170: 54.62202279 | AJ170: 54.83970296 | AK170: 55.08158793 | AL170: 55.3265864 | AM170: 55.5914105 | AN170: 55.85821897 | AO170: =f*(AN169+AP169)+(1-2*f)*AO169 -> 56.13910278 | AP170: 56.4210802 | AQ170: 56.71036596 | AR170: 57
B171: 2.434 | C171: 57 | D171: 56.7105401 | E171: 56.42473437 | F171: 56.13964958 | G171: 55.86525664 | H171: 55.59240268 | I171: 55.33649922 | J171: 55.08314468 | K171: 54.85180536 | L171: 54.62430537 | M171: 54.42241491 | N171: 54.22601017 | O171: 54.05722353 | P171: 53.89597726 | Q171: 53.76281618 | R171: 53.6396743 | S171: 53.54372358 | T171: 53.46066018 | U171: 53.40281022 | V171: 53.36100611 | W171: 53.34168205 | X171: 53.34168205 | Y171: 53.36100611 | Z171: 53.40281022 | AA171: 53.46066018 | AB171: 53.54372358 | AC171: 53.6396743 | AD171: 53.76281618 | AE171: 53.89597726 | AF171: 54.05722353 | AG171: 54.22601017 | AH171: 54.42241491 | AI171: 54.62430537 | AJ171: 54.85180536 | AK171: 55.08314468 | AL171: 55.33649922 | AM171: 55.59240268 | AN171: 55.86525664 | AO171: 56.13964958 | AP171: 56.42473437 | AQ171: 56.7105401 | AR171: 57
B172: 2.449 | C172: 57 | D172: 56.71236719 | E172: 56.42509484 | F172: 56.14499551 | G172: 55.86602613 | H172: 55.60087793 | I172: 55.33777368 | J172: 55.09415229 | K172: 54.85372502 | L172: 54.63711014 | M172: 54.42515777 | N172: 54.23981922 | O172: 54.06099371 | P172: 53.91001985 | Q172: 53.76782578 | R172: 53.65326988 | S172: 53.55016724 | T172: 53.4732669 | U172: 53.41083315 | V172: 53.37224614 | W172: 53.35134408 | X172: 53.35134408 | Y172: 53.37224614 | Z172: 53.41083315 | AA172: 53.4732669 | AB172: 53.55016724 | AC172: 53.65326988 | AD172: 53.76782578 | AE172: 53.91001985 | AF172: 54.06099371 | AG172: 54.23981922 | AH172: 54.42515777 | AI172: 54.63711014 | AJ172: 54.85372502 | AK172: 55.09415229 | AL172: 55.33777368 | AM172: 55.60087793 | AN172: 55.86602613 | AO172: 56.14499551 | AP172: 56.42509484 | AQ172: 56.71236719 | AR172: 57
B173: 2.464 | C173: 57 | D173: 56.71254742 | E173: 56.42868135 | F173: 56.14556049 | G173: 55.87293672 | H173: 55.60189991 | I173: 55.34751511 | J173: 55.09574935 | K173: 54.86563121 | L173: 54.6394414 | M173: 54.43846468 | N173: 54.24307574 | O173: 54.07491954 | P173: 53.91440974 | Q173: 53.78164487 | R173: 53.65899651 | S173: 53.56326839 | T173: 53.48050019 | U173: 53.42275652 | V173: 53.38108862 | W173: 53.36179511 | X173: 53.36179511 | Y173: 53.38108862 | Z173: 53.42275652 | AA173: 53.48050019 | AB173: 53.56326839 | AC173: 53.65899651 | AD173: 53.78164487 | AE173: 53.91440974 | AF173: 54.07491954 | AG173: 54.24307574 | AH173: 54.43846468 | AI173: 54.6394414 | AJ173: 54.86563121 | AK173: 55.09574935 | AL173: 55.34751511 | AM173: 55.60189991 | AN173: 55.87293672 | AO173: 56.14556049 | AP173: 56.42868135 | AQ173: 56.71254742 | AR173: 57
B174: 2.479 | C174: 57 | D174: 56.71434067 | E174: 56.42905395 | F174: 56.15080903 | G174: 55.8737302 | H174: 55.61022591 | I174: 55.34882463 | J174: 55.10657316 | K174: 54.86759537 | L174: 54.65204795 | M174: 54.44125857 | N174: 54.25669211 | O174: 54.07874274 | P174: 53.9282822 | Q174: 53.78670313 | R174: 53.67245663 | S174: 53.56974835 | T174: 53.49301246 | U174: 53.4307944 | V174: 53.39227582 | W174: 53.37144186 | X174: 53.37144186 | Y174: 53.39227582 | Z174: 53.4307944 | AA174: 53.49301246 | AB174: 53.56974835 | AC174: 53.67245663 | AD174: 53.78670313 | AE174: 53.9282822 | AF174: 54.07874274 | AG174: 54.25669211 | AH174: 54.44125857 | AI174: 54.65204795 | AJ174: 54.86759537 | AK174: 55.10657316 | AL174: 55.34882463 | AM174: 55.61022591 | AN174: 55.8737302 | AO174: 56.15080903 | AP174: 56.42905395 | AQ174: 56.71434067 | AR174: 57
B175: 2.494 | C175: 57 | D175: 56.71452698 | E175: 56.43257485 | F175: 56.15139208 | G175: 55.88051747 | H175: 55.61127741 | I175: 55.35839954 | J175: 55.10821 | K175: 54.87931055 | L175: 54.65442697 | M175: 54.45437003 | N175: 54.26000065 | O175: 54.09248716 | P175: 53.93272293 | Q175: 53.80036942 | R175: 53.67822574 | S175: 53.58273454 | T175: 53.50027138 | U175: 53.44264414 | V175: 53.40111813 | W175: 53.38185884 | X175: 53.38185884 | Y175: 53.40111813 | Z175: 53.44264414 | AA175: 53.50027138 | AB175: 53.58273454 | AC175: 53.67822574 | AD175: 53.80036942 | AE175: 53.93272293 | AF175: 54.09248716 | AG175: 54.26000065 | AH175: 54.45437003 | AI175: 54.65442697 | AJ175: 54.87931055 | AK175: 55.10821 | AL175: 55.35839954 | AM175: 55.61127741 | AN175: 55.88051747 | AO175: 56.15139208 | AP175: 56.43257485 | AQ175: 56.71452698 | AR175: 57
B176: 2.509 | C176: 57 | D176: 56.71628743 | E176: 56.43295953 | F176: 56.15654616 | G176: 55.88133474 | H176: 55.61945851 | I176: 55.35974371 | J176: 55.11885505 | K176: 54.88131849 | L176: 54.66684029 | M176: 54.45721381 | N176: 54.27342859 | O176: 54.09636179 | P176: 53.94642829 | Q176: 53.80547434 | R176: 53.69155198 | S176: 53.58924856 | T176: 53.51268934 | U176: 53.45069476 | V176: 53.41225149 | W176: 53.39148849 | X176: 53.39148849 | Y176: 53.41225149 | Z176: 53.45069476 | AA176: 53.51268934 | AB176: 53.58924856 | AC176: 53.69155198 | AD176: 53.80547434 | AE176: 53.94642829 | AF176: 54.09636179 | AG176: 54.27342859 | AH176: 54.45721381 | AI176: 54.66684029 | AJ176: 54.88131849 | AK176: 55.11885505 | AL176: 55.35974371 | AM176: 55.61945851 | AN176: 55.88133474 | AO176: 56.15654616 | AP176: 56.43295953 | AQ176: 56.71628743 | AR176: 57
B177: 2.524 | C177: 57 | D177: 56.71647976 | E177: 56.4364168 | F177: 56.15714714 | G177: 55.88800233 | H177: 55.62053923 | I177: 55.36915678 | J177: 55.1205311 | K177: 54.89284767 | L177: 54.66926615 | M177: 54.47013444 | N177: 54.2767878 | O177: 54.10992844 | P177: 53.95091807 | Q177: 53.81899013 | R177: 53.69736145 | S177: 53.60212066 | T177: 53.51997166 | U177: 53.46247041 | V177: 53.42109162 | W177: =f*(V176+X176)+(1-2*f)*W176 -> 53.40186999 | X177: 53.40186999 | Y177: 53.42109162 | Z177: 53.46247041 | AA177: 53.51997166 | AB177: 53.60212066 | AC177: 53.69736145 | AD177: 53.81899013 | AE177: 53.95091807 | AF177: 54.10992844 | AG177: 54.2767878 | AH177: 54.47013444 | AI177: 54.66926615 | AJ177: 54.89284767 | AK177: 55.1205311 | AL177: 55.36915678 | AM177: 55.62053923 | AN177: 55.88800233 | AO177: 56.15714714 | AP177: 56.4364168 | AQ177: 56.71647976 | AR177: 57
B178: 2.539 | C178: 57 | D178: 56.7182084 | E178: 56.43681345 | F178: 56.16220957 | G178: 55.88884318 | H178: 55.62857956 | I178: 55.37053516 | J178: 55.13100222 | K178: 54.89489862 | L178: 54.68149105 | M178: 54.47302698 | N178: 54.29003144 | O178: 54.11385293 | P178: 53.96445929 | Q178: 53.82413976 | R178: 53.7105554 | S178: 53.60866655 | T178: 53.53229554 | U178: 53.47053164 | V178: 53.4321702 | W178: 53.4114808 | X178: 53.4114808 | Y178: 53.4321702 | Z178: 53.47053164 | AA178: 53.53229554 | AB178: 53.60866655 | AC178: 53.7105554 | AD178: 53.82413976 | AE178: 53.96445929 | AF178: 54.11385293 | AG178: 54.29003144 | AH178: 54.47302698 | AI178: 54.68149105 | AJ178: 54.89489862 | AK178: 55.13100222 | AL178: 55.37053516 | AM178: 55.62857956 | AN178: 55.88884318 | AO178: 56.16220957 | AP178: 56.43681345 | AQ178: 56.7182084 | AR178: 57
B179: 2.554 | C179: 57 | D179: 56.71840672 | E179: 56.44020898 | F179: 56.16282831 | G179: 55.89539456 | H179: 55.62968917 | I179: 55.37979089 | J179: 55.13271689 | K179: 54.90624664 | L179: 54.6839628 | M179: 54.48576125 | N179: 54.29343996 | O179: 54.12724536 | P179: 53.96899635 | Q179: 53.83750734 | R179: 53.71640315 | S179: 53.62142547 | T179: 53.5395991 | U179: 53.48223287 | V179: 53.44100622 | W179: 53.4218255 | X179: 53.4218255 | Y179: 53.44100622 | Z179: 53.48223287 | AA179: 53.5395991 | AB179: 53.62142547 | AC179: 53.71640315 | AD179: 53.83750734 | AE179: 53.96899635 | AF179: 54.12724536 | AG179: 54.29343996 | AH179: 54.48576125 | AI179: 54.6839628 | AJ179: 54.90624664 | AK179: 55.13271689 | AL179: 55.37979089 | AM179: 55.62968917 | AN179: 55.89539456 | AO179: 56.16282831 | AP179: 56.44020898 | AQ179: 56.71840672 | AR179: 57
B180: 2.569 | C180: 57 | D180: 56.72010449 | E180: 56.44061752 | F180: 56.16780177 | G180: 55.89625874 | H180: 55.63759272 | I180: 55.38120303 | J180: 55.14301876 | K180: 54.90833985 | L180: 54.69600394 | M180: 54.48870138 | N180: 54.30650331 | O180: 54.13121815 | P180: 53.98237635 | Q180: 53.84269975 | R180: 53.7294664 | S180: 53.62800113 | T180: 53.55182917 | U180: 53.49030266 | V180: 53.45202919 | W180: 53.43141586 | X180: 53.43141586 | Y180: 53.45202919 | Z180: 53.49030266 | AA180: 53.55182917 | AB180: 53.62800113 | AC180: 53.7294664 | AD180: 53.84269975 | AE180: 53.98237635 | AF180: 54.13121815 | AG180: 54.30650331 | AH180: 54.48870138 | AI180: 54.69600394 | AJ180: 54.90833985 | AK180: 55.14301876 | AL180: 55.38120303 | AM180: 55.63759272 | AN180: 55.89625874 | AO180: 56.16780177 | AP180: 56.44061752 | AQ180: 56.72010449 | AR180: 57
B181: 2.584 | C181: 57 | D181: 56.72030876 | E181: 56.44395313 | F181: 56.16843813 | G181: 55.90269725 | H181: 55.63873089 | I181: 55.39030574 | J181: 55.14477144 | K181: 54.91951135 | L181: 54.69852061 | M181: 54.50125362 | N181: 54.30995976 | O181: 54.14443983 | P181: 53.98695895 | Q181: 53.85592138 | R181: 53.73535044 | S181: 53.64064779 | T181: 53.55915189 | U181: 53.50192918 | V181: 53.46085926 | W181: 53.44172252 | X181: 53.44172252 | Y181: 53.46085926 | Z181: 53.50192918 | AA181: 53.55915189 | AB181: 53.64064779 | AC181: 53.73535044 | AD181: 53.85592138 | AE181: 53.98695895 | AF181: 54.14443983 | AG181: 54.30995976 | AH181: 54.50125362 | AI181: 54.69852061 | AJ181: 54.91951135 | AK181: 55.14477144 | AL181: 55.39030574 | AM181: 55.63873089 | AN181: 55.90269725 | AO181: 56.16843813 | AP181: 56.44395313 | AQ181: 56.72030876 | AR181: 57
B182: 2.599 | C182: 57 | D182: 56.72197657 | E182: 56.44437345 | F182: 56.17332519 | G182: 55.90358451 | H182: 55.6465015 | I182: 55.39175116 | J182: 55.15490855 | K182: 54.92164603 | L182: 54.71038249 | M182: 54.50424019 | N182: 54.32284673 | O182: 54.14845936 | P182: 54.0001806 | Q182: 53.86115469 | R182: 53.74828458 | S182: 53.64725116 | T182: 53.57128848 | U182: 53.51000558 | V182: 53.47182585 | W182: 53.45129089 | X182: 53.45129089 | Y182: 53.47182585 | Z182: 53.51000558 | AA182: 53.57128848 | AB182: 53.64725116 | AC182: 53.74828458 | AD182: 53.86115469 | AE182: 54.0001806 | AF182: 54.14845936 | AG182: 54.32284673 | AH182: 54.50424019 | AI182: 54.71038249 | AJ182: 54.92164603 | AK182: 55.15490855 | AL182: 55.39175116 | AM182: 55.6465015 | AN182: 55.90358451 | AO182: 56.17332519 | AP182: 56.44437345 | AQ182: 56.72197657 | AR182: 57
B183: 2.614 | C183: 57 | D183: 56.72218672 | E183: 56.44765088 | F183: 56.17397898 | G183: 55.90991334 | H183: 55.64766784 | I183: 55.40070502 | J183: 55.15669859 | K183: 54.93264552 | L183: 54.71294311 | M183: 54.51661461 | N183: 54.32634977 | O183: 54.16151366 | P183: 54.00480703 | Q183: 53.87423259 | R183: 53.75420293 | S183: 53.65978653 | T183: 53.57862837 | U183: 53.52155717 | V183: 53.48064823 | W183: 53.46155837 | X183: 53.46155837 | Y183: 53.48064823 | Z183: 53.52155717 | AA183: 53.57862837 | AB183: 53.65978653 | AC183: 53.75420293 | AD183: 53.87423259 | AE183: 54.00480703 | AF183: 54.16151366 | AG183: 54.32634977 | AH183: 54.51661461 | AI183: 54.71294311 | AJ183: 54.93264552 | AK183: 55.15669859 | AL183: 55.40070502 | AM183: 55.64766784 | AN183: 55.90991334 | AO183: 56.17397898 | AP183: 56.44765088 | AQ183: 56.72218672 | AR183: 57
B184: 2.629 | C184: 57 | D184: 56.72382544 | E184: =f*(D183+F183)+(1-2*f)*E183 -> 56.44808285 | F184: 56.17878211 | G184: 55.91082341 | H184: 55.65530918 | I184: 55.40218322 | J184: 55.16667527 | K184: 54.93482085 | L184: 54.72463006 | M184: 54.51964644 | N184: 54.33906414 | O184: 54.1655784 | P184: 54.01787313 | Q184: 53.87950498 | R184: 53.76700956 | S184: 53.66641565 | T184: 53.59067185 | U184: 53.5296383 | V184: 53.49155777 | W184: 53.4711033 | X184: 53.4711033 | Y184: 53.49155777 | Z184: 53.5296383 | AA184: 53.59067185 | AB184: 53.66641565 | AC184: 53.76700956 | AD184: 53.87950498 | AE184: 54.01787313 | AF184: 54.1655784 | AG184: 54.33906414 | AH184: 54.51964644 | AI184: 54.72463006 | AJ184: 54.93482085 | AK184: 55.16667527 | AL184: 55.40218322 | AM184: 55.65530918 | AN184: 55.91082341 | AO184: 56.17878211 | AP184: 56.44808285 | AQ184: 56.72382544 | AR184: 57
B185: 2.644 | C185: 57 | D185: 56.72404143 | E185: 56.45130377 | F185: 56.17945313 | G185: 55.91704565 | H185: 55.65650331 | I185: 55.41099223 | J185: 55.16850203 | K185: 54.94565267 | L185: 54.72723364 | M185: 54.5318471 | N185: 54.34261242 | O185: 54.17846863 | P185: 54.02254169 | Q185: 53.89244135 | R185: 53.77296031 | S185: 53.67884071 | T185: 53.59802698 | U185: 53.54111481 | V185: 53.5003708 | W185: 53.48133054 | X185: 53.48133054 | Y185: 53.5003708 | Z185: 53.54111481 | AA185: 53.59802698 | AB185: 53.67884071 | AC185: 53.77296031 | AD185: 53.89244135 | AE185: 54.02254169 | AF185: 54.17846863 | AG185: 54.34261242 | AH185: 54.5318471 | AI185: 54.72723364 | AJ185: 54.94565267 | AK185: 55.16850203 | AL185: 55.41099223 | AM185: 55.65650331 | AN185: 55.91704565 | AO185: 56.17945313 | AP185: 56.45130377 | AQ185: 56.72404143 | AR185: 57
B186: 2.659 | C186: 57 | D186: 56.72565189 | E186: 56.45174728 | F186: 56.18417471 | G186: 55.91797822 | H186: 55.66401894 | I186: 55.41250267 | J186: 55.17832245 | K186: 54.94786784 | L186: 54.73874988 | M186: 54.53492303 | N186: 54.35515787 | O186: 54.18257705 | P186: 54.03545499 | Q186: 53.897751 | R186: 53.78564103 | S186: 53.68549364 | T186: 53.60997776 | U186: 53.54919889 | V186: 53.51122267 | W186: 53.49085067 | X186: 53.49085067 | Y186: 53.51122267 | Z186: 53.54919889 | AA186: 53.60997776 | AB186: 53.68549364 | AC186: 53.78564103 | AD186: 53.897751 | AE186: 54.03545499 | AF186: 54.18257705 | AG186: 54.35515787 | AH186: 54.53492303 | AI186: 54.73874988 | AJ186: 54.94786784 | AK186: 55.17832245 | AL186: 55.41250267 | AM186: 55.66401894 | AN186: 55.91797822 | AO186: 56.18417471 | AP186: 56.45174728 | AQ186: 56.72565189 | AR186: 57
B187: 2.674 | C187: 57 | D187: 56.72587364 | E187: 56.4549133 | F187: 56.18486275 | G187: 55.92409682 | H187: 55.66524045 | I187: 55.42117069 | J187: 55.18018526 | K187: 54.95853616 | L187: 54.74139544 | M187: 54.54695387 | N187: 54.35875004 | O187: 54.19530643 | P187: 54.04016403 | Q187: 53.91054801 | R187: 53.79162232 | S187: 53.69780939 | T187: 53.61734627 | U187: 53.56060021 | V187: 53.52002478 | W187: 53.50103667 | X187: 53.50103667 | Y187: 53.52002478 | Z187: 53.56060021 | AA187: 53.61734627 | AB187: 53.69780939 | AC187: 53.79162232 | AD187: 53.91054801 | AE187: 54.04016403 | AF187: 54.19530643 | AG187: 54.35875004 | AH187: 54.54695387 | AI187: 54.74139544 | AJ187: 54.95853616 | AK187: 55.18018526 | AL187: 55.42117069 | AM187: 55.66524045 | AN187: 55.92409682 | AO187: 56.18486275 | AP187: 56.4549133 | AQ187: 56.72587364 | AR187: 57
B188: 2.689 | C188: 57 | D188: 56.72745665 | E188: 56.45536819 | F188: 56.18950506 | G188: 55.9250516 | H188: 55.67263376 | I188: 55.42271285 | J188: 55.18985343 | K188: 54.96079035 | L188: 54.75274502 | M188: 54.55007274 | N188: 54.37113015 | O188: 54.19945704 | P188: 54.05292722 | Q188: 53.91589318 | R188: 53.8041787 | S188: 53.7044843 | T188: 53.6292048 | U188: 53.56868552 | V188: 53.53081844 | W188: 53.51053072 | X188: 53.51053072 | Y188: 53.53081844 | Z188: 53.56868552 | AA188: 53.6292048 | AB188: 53.7044843 | AC188: 53.8041787 | AD188: 53.91589318 | AE188: 54.05292722 | AF188: 54.19945704 | AG188: 54.37113015 | AH188: 54.55007274 | AI188: 54.75274502 | AJ188: 54.96079035 | AK188: 55.18985343 | AL188: 55.42271285 | AM188: 55.67263376 | AN188: 55.9250516 | AO188: 56.18950506 | AP188: 56.45536819 | AQ188: 56.72745665 | AR188: 57
B189: 2.704 | C189: 57 | D189: 56.7276841 | E189: 56.45848086 | F189: 56.1902099 | G189: 55.93106941 | H189: 55.67388222 | I189: 55.43124359 | J189: 55.1917516 | K189: 54.97129922 | L189: 54.75543154 | M189: 54.56193759 | N189: 54.37476489 | O189: 54.21202868 | P189: 54.05767511 | Q189: 53.92855296 | R189: 53.81018874 | S189: 53.71669175 | T189: 53.63658491 | U189: 53.58001162 | V189: 53.53960812 | W189: 53.52067458 | X189: 53.52067458 | Y189: 53.53960812 | Z189: 53.58001162 | AA189: 53.63658491 | AB189: 53.71669175 | AC189: 53.81018874 | AD189: 53.92855296 | AE189: 54.05767511 | AF189: 54.21202868 | AG189: 54.37476489 | AH189: 54.56193759 | AI189: 54.75543154 | AJ189: 54.97129922 | AK189: 55.1917516 | AL189: 55.43124359 | AM189: 55.67388222 | AN189: 55.93106941 | AO189: 56.1902099 | AP189: 56.45848086 | AQ189: 56.7276841 | AR189: 57
B190: 2.719 | C190: 57 | D190: 56.72924043 | E190: 56.458947 | F190: 56.19477513 | G190: 55.93204606 | H190: 55.6811565 | I190: 55.43281691 | J190: 55.20127141 | K190: 54.97359157 | L190: 54.7666184 | M190: 54.56509821 | N190: 54.38698313 | O190: 54.21622 | P190: 54.07029082 | Q190: 53.93393192 | R190: 53.82262235 | S190: 53.72338682 | T190: 53.64835169 | U190: 53.58809652 | V190: 53.5503431 | W190: 53.53014135 | X190: 53.53014135 | Y190: 53.5503431 | Z190: =f*(Y189+AA189)+(1-2*f)*Z189 -> 53.58809652 | AA190: 53.64835169 | AB190: 53.72338682 | AC190: 53.82262235 | AD190: 53.93393192 | AE190: 54.07029082 | AF190: 54.21622 | AG190: 54.38698313 | AH190: 54.56509821 | AI190: 54.7666184 | AJ190: 54.97359157 | AK190: 55.20127141 | AL190: 55.43281691 | AM190: 55.6811565 | AN190: 55.93204606 | AO190: 56.19477513 | AP190: 56.458947 | AQ190: 56.72924043 | AR190: 57
B191: 2.734 | C191: 57 | D191: 56.7294735 | E191: 56.46200778 | F191: 56.19549653 | G191: 55.93796582 | H191: 55.68243149 | I191: 55.44121395 | J191: 55.20320424 | K191: 54.98394491 | L191: 54.76934489 | M191: 54.57680077 | N191: 54.39065911 | O191: 54.22863698 | P191: 54.07507596 | Q191: 53.94645659 | R191: 53.82865937 | S191: 53.73548702 | T191: 53.65574167 | U191: 53.59934739 | V191: 53.55911894 | W191: 53.54024223 | X191: 53.54024223 | Y191: 53.55911894 | Z191: 53.59934739 | AA191: 53.65574167 | AB191: 53.73548702 | AC191: 53.82865937 | AD191: 53.94645659 | AE191: 54.07507596 | AF191: 54.22863698 | AG191: 54.39065911 | AH191: 54.57680077 | AI191: 54.76934489 | AJ191: 54.98394491 | AK191: 55.20320424 | AL191: 55.44121395 | AM191: 55.68243149 | AN191: 55.93796582 | AO191: 56.19549653 | AP191: 56.46200778 | AQ191: 56.7294735 | AR191: 57
B192: 2.749 | C192: 57 | D192: 56.73100389 | E192: 56.46248501 | F192: 56.1999868 | G192: 55.93896401 | H192: 55.68958989 | I192: 55.44281786 | J192: 55.21257943 | K192: 54.98627457 | L192: 54.78037284 | M192: 54.580002 | N192: 54.40271887 | O192: 54.23286753 | P192: 54.08754678 | Q192: 53.95186766 | R192: 53.8409718 | S192: 53.74220052 | T192: 53.66741721 | U192: 53.6074303 | V192: 53.56979481 | W192: 53.54968058 | X192: 53.54968058 | Y192: 53.56979481 | Z192: 53.6074303 | AA192: 53.66741721 | AB192: 53.74220052 | AC192: 53.8409718 | AD192: 53.95186766 | AE192: 54.08754678 | AF192: 54.23286753 | AG192: 54.40271887 | AH192: 54.580002 | AI192: 54.78037284 | AJ192: 54.98627457 | AK192: 55.21257943 | AL192: 55.44281786 | AM192: 55.68958989 | AN192: 55.93896401 | AO192: 56.1999868 | AP192: 56.46248501 | AQ192: 56.73100389 | AR192: 57
B193: 2.764 | C193: 57 | D193: 56.73124251 | E193: 56.46549534 | F193: 56.20072451 | G193: 55.94478834 | H193: 55.69089093 | I193: 55.45108466 | J193: 55.21454621 | K193: 54.99647613 | L193: 54.78313828 | M193: 54.59154586 | N193: 54.40643477 | O193: 54.24513283 | P193: 54.0923676 | Q193: 53.96425929 | R193: 53.84703409 | S193: 53.75419451 | T193: 53.67481541 | U193: 53.61860601 | V193: 53.57855544 | W193: 53.5597377 | X193: 53.5597377 | Y193: 53.57855544 | Z193: 53.61860601 | AA193: 53.67481541 | AB193: 53.75419451 | AC193: 53.84703409 | AD193: 53.96425929 | AE193: 54.0923676 | AF193: 54.24513283 | AG193: 54.40643477 | AH193: 54.59154586 | AI193: 54.78313828 | AJ193: 54.99647613 | AK193: 55.21454621 | AL193: 55.45108466 | AM193: 55.69089093 | AN193: 55.94478834 | AO193: 56.20072451 | AP193: 56.46549534 | AQ193: 56.73124251 | AR193: 57
B194: 2.779 | C194: 57 | D194: 56.73274767 | E194: 56.46598351 | F194: 56.20514184 | G194: 55.94580772 | H194: 55.6979365 | I194: 55.45271857 | J194: 55.2237804 | K194: 54.99884225 | L194: 54.794011 | M194: 54.59478652 | N194: 54.41833934 | O194: 54.24940118 | P194: 54.10469606 | Q194: 53.96970085 | R194: 53.8592269 | S194: 53.76092475 | T194: 53.68640026 | U194: 53.62668543 | V194: 53.58917185 | W194: 53.56914657 | X194: 53.56914657 | Y194: 53.58917185 | Z194: 53.62668543 | AA194: 53.68640026 | AB194: 53.76092475 | AC194: 53.8592269 | AD194: 53.96970085 | AE194: 54.10469606 | AF194: 54.24940118 | AG194: 54.41833934 | AH194: 54.59478652 | AI194: 54.794011 | AJ194: 54.99884225 | AK194: 55.2237804 | AL194: 55.45271857 | AM194: 55.6979365 | AN194: 55.94580772 | AO194: 56.20514184 | AP194: 56.46598351 | AQ194: 56.73274767 | AR194: 57
B195: 2.794 | C195: 57 | D195: 56.73299175 | E195: 56.46894476 | F195: 56.20589562 | G195: 55.95153917 | H195: 55.69926315 | I195: 55.46085845 | J195: 55.22578041 | K195: 55.0088957 | L195: 54.79681439 | M195: 54.60617517 | N195: 54.42209385 | O195: 54.2615177 | P195: 54.10955101 | Q195: 53.98196148 | R195: 53.8653128 | S195: 53.77281358 | T195: 53.69380509 | U195: 53.63778606 | V195: 53.597916 | W195: 53.57915921 | X195: 53.57915921 | Y195: 53.597916 | Z195: 53.63778606 | AA195: 53.69380509 | AB195: 53.77281358 | AC195: 53.8653128 | AD195: 53.98196148 | AE195: 54.10955101 | AF195: 54.2615177 | AG195: 54.42209385 | AH195: 54.60617517 | AI195: 54.79681439 | AJ195: 55.0088957 | AK195: 55.22578041 | AL195: 55.46085845 | AM195: 55.69926315 | AN195: 55.95153917 | AO195: 56.20589562 | AP195: 56.46894476 | AQ195: 56.73299175 | AR195: 57
B196: 2.809 | C196: 57 | D196: 56.73447238 | E196: 56.46944368 | F196: 56.21024196 | G196: 55.95257938 | H196: 55.70619881 | I196: 55.46252178 | J196: 55.23487707 | K196: 55.0112974 | L196: 54.80753543 | M196: 54.60945412 | N196: 54.43384643 | O196: 54.26582243 | P196: 54.12173959 | Q196: 53.98743191 | R196: 53.87738753 | S196: 53.77955894 | T196: 53.70529982 | U196: 53.64586054 | V196: 53.60847263 | W196: 53.5885376 | X196: 53.5885376 | Y196: 53.60847263 | Z196: 53.64586054 | AA196: 53.70529982 | AB196: 53.77955894 | AC196: 53.87738753 | AD196: 53.98743191 | AE196: 54.12173959 | AF196: 54.26582243 | AG196: 54.43384643 | AH196: 54.60945412 | AI196: 54.80753543 | AJ196: 55.0112974 | AK196: 55.23487707 | AL196: 55.46252178 | AM196: 55.70619881 | AN196: 55.95257938 | AO196: 56.21024196 | AP196: 56.46944368 | AQ196: 56.73447238 | AR196: 57
B197: 2.824 | C197: 57 | D197: 56.73472184 | E197: 56.47235717 | F197: 56.21101153 | G197: 55.95822039 | H197: =f*(G196+I196)+(1-2*f)*H196 -> 55.70755058 | I197: 55.47053794 | J197: 55.23690959 | K197: 55.02120625 | L197: 54.81037576 | M197: 54.62069093 | N197: 54.43763828 | O197: 54.27779301 | P197: 54.12662717 | Q197: 53.99956356 | R197: 53.88349542 | S197: 53.79134367 | T197: 53.71270974 | U197: 53.65688623 | V197: 53.61719907 | W197: 53.59850512 | X197: 53.59850512 | Y197: 53.61719907 | Z197: 53.65688623 | AA197: 53.71270974 | AB197: 53.79134367 | AC197: 53.88349542 | AD197: 53.99956356 | AE197: 54.12662717 | AF197: 54.27779301 | AG197: 54.43763828 | AH197: 54.62069093 | AI197: 54.81037576 | AJ197: 55.02120625 | AK197: 55.23690959 | AL197: 55.47053794 | AM197: 55.70755058 | AN197: 55.95822039 | AO197: 56.21101153 | AP197: 56.47235717 | AQ197: 56.73472184 | AR197: 57
B198: 2.839 | C198: 57 | D198: 56.73617859 | E198: 56.47286669 | F198: 56.21528878 | G198: 55.95928106 | H198: 55.71437916 | I198: 55.47223009 | J198: 55.2458721 | K198: 55.02364267 | L198: 54.82094859 | M198: 54.62400702 | N198: 54.44924197 | O198: 54.28213272 | P198: 54.13867829 | Q198: 54.0050613 | R198: 53.89545362 | S198: 53.79810258 | T198: 53.72411495 | U198: 53.66495441 | V198: 53.62769567 | W198: 53.6078521 | X198: 53.6078521 | Y198: 53.62769567 | Z198: 53.66495441 | AA198: 53.72411495 | AB198: 53.79810258 | AC198: 53.89545362 | AD198: 54.0050613 | AE198: 54.13867829 | AF198: 54.28213272 | AG198: 54.44924197 | AH198: 54.62400702 | AI198: 54.82094859 | AJ198: 55.02364267 | AK198: 55.2458721 | AL198: 55.47223009 | AM198: 55.71437916 | AN198: 55.95928106 | AO198: 56.21528878 | AP198: 56.47286669 | AQ198: 56.73617859 | AR198: 57
B199: 2.854 | C199: 57 | D199: 56.73643334 | E199: 56.47573368 | F199: 56.21607387 | G199: 55.96483397 | H199: 55.71575557 | I199: 55.48012563 | J199: 55.24793638 | K199: 55.03341034 | L199: 54.82382485 | M199: 54.63509528 | N199: 54.45306987 | O199: 54.29396013 | P199: 54.14359701 | Q199: 54.01706595 | R199: 53.90158194 | S199: 53.80978428 | T199: 53.7315285 | U199: 53.67590531 | V199: 53.63640325 | W199: 53.61777388 | X199: 53.61777388 | Y199: 53.63640325 | Z199: 53.67590531 | AA199: 53.7315285 | AB199: 53.80978428 | AC199: 53.90158194 | AD199: 54.01706595 | AE199: 54.14359701 | AF199: 54.29396013 | AG199: 54.45306987 | AH199: 54.63509528 | AI199: 54.82382485 | AJ199: 55.03341034 | AK199: 55.24793638 | AL199: 55.48012563 | AM199: 55.71575557 | AN199: 55.96483397 | AO199: 56.21607387 | AP199: 56.47573368 | AQ199: 56.73643334 | AR199: 57
B200: 2.869 | C200: 57 | D200: 56.73786684 | E200: 56.47625361 | F200: 56.22028383 | G200: 55.96591472 | H200: 55.7224798 | I200: 55.48184598 | J200: 55.25676799 | K200: 55.03588061 | L200: 54.83425281 | M200: 54.63844736 | N200: 54.46452771 | O200: 54.29833344 | P200: 54.15551304 | Q200: 54.02258948 | R200: 53.91342512 | S200: 53.81655522 | T200: 53.7428448 | U200: 53.68396587 | V200: 53.6468396 | W200: 53.62708857 | X200: 53.62708857 | Y200: 53.6468396 | Z200: 53.68396587 | AA200: 53.7428448 | AB200: 53.81655522 | AC200: 53.91342512 | AD200: 54.02258948 | AE200: 54.15551304 | AF200: 54.29833344 | AG200: 54.46452771 | AH200: 54.63844736 | AI200: 54.83425281 | AJ200: 55.03588061 | AK200: 55.25676799 | AL200: 55.48184598 | AM200: 55.7224798 | AN200: 55.96591472 | AO200: 56.22028383 | AP200: 56.47625361 | AQ200: 56.73786684 | AR200: 57
B201: 2.884 | C201: 57 | D201: 56.7381268 | E201: 56.47907533 | F201: 56.22108416 | G201: 55.97138181 | H201: 55.72388035 | I201: 55.48962389 | J201: 55.25886329 | K201: 55.0455104 | L201: 54.83716399 | M201: 54.64939026 | N201: 54.4683904 | O201: 54.31002037 | P201: 54.16046146 | Q201: 54.03446908 | R201: 53.91957235 | S201: 53.82813496 | T201: 53.75026055 | U201: 53.6948422 | V201: 53.65552722 | W201: 53.63696408 | X201: 53.63696408 | Y201: 53.65552722 | Z201: 53.6948422 | AA201: 53.75026055 | AB201: 53.82813496 | AC201: 53.91957235 | AD201: 54.03446908 | AE201: 54.16046146 | AF201: 54.31002037 | AG201: 54.4683904 | AH201: 54.64939026 | AI201: 54.83716399 | AJ201: 55.0455104 | AK201: 55.25886329 | AL201: 55.48962389 | AM201: 55.72388035 | AN201: 55.97138181 | AO201: 56.22108416 | AP201: 56.47907533 | AQ201: 56.7381268 | AR201: 57
B202: 2.899 | C202: 57 | D202: 56.73953767 | E202: 56.47960548 | F202: 56.22522857 | G202: 55.97248226 | H202: 55.73050285 | I202: 55.49137182 | J202: 55.26756715 | K202: 55.04801364 | L202: 54.84745033 | M202: 54.65277719 | N202: 54.47970532 | O202: 54.31442593 | P202: 54.17224473 | Q202: 54.0400169 | R202: 53.93130202 | S202: 53.83491645 | T202: 53.76148858 | U202: 53.70289388 | V202: 53.66590314 | W202: 53.64624565 | X202: 53.64624565 | Y202: 53.66590314 | Z202: 53.70289388 | AA202: 53.76148858 | AB202: 53.83491645 | AC202: 53.93130202 | AD202: 54.0400169 | AE202: 54.17224473 | AF202: 54.31442593 | AG202: 54.47970532 | AH202: 54.65277719 | AI202: 54.84745033 | AJ202: 55.04801364 | AK202: 55.26756715 | AL202: 55.49137182 | AM202: 55.73050285 | AN202: 55.97248226 | AO202: 56.22522857 | AP202: 56.47960548 | AQ202: 56.73953767 | AR202: 57
... 2048 more rows

Sheet Sheet1
A1: 0.064 | B1: 57 | C1: 52.3873 | D1: 53.4122
A2: 0.079 | B2: 57 | C2: 52.3848 | D2: 53.4139 | E2: Vial
A3: 0.094 | B3: 57 | C3: 52.3808 | D3: 53.4067
A4: 0.109 | B4: 57 | C4: 52.3779 | D4: 53.4041
A5: 0.124 | B5: 57 | C5: 52.3754 | D5: 53.3943
A6: 0.139 | B6: 57 | C6: 52.3717 | D6: 53.386
A7: 0.154 | B7: 57 | C7: 52.3748 | D7: 53.3855
A8: 0.169 | B8: 57 | C8: 52.3787 | D8: 53.3791
A9: 0.184 | B9: 57 | C9: 52.3785 | D9: 53.3776
A10: 0.199 | B10: 57 | C10: 52.3885 | D10: 53.3783
A11: 0.214 | B11: 57 | C11: 52.3981 | D11: 53.3721
A12: 0.229 | B12: 57 | C12: 52.4091 | D12: 53.3688
A13: 0.244 | B13: 57 | C13: 52.4247 | D13: 53.3638
A14: 0.259 | B14: 57 | C14: 52.4432 | D14: 53.3567
A15: 0.274 | B15: 57 | C15: 52.4685 | D15: 53.3545
A16: 0.289 | B16: 57 | C16: 52.492 | D16: 53.344
A17: 0.304 | B17: 57 | C17: 52.5243 | D17: 53.3397
A18: 0.319 | B18: 57 | C18: 52.5616 | D18: 53.3326
A19: 0.334 | B19: 57 | C19: 52.6024 | D19: 53.3338
A20: 0.349 | B20: 57 | C20: 52.65 | D20: 53.3283
A21: 0.364 | B21: 57 | C21: 52.7033 | D21: 53.3343
A22: 0.379 | B22: 57 | C22: 52.7568 | D22: 53.3243
A23: 0.394 | B23: 57 | C23: 52.8152 | D23: 53.3214
A24: 0.409 | B24: 57 | C24: 52.8732 | D24: 53.3121
A25: 0.424 | B25: 57 | C25: 52.9395 | D25: 53.3128
A26: 0.439 | B26: 57 | C26: 53.013 | D26: 53.3057
A27: 0.454 | B27: 57 | C27: 53.0837 | D27: 53.299
A28: 0.469 | B28: 57 | C28: 53.1605 | D28: 53.3012
A29: 0.484 | B29: 57 | C29: 53.2371 | D29: 53.2928
A30: 0.499 | B30: 57 | C30: 53.323 | D30: 53.2986
A31: 0.514 | B31: 57 | C31: 53.4067 | D31: 53.2902
A32: 0.529 | B32: 57 | C32: 53.4947 | D32: 53.2912
A33: 0.544 | B33: 57 | C33: 53.5843 | D33: 53.2862
A34: 0.559 | B34: 57 | C34: 53.6771 | D34: 53.2857
A35: 0.574 | B35: 57 | C35: 53.7751 | D35: 53.2833
A36: 0.589 | B36: 57 | C36: 53.87 | D36: 53.2776
A37: 0.604 | B37: 57 | C37: 53.9711 | D37: 53.28
A38: 0.619 | B38: 57 | C38: 54.0715 | D38: 53.2807
A39: 0.634 | B39: 57 | C39: 54.1764 | D39: 53.2814
A40: 0.649 | B40: 57 | C40: 54.2878 | D40: 53.2821
A41: 0.664 | B41: 57 | C41: 54.3951 | D41: 53.2817
A42: 0.679 | B42: 57 | C42: 54.5045 | D42: 53.284
A43: 0.694 | B43: 57 | C43: 54.6157 | D43: 53.2826
A44: 0.709 | B44: 57 | C44: 54.7259 | D44: 53.2864
A45: 0.724 | B45: 57 | C45: 54.8409 | D45: 53.2824
A46: 0.739 | B46: 57 | C46: 54.9534 | D46: 53.2855
A47: 0.754 | B47: 57 | C47: 55.0719 | D47: 53.284
A48: 0.769 | B48: 57 | C48: 55.1913 | D48: 53.2919
A49: 0.784 | B49: 57 | C49: 55.317 | D49: 53.2978
A50: 0.799 | B50: 57 | C50: 55.4361 | D50: 53.3
A51: 0.814 | B51: 57 | C51: 55.5644 | D51: 53.3062
A52: 0.829 | B52: 57 | C52: 55.6943 | D52: 53.3155
A53: 0.844 | B53: 57 | C53: 55.8247 | D53: 53.3166
A54: 0.859 | B54: 57 | C54: 55.9599 | D54: 53.3226
A55: 0.874 | B55: 57 | C55: 56.0931 | D55: 53.3309
A56: 0.889 | B56: 57 | C56: 56.2303 | D56: 53.3328
A57: 0.904 | B57: 57 | C57: 56.3694 | D57: 53.3374
A58: 0.919 | B58: 57 | C58: 56.5125 | D58: 53.349
A59: 0.934 | B59: 57 | C59: 56.6613 | D59: 53.3555
A60: 0.949 | B60: 57 | C60: 56.8086 | D60: 53.3674
A61: 0.964 | B61: 57 | C61: 56.9571 | D61: 53.376
A62: 0.979 | B62: 57 | C62: 57.0965 | D62: 53.3893
A63: 0.994 | B63: 57 | C63: 57.2419 | D63: 53.3967
A64: 1.009 | B64: 57 | C64: 57.3766 | D64: 53.407
A65: 1.024 | B65: 57 | C65: 57.5127 | D65: 53.4156
A66: 1.039 | B66: 57 | C66: 57.6407 | D66: 53.427
A67: 1.054 | B67: 57 | C67: 57.765 | D67: 53.4363
A68: 1.069 | B68: 57 | C68: 57.8876 | D68: 53.4521
A69: 1.084 | B69: 57 | C69: 58.0064 | D69: 53.4652
A70: 1.099 | B70: 57 | C70: 58.1097 | D70: 53.4767
A71: 1.114 | B71: 57 | C71: 58.2147 | D71: 53.4922
A72: 1.129 | B72: 57 | C72: 58.3101 | D72: 53.5087
A73: 1.144 | B73: 57 | C73: 58.392 | D73: 53.5226
A74: 1.159 | B74: 57 | C74: 58.4733 | D74: 53.5372
A75: 1.174 | B75: 57 | C75: 58.5436 | D75: 53.5461
A76: 1.189 | B76: 57 | C76: 58.6124 | D76: 53.5643
A77: 1.204 | B77: 57 | C77: 58.6703 | D77: 53.5777
A78: 1.219 | B78: 57 | C78: 58.7332 | D78: 53.594
A79: 1.234 | B79: 57 | C79: 58.7793 | D79: 53.611
A80: 1.249 | B80: 57 | C80: 58.8251 | D80: 53.6288
A81: 1.264 | B81: 57 | C81: 58.8625 | D81: 53.6482
A82: 1.279 | B82: 57 | C82: 58.8944 | D82: 53.6657
A83: 1.294 | B83: 57 | C83: 58.9225 | D83: 53.6811
A84: 1.309 | B84: 57 | C84: 58.9427 | D84: 53.6979
A85: 1.324 | B85: 57 | C85: 58.9515 | D85: 53.7167
A86: 1.339 | B86: 57 | C86: 58.9655 | D86: 53.7311
A87: 1.354 | B87: 57 | C87: 58.9704 | D87: 53.747
A88: 1.369 | B88: 57 | C88: 58.9722 | D88: 53.7638
A89: 1.384 | B89: 57 | C89: 58.9706 | D89: 53.7829
A90: 1.399 | B90: 57 | C90: 58.9593 | D90: 53.8036
A91: 1.414 | B91: 57 | C91: 58.9484 | D91: 53.827
A92: 1.429 | B92: 57 | C92: 58.9347 | D92: 53.847
A93: 1.444 | B93: 57 | C93: 58.9127 | D93: 53.8603
A94: 1.459 | B94: 57 | C94: 58.8881 | D94: 53.8767
A95: 1.474 | B95: 57 | C95: 58.8552 | D95: 53.895
A96: 1.489 | B96: 57 | C96: 58.8264 | D96: 53.9122
A97: 1.504 | B97: 57 | C97: 58.7952 | D97: 53.9313
A98: 1.519 | B98: 57 | C98: 58.7581 | D98: 53.9538
A99: 1.534 | B99: 57 | C99: 58.721 | D99: 53.968
A100: 1.549 | B100: 57 | C100: 58.6769 | D100: 53.9886
A101: 1.564 | B101: 57 | C101: 58.6346 | D101: 54.0063
A102: 1.579 | B102: 57 | C102: 58.5917 | D102: 54.0291
A103: 1.594 | B103: 57 | C103: 58.5458 | D103: 54.046
A104: 1.609 | B104: 57 | C104: 58.4924 | D104: 54.0615
A105: 1.624 | B105: 57 | C105: 58.4441 | D105: 54.0773
A106: 1.639 | B106: 57 | C106: 58.3917 | D106: 54.0967
A107: 1.654 | B107: 57 | C107: 58.3368 | D107: 54.1118
A108: 1.669 | B108: 57 | C108: 58.2806 | D108: 54.1271
A109: 1.684 | B109: 57 | C109: 58.2337 | D109: 54.1514
A110: 1.699 | B110: 57 | C110: 58.175 | D110: 54.1667
A111: 1.714 | B111: 57 | C111: 58.1208 | D111: 54.1869
A112: 1.729 | B112: 57 | C112: 58.0686 | D112: 54.2039
A113: 1.744 | B113: 57 | C113: 58.0108 | D113: 54.2178
A114: 1.759 | B114: 57 | C114: 57.95 | D114: 54.2341
A115: 1.774 | B115: 57 | C115: 57.8926 | D115: 54.2483
A116: 1.789 | B116: 57 | C116: 57.8307 | D116: 54.2573
A117: 1.804 | B117: 57 | C117: 57.7734 | D117: 54.2773
A118: 1.819 | B118: 57 | C118: 57.7179 | D118: 54.2924
A119: 1.834 | B119: 57 | C119: 57.6623 | D119: 54.3107
A120: 1.849 | B120: 57 | C120: 57.608 | D120: 54.3227
A121: 1.864 | B121: 57 | C121: 57.5572 | D121: 54.3403
A122: 1.879 | B122: 57 | C122: 57.502 | D122: 54.3576
A123: 1.894 | B123: 57 | C123: 57.4464 | D123: 54.3708
A124: 1.909 | B124: 57 | C124: 57.3941 | D124: 54.384
A125: 1.924 | B125: 57 | C125: 57.3419 | D125: 54.3987
A126: 1.939 | B126: 57 | C126: 57.291 | D126: 54.4089
A127: 1.954 | B127: 57 | C127: 57.238 | D127: 54.4202
A128: 1.969 | B128: 57 | C128: 57.1904 | D128: 54.4354
A129: 1.984 | B129: 57 | C129: 57.1436 | D129: 54.4484
A130: 1.999 | B130: 57 | C130: 57.1012 | D130: 54.4633
A131: 2.014 | B131: 57 | C131: 57.0567 | D131: 54.4743
A132: 2.029 | B132: 57 | C132: 57.0127 | D132: 54.49
A133: 2.044 | B133: 57 | C133: 56.9724 | D133: 54.5003
A134: 2.059 | B134: 57 | C134: 56.9323 | D134: 54.5101
A135: 2.074 | B135: 57 | C135: 56.8916 | D135: 54.5209
A136: 2.089 | B136: 57 | C136: 56.8526 | D136: 54.5317
A137: 2.104 | B137: 57 | C137: 56.8118 | D137: 54.5408
A138: 2.119 | B138: 57 | C138: 56.7786 | D138: 54.5514
A139: 2.134 | B139: 57 | C139: 56.749 | D139: 54.559
A140: 2.149 | B140: 57 | C140: 56.7193 | D140: 54.574
A141: 2.164 | B141: 57 | C141: 56.6952 | D141: 54.5877
A142: 2.179 | B142: 57 | C142: 56.6585 | D142: 54.5993
A143: 2.194 | B143: 57 | C143: 56.633 | D143: 54.6067
A144: 2.209 | B144: 57 | C144: 56.6067 | D144: 54.6104
A145: 2.224 | B145: 57 | C145: 56.5814 | D145: 54.6199
A146: 2.239 | B146: 57 | C146: 56.5556 | D146: 54.6254
A147: 2.254 | B147: 57 | C147: 56.5312 | D147: 54.635
A148: 2.269 | B148: 57 | C148: 56.5141 | D148: 54.6399
A149: 2.284 | B149: 57 | C149: 56.4976 | D149: 54.6539
A150: 2.299 | B150: 57 | C150: 56.4826 | D150: 54.6593
A151: 2.314 | B151: 57 | C151: 56.4675 | D151: 54.6711
A152: 2.329 | B152: 57 | C152: 56.4505 | D152: 54.6803
A153: 2.344 | B153: 57 | C153: 56.4375 | D153: 54.6867
A154: 2.359 | B154: 57 | C154: 56.4316 | D154: 54.7015
A155: 2.374 | B155: 57 | C155: 56.4205 | D155: 54.6997
A156: 2.389 | B156: 57 | C156: 56.4086 | D156: 54.7032
A157: 2.404 | B157: 57 | C157: 56.4 | D157: 54.7121
A158: 2.419 | B158: 57 | C158: 56.3975 | D158: 54.7229
A159: 2.434 | B159: 57 | C159: 56.3927 | D159: 54.7251
A160: 2.449 | B160: 57 | C160: 56.392 | D160: 54.7372
A161: 2.464 | B161: 57 | C161: 56.3914 | D161: 54.7459
A162: 2.479 | B162: 57 | C162: 56.3927 | D162: 54.7496
A163: 2.494 | B163: 57 | C163: 56.3939 | D163: 54.7575
A164: 2.509 | B164: 57 | C164: 56.3958 | D164: 54.7617
A165: 2.524 | B165: 57 | C165: 56.3937 | D165: 54.77
A166: 2.539 | B166: 57 | C166: 56.3958 | D166: 54.7735
A167: 2.554 | B167: 57 | C167: 56.4006 | D167: 54.775
A168: 2.569 | B168: 57 | C168: 56.4061 | D168: 54.7849
A169: 2.584 | B169: 57 | C169: 56.4113 | D169: 54.7908
A170: 2.599 | B170: 57 | C170: 56.4189 | D170: 54.7999
A171: 2.614 | B171: 57 | C171: 56.4293 | D171: 54.8064
A172: 2.629 | B172: 57 | C172: 56.4375 | D172: 54.8158
A173: 2.644 | B173: 57 | C173: 56.4457 | D173: 54.82
A174: 2.659 | B174: 57 | C174: 56.4537 | D174: 54.8296
A175: 2.674 | B175: 57 | C175: 56.4627 | D175: 54.8311
A176: 2.689 | B176: 57 | C176: 56.4713 | D176: 54.8308
A177: 2.704 | B177: 57 | C177: 56.4845 | D177: 54.8346
A178: 2.719 | B178: 57 | C178: 56.4952 | D178: 54.838
A179: 2.734 | B179: 57 | C179: 56.5102 | D179: 54.8457
A180: 2.749 | B180: 57 | C180: 56.5274 | D180: 54.8576
A181: 2.764 | B181: 57 | C181: 56.5421 | D181: 54.8605
A182: 2.779 | B182: 57 | C182: 56.5562 | D182: 54.8709
A183: 2.794 | B183: 57 | C183: 56.5675 | D183: 54.8709
A184: 2.809 | B184: 57 | C184: 56.5793 | D184: 54.8836
A185: 2.824 | B185: 57 | C185: 56.5909 | D185: 54.8853
A186: 2.839 | B186: 57 | C186: 56.6035 | D186: 54.8855
A187: 2.854 | B187: 57 | C187: 56.6193 | D187: 54.8927
A188: 2.869 | B188: 57 | C188: 56.6341 | D188: 54.8997
A189: 2.884 | B189: 57 | C189: 56.6518 | D189: 54.9014
A190: 2.899 | B190: 57 | C190: 56.6688 | D190: 54.9128
A191: 2.914 | B191: 57 | C191: 56.679 | D191: 54.9222
A192: 2.929 | B192: 57 | C192: 56.6969 | D192: 54.9262
A193: 2.944 | B193: 57 | C193: 56.7134 | D193: 54.9272
A194: 2.959 | B194: 57 | C194: 56.7245 | D194: 54.9356
A195: 2.974 | B195: 57 | C195: 56.7342 | D195: 54.9356
A196: 2.989 | B196: 57 | C196: 56.7478 | D196: 54.9428
A197: 3.004 | B197: 57 | C197: 56.7587 | D197: 54.947
A198: 3.019 | B198: 57 | C198: 56.7731 | D198: 54.9537
A199: 3.034 | B199: 57 | C199: 56.7852 | D199: 54.9602
A200: 3.049 | B200: 57 | C200: 56.8 | D200: 54.9683
... 12629 more rows

Sheet Compatibility Report
B1: Compatibility Report for PDE model of thermal transfer vial to H2O 8_2013.xls
B2: Run on 8/18/2013 15:23
B4: The following features in this workbook are not supported by earlier versions of Excel. These features may be lost or degraded when opening this workbook in an earlier version of Excel or if you save this workbook in an earlier file format.
B6: Minor loss of fidelity | E6: # of occurrences | F6: Version
B8: Some cells or styles in this workbook contain formatting that is not supported by the selected file format. These formats will be converted to the closest format available. | E8: 10 | F8: Excel 97-2003
